Workbook

Sheet Resumo
A1: Ministério da Integração e do Desenvolvimento Regional
A2: Companhia de Desenvolvimento dos Vales do São Francisco e do Parnaíba
A4: PLANILHA RESUMO
A5: OBRA: | B5: Elaboração de estudos e projetos de engenharia nas barragens de Bom Jardim, Juá II e Umburana, localizadas no Estado De Pernambuco | E5: BDI (serv.): | F5: ='BDI serv'!D23 -> 0.2356 | G5: Bancos de dados:
A6: LOCAL: | B6: BARRAGENS DE PERNAMBUCO | E6: BDI (forn.): | F6: ='BDI forn'!D23 -> 0.136 | G6: ABR/25 - SINAPI
A7: DATA BASE: | B7: 2025-03-01 | C7: Encargos sociais - Horistas: | F7: ='Encargos Sociais'!E49 -> 1.1384 | G7: FEV/25 - ORSE
A8: PRAZO: | B8: 270 dias | C8: Encargos sociais - Mensalista: | F8: ='Encargos Sociais'!F49 -> 0.7011 | G8: MAI/25 - SBC
E9: Desconto: | F9: 0 | G9: JAN/25 - EMBASA
A10: ITEM | B10: DESCRIÇÃO | C10: UNID. | D10: QUANT. | E10: CUSTO UNITÁRIO | F10: PREÇO UNITÁRIO | G10: PREÇO TOTAL
A12: 1 | B12: BARRAGENS PERNAMBUCO | G12: =SUM(G13:G15) -> 500635.9
A13: 1.1 | B13: ='PO Bom Jardim'!B9 -> Bom Jardim | C13: unid. | D13: 1 | E13: =(1-$F$9)*'PO Bom Jardim'!I39 -> 143270.75 | F13: =TRUNC(E13*(1+$F$5),2) -> 177025.33 | G13: =TRUNC(D13*F13,2) -> 177025.33
A14: 1.2 | B14: ='PO Juá II'!B9 -> Juá II | C14: unid. | D14: 1 | E14: =(1-$F$9)*'PO Juá II'!I38 -> 149819.14 | F14: =TRUNC(E14*(1+$F$5),2) -> 185116.52 | G14: =TRUNC(D14*F14,2) -> 185116.52
A15: 1.3 | B15: ='PO Umburana'!B9 -> Umburana | C15: unid. | D15: 1 | E15: =(1-$F$9)*'PO Umburana'!I37 -> 112086.48 | F15: =TRUNC(E15*(1+$F$5),2) -> 138494.05 | G15: 138494.05
B17: TOTAL (Custo): | G17: =ROUNDDOWN(SUMPRODUCT(D12:D16,E12:E16),2) -> 405176.37
B18: BDI e Encargos Sociais: | G18: =G19-G17 -> 95459.53
B19: TOTAL GERAL COM BDI: | G19: =ROUNDDOWN(SUMPRODUCT(D12:D16,F12:F16),2) -> 500635.9

Sheet PO Bom Jardim
A1: Ministério da Integração e do Desenvolvimento Regional
A2: Companhia de Desenvolvimento dos Vales do São Francisco e do Parnaíba
A4: PLANILHA ORÇAMENTÁRIA - ORÇAMENTO NÃO DESONERADO
A5: OBRA: | B5: =Resumo!B5 -> Elaboração de estudos e projetos de engenharia nas barragens de Bom Jardim, Juá II e Umburana, localizadas no Estado De Pernambuco | G5: BDI (serv.): | H5: ='BDI serv'!D23 -> 0.2356 | I5: Bancos de dados:
A6: LOCAL: | B6: =Resumo!B6 -> BARRAGENS DE PERNAMBUCO | G6: BDI (forn.): | H6: ='BDI forn'!D23 -> 0.136 | I6: =Resumo!G6 -> ABR/25 - SINAPI
A7: DATA BASE: | B7: =Resumo!B7 -> 2025-03-01 | E7: Encargos sociais - Horistas: | H7: ='Encargos Sociais'!E49 -> 1.1384 | I7: =Resumo!G7 -> FEV/25 - ORSE
A8: PRAZO: | B8: 90 dias | E8: Encargos sociais - Mensalista: | H8: ='Encargos Sociais'!F49 -> 0.7011 | I8: =Resumo!G8 -> MAI/25 - SBC
B9: Bom Jardim | G9: Desconto: | H9: 0 | I9: =Resumo!G9 -> JAN/25 - EMBASA
A10: ITEM | B10: REFERÊNCIA | D10: DESCRIÇÃO | E10: UNID. | F10: QUANT. | G10: CUSTO UNITÁRIO | H10: PREÇO UNITÁRIO | I10: PREÇO TOTAL
B11: FONTE | C11: CÓDIGO
A12: 1 | D12: SERVIÇOS EM CAMPO | I12: =SUM(I13,I18,I20,I23) -> 89242.11
A13: 1.1 | D13: Serviços Preliminares | I13: =SUM(I14:I17) -> 18501.89
A14: 1.1.1 | B14: PRÓPRIA | C14: 1 | D14: Levantamento de campo (Diagnóstico e levantamento de quantitativo) | E14: =VLOOKUP(A14,CPU!A$1:G$258,4,0) -> unid. | F14: 1 | G14: =TRUNC(CPU!G10,2) -> 2330.56 | H14: =TRUNC(G14*(1+$H$5),2) -> 2879.63 | I14: =TRUNC(F14*H14,2) -> 2879.63
A15: 1.1.2 | B15: SINAPI | C15: 98524 | D15: LIMPEZA MANUAL DE VEGETAÇÃO EM TERRENO COM ENXADA. AF_03/2024 | E15: M2 | F15: 1500 | G15: =TRUNC(VLOOKUP(C15,'SINAPI-CSD'!B8900:E9657,4,0),2) -> 4.89 | H15: =TRUNC(G15*(1+$H$5),2) -> 6.04 | I15: =TRUNC(F15*H15,2) -> 9060 | J15: ca
A16: 1.1.3 | B16: SINAPI | C16: 97913 | D16: TRANSPORTE COM CAMINHÃO BASCULANTE DE 6 M³, EM VIA URBANA EM REVESTIMENTO PRIMÁRIO (UNIDADE: M3XKM). AF_07/2020 | E16: M3XKM | F16: =Quantitativos!B12*Quantitativos!B13 -> 312 | G16: =TRUNC(VLOOKUP(C16,'SINAPI-CSD'!B8901:E9658,4,0),2) -> 3.32 | H16: 4.1 | I16: 1279.2 | J16: ca
A17: 1.1.4 | B17: PRÓPRIA | C17: CPU.08 | D17: Mobilização da equipe de vistoria | E17: unid. | F17: 1 | G17: =TRUNC(CPU!G69,2) -> 4275.71 | H17: 5283.06 | I17: 5283.06
A18: 1.2 | D18: Levantamento topográfico | I18: =SUM(I19:I19) -> 2704.27
A19: 1.2.1 | B19: ORSE | C19: 9346 | D19: Levantamento topográfico planimétrico cadastral | E19: m2 | F19: =Quantitativos!B7 -> 6289 | G19: =TRUNC(1-$H$9,2)*0.35 -> 0.35 | H19: =TRUNC(G19*(1+$H$5),2) -> 0.43 | I19: =TRUNC(F19*H19,2) -> 2704.27
A20: 1.3 | D20: Investigação Geológica e Geotécnica | I20: =SUM(I21:I22) -> 66308.14
A21: 1.3.1 | B21: SBC | C21: 000015 | D21: Sondagem Rotativa | E21: m | F21: =Quantitativos!B11 -> 42 | G21: ='PO Umburana'!G21 -> 1219.29 | H21: =TRUNC(G21*(1+$H$5),2) -> 1506.55 | I21: =TRUNC(F21*H21,2) -> 63275.1
A22: 1.3.2 | B22: EMBASA | C22: 32.04.61 | D22: ENSAIO DE PERDA DAGUA SOB PRESSAO | E22: unid. | F22: 4 | G22: ='PO Umburana'!G22 -> 613.68 | H22: =TRUNC(G22*(1+$H$5),2) -> 758.26 | I22: =TRUNC(F22*H22,2) -> 3033.04
A23: 1.4 | D23: Bombeamento do acúmulo de água na casa de controle | I23: =SUM(I24) -> 1727.81
A24: 1.4.1 | B24: PRÓPRIA | C24: =C14+1 -> 2 | D24: Retirada da água para inspeção dos equipamentos | E24: unid. | F24: 1 | G24: =TRUNC(CPU!G18,2) -> 1398.36 | H24: =TRUNC(G24*(1+$H$5),2) -> 1727.81 | I24: =TRUNC(F24*H24,2) -> 1727.81
A26: 2 | D26: LAUDOS E PROJETOS | I26: =SUM(I27,I29,I31,I34,I36) -> 88099.11
A27: 2.1 | D27: As is da Barragem | I27: =SUM(I28) -> 23319.98
A28: 2.1.1 | B28: PRÓPRIA | C28: =C24+1 -> 3 | D28: Projeto Geométrico | E28: unid. | F28: 1 | G28: =TRUNC(CPU!G28,2) -> 18873.41 | H28: =TRUNC(G28*(1+$H$5),2) -> 23319.98 | I28: =TRUNC(F28*H28,2) -> 23319.98
A29: 2.2 | D29: Estudo hidrológico e hidráulico | I29: =SUM(I30) -> 16003.88
A30: 2.2.1 | B30: PRÓPRIA | C30: =C28+1 -> 4 | D30: Relatório de estudo hidrológico e hidráulico | E30: unid. | F30: 1 | G30: =TRUNC(CPU!G37,2) -> 12952.32 | H30: =TRUNC(G30*(1+$H$5),2) -> 16003.88 | I30: =TRUNC(F30*H30,2) -> 16003.88
A31: 2.3 | D31: Estudo geológico e geotécnico | I31: =SUM(I32:I33) -> 25205.12
A32: 2.3.1 | B32: PRÓPRIA | C32: =C30+1 -> 5 | D32: Relatório de avaliação geológico e geotécnico | E32: unid. | F32: 1 | G32: =TRUNC(CPU!G45,2) -> 10199.55 | H32: =TRUNC(G32*(1+$H$5),2) -> 12602.56 | I32: =TRUNC(F32*H32,2) -> 12602.56
A33: 2.3.2 | B33: PRÓPRIA | C33: =C32+1 -> 6 | D33: Estudo de Estabilidade | E33: unid. | F33: 1 | G33: =TRUNC(CPU!G53,2) -> 10199.55 | H33: =TRUNC(G33*(1+$H$5),2) -> 12602.56 | I33: =TRUNC(F33*H33,2) -> 12602.56
A34: 2.4 | D34: Projeto de recuperação das anomalias | I34: =SUM(I35) -> 23234.71
A35: 2.4.1 | B35: PRÓPRIA | C35: =C33+1 -> 7 | D35: Projeto executivo e Documentação Técnica | E35: unid. | F35: 1 | G35: =TRUNC(CPU!G61,2) -> 18804.4 | H35: =TRUNC(G35*(1+$H$5),2) -> 23234.71 | I35: =TRUNC(F35*H35,2) -> 23234.71
A36: 2.5 | D36: Anotação de Responsabilidade técnica pelos projetos | I36: =SUM(I37) -> 335.42
A37: 2.5.1 | B37: PRÓPRIA | C37: CPU.09 | D37: ART dos Projetos | E37: unid. | F37: 1 | G37: =TRUNC(CPU!F81,2) -> 271.47 | H37: =TRUNC(G37*(1+$H$5),2) -> 335.42 | I37: =TRUNC(F37*H37,2) -> 335.42
D39: TOTAL (Custo): | I39: =TRUNC(SUMPRODUCT(F13:F36,G13:G36),2) -> 143270.75
D40: BDI e Encargos Sociais: | I40: =I41-I39 -> 34070.47
D41: TOTAL GERAL COM BDI: | I41: =TRUNC(SUMPRODUCT(F13:F37,H13:H37),2) -> 177341.22 | J41: VERIFICAÇÃO | K41: =SUM(I12,I26) -> 177341.22

Sheet PO Juá II
A1: Ministério da Integração e do Desenvolvimento Regional
A2: Companhia de Desenvolvimento dos Vales do São Francisco e do Parnaíba
A4: PLANILHA ORÇAMENTÁRIA - ORÇAMENTO NÃO DESONERADO
A5: OBRA: | B5: =Resumo!B5 -> Elaboração de estudos e projetos de engenharia nas barragens de Bom Jardim, Juá II e Umburana, localizadas no Estado De Pernambuco | G5: BDI (serv.): | H5: ='BDI serv'!D23 -> 0.2356 | I5: Bancos de dados:
A6: LOCAL: | B6: =Resumo!B6 -> BARRAGENS DE PERNAMBUCO | G6: BDI (forn.): | H6: ='BDI forn'!D23 -> 0.136 | I6: =Resumo!G6 -> ABR/25 - SINAPI
A7: DATA BASE: | B7: =Resumo!B7 -> 2025-03-01 | E7: Encargos sociais - Horistas: | H7: ='Encargos Sociais'!E49 -> 1.1384 | I7: =Resumo!G7 -> FEV/25 - ORSE
A8: PRAZO: | B8: 90 dias | E8: Encargos sociais - Mensalista: | H8: ='Encargos Sociais'!F49 -> 0.7011 | I8: =Resumo!G8 -> MAI/25 - SBC
B9: Juá II | G9: Desconto: | H9: 0 | I9: =Resumo!G9 -> JAN/25 - EMBASA
A10: ITEM | B10: REFERÊNCIA | D10: DESCRIÇÃO | E10: UNID. | F10: QUANT. | G10: CUSTO UNITÁRIO | H10: PREÇO UNITÁRIO | I10: PREÇO TOTAL
B11: FONTE | C11: CÓDIGO
A12: 1 | D12: SERVIÇOS EM CAMPO | I12: =SUM(I13,I18,I21) -> 97317.99
A13: 1.1 | D13: Serviços Preliminares | I13: =SUM(I14:I17) -> 21314.29
A14: 1.1.1 | B14: PRÓPRIA | C14: 1 | D14: Levantamento de campo (Diagnóstico e levantamento de quantitativo) | E14: =VLOOKUP(A14,CPU!A$1:G$258,4,0) -> unid. | F14: 1 | G14: =TRUNC(CPU!G10,2) -> 2330.56 | H14: =TRUNC(G14*(1+$H$5),2) -> 2879.63 | I14: =TRUNC(F14*H14,2) -> 2879.63
A15: 1.1.2 | B15: SINAPI | C15: 98524 | D15: LIMPEZA MANUAL DE VEGETAÇÃO EM TERRENO COM ENXADA. AF_03/2024 | E15: M2 | F15: 1800 | G15: =TRUNC(VLOOKUP(C15,'SINAPI-CSD'!B8900:E9657,4,0),2) -> 4.89 | H15: =TRUNC(G15*(1+$H$5),2) -> 6.04 | I15: =TRUNC(F15*H15,2) -> 10872 | J15: ca
A16: 1.1.3 | B16: SINAPI | C16: 97913 | D16: TRANSPORTE COM CAMINHÃO BASCULANTE DE 6 M³, EM VIA URBANA EM REVESTIMENTO PRIMÁRIO (UNIDADE: M3XKM). AF_07/2020 | E16: M3XKM | F16: =Quantitativos!C12*Quantitativos!C13 -> 556 | G16: =TRUNC(VLOOKUP(C16,'SINAPI-CSD'!B8901:E9658,4,0),2) -> 3.32 | H16: 4.1 | I16: 2279.6 | J16: ca
A17: 1.1.4 | B17: PRÓPRIA | C17: CPU.08 | D17: Mobilização da equipe de vistoria | E17: unid. | F17: 1 | G17: =TRUNC(CPU!G69,2) -> 4275.71 | H17: 5283.06 | I17: 5283.06
A18: 1.2 | D18: Levantamento topográfico | I18: =SUM(I19:I19) -> 5175.91
A19: 1.2.1 | B19: ORSE | C19: 9346 | D19: Levantamento topográfico planimétrico cadastral | E19: m2 | F19: =Quantitativos!C7 -> 12037 | G19: =TRUNC(1-$H$9,2)*0.35 -> 0.35 | H19: =TRUNC(G19*(1+$H$5),2) -> 0.43 | I19: =TRUNC(F19*H19,2) -> 5175.91
A21: 1.3 | D21: Investigação Geológica e Geotécnica | I21: =SUM(I22:I23) -> 70827.79
A22: 1.3.1 | B22: SBC | C22: 000015 | D22: Sondagem Rotativa | E22: m | F22: =Quantitativos!C11 -> 45 | G22: ='PO Umburana'!G21 -> 1219.29 | H22: =TRUNC(G22*(1+$H$5),2) -> 1506.55 | I22: =TRUNC(F22*H22,2) -> 67794.75
A23: 1.3.2 | B23: EMBASA | C23: 32.04.61 | D23: ENSAIO DE PERDA DAGUA SOB PRESSAO | E23: unid. | F23: 4 | G23: ='PO Umburana'!G22 -> 613.68 | H23: =TRUNC(G23*(1+$H$5),2) -> 758.26 | I23: =TRUNC(F23*H23,2) -> 3033.04
A25: 2 | D25: LAUDOS E PROJETOS | I25: =SUM(I26,I28,I30,I33,I35) -> 88099.11
A26: 2.1 | D26: As is da Barragem | I26: =SUM(I27) -> 23319.98
A27: 2.1.1 | B27: PRÓPRIA | C27: =C14+2 -> 3 | D27: Projeto Geométrico | E27: unid. | F27: 1 | G27: =TRUNC(CPU!G28,2) -> 18873.41 | H27: =TRUNC(G27*(1+$H$5),2) -> 23319.98 | I27: =TRUNC(F27*H27,2) -> 23319.98
A28: 2.2 | D28: Estudo hidrológico e hidráulico | I28: =SUM(I29) -> 16003.88
A29: 2.2.1 | B29: PRÓPRIA | C29: =C27+1 -> 4 | D29: Relatório de estudo hidrológico e hidráulico | E29: unid. | F29: 1 | G29: =TRUNC(CPU!G37,2) -> 12952.32 | H29: =TRUNC(G29*(1+$H$5),2) -> 16003.88 | I29: =TRUNC(F29*H29,2) -> 16003.88
A30: 2.3 | D30: Estudo geológico e geotécnico | I30: =SUM(I31:I32) -> 25205.12
A31: 2.3.1 | B31: PRÓPRIA | C31: =C29+1 -> 5 | D31: Relatório de avaliação geológico e geotécnico | E31: unid. | F31: 1 | G31: =TRUNC(CPU!G45,2) -> 10199.55 | H31: 12602.56 | I31: =TRUNC(F31*H31,2) -> 12602.56
A32: 2.3.2 | B32: PRÓPRIA | C32: =C31+1 -> 6 | D32: Estudo de Estabilidade | E32: unid. | F32: 1 | G32: =TRUNC(CPU!G53,2) -> 10199.55 | H32: 12602.56 | I32: =TRUNC(F32*H32,2) -> 12602.56
A33: 2.4 | D33: Projeto de recuperação das anomalias | I33: =SUM(I34) -> 23234.71
A34: 2.4.1 | B34: PRÓPRIA | C34: =C32+1 -> 7 | D34: Projeto executivo e Documentação Técnica | E34: unid. | F34: 1 | G34: =TRUNC(CPU!G61,2) -> 18804.4 | H34: 23234.71 | I34: =TRUNC(F34*H34,2) -> 23234.71
A35: 2.5 | D35: Anotação de Responsabilidade técnica pelos projetos | I35: =SUM(I36) -> 335.42
A36: 2.5.1 | B36: PRÓPRIA | C36: CPU.09 | D36: ART dos Projetos | E36: unid. | F36: 1 | G36: =TRUNC(CPU!F81,2) -> 271.47 | H36: =TRUNC(G36*(1+$H$5),2) -> 335.42 | I36: =TRUNC(F36*H36,2) -> 335.42
D38: TOTAL (Custo): | I38: =TRUNC(SUMPRODUCT(F13:F35,G13:G35),2) -> 149819.14
D39: BDI e Encargos Sociais: | I39: =I40-I38 -> 35597.96
D40: TOTAL GERAL COM BDI: | I40: =TRUNC(SUMPRODUCT(F13:F36,H13:H36),2) -> 185417.1 | J40: VERIFICAÇÃO | K40: =SUM(I12,I25) -> 185417.1

Sheet PO Umburana
A1: Ministério da Integração e do Desenvolvimento Regional
A2: Companhia de Desenvolvimento dos Vales do São Francisco e do Parnaíba
A4: PLANILHA ORÇAMENTÁRIA - ORÇAMENTO NÃO DESONERADO
A5: OBRA: | B5: =Resumo!B5 -> Elaboração de estudos e projetos de engenharia nas barragens de Bom Jardim, Juá II e Umburana, localizadas no Estado De Pernambuco | G5: BDI (serv.): | H5: ='BDI serv'!D23 -> 0.2356 | I5: Bancos de dados:
A6: LOCAL: | B6: =Resumo!B6 -> BARRAGENS DE PERNAMBUCO | G6: BDI (forn.): | H6: ='BDI forn'!D23 -> 0.136 | I6: =Resumo!G6 -> ABR/25 - SINAPI
A7: DATA BASE: | B7: =Resumo!B7 -> 2025-03-01 | E7: Encargos sociais - Horistas: | H7: ='Encargos Sociais'!E49 -> 1.1384 | I7: =Resumo!G7 -> FEV/25 - ORSE
A8: PRAZO: | B8: 90 dias | E8: Encargos sociais - Mensalista: | H8: ='Encargos Sociais'!F49 -> 0.7011 | I8: =Resumo!G8 -> MAI/25 - SBC
B9: Umburana | G9: Desconto: | H9: 0 | I9: =Resumo!G9 -> JAN/25 - EMBASA
A10: ITEM | B10: REFERÊNCIA | D10: DESCRIÇÃO | E10: UNID. | F10: QUANT. | G10: CUSTO UNITÁRIO | H10: PREÇO UNITÁRIO | I10: PREÇO TOTAL
B11: FONTE | C11: CÓDIGO
A12: 1 | D12: SERVIÇOS EM CAMPO | I12: =SUM(I13,I18,I20) -> 50721.19
A13: 1.1 | D13: Serviços Preliminares | I13: =SUM(I14:I17) -> 14917.49
A14: 1.1.1 | B14: PRÓPRIA | C14: 1 | D14: Levantamento de campo (Diagnóstico e levantamento de quantitativo) | E14: =VLOOKUP(A14,CPU!A$1:G$258,4,0) -> unid. | F14: 1 | G14: =TRUNC(CPU!G10,2) -> 2330.56 | H14: =TRUNC(G14*(1+$H$5),2) -> 2879.63 | I14: =TRUNC(F14*H14,2) -> 2879.63
A15: 1.1.2 | B15: SINAPI | C15: 98524 | D15: LIMPEZA MANUAL DE VEGETAÇÃO EM TERRENO COM ENXADA. AF_03/2024 | E15: M2 | F15: 950 | G15: =TRUNC(VLOOKUP(C15,'SINAPI-CSD'!B8900:E9657,4,0),2) -> 4.89 | H15: =TRUNC(G15*(1+$H$5),2) -> 6.04 | I15: =TRUNC(F15*H15,2) -> 5738 | J15: ca
A16: 1.1.3 | B16: SINAPI | C16: 97913 | D16: TRANSPORTE COM CAMINHÃO BASCULANTE DE 6 M³, EM VIA URBANA EM REVESTIMENTO PRIMÁRIO (UNIDADE: M3XKM). AF_07/2020 | E16: M3XKM | F16: =Quantitativos!D12*Quantitativos!D13 -> 248 | G16: =TRUNC(VLOOKUP(C16,'SINAPI-CSD'!B8901:E9658,4,0),2) -> 3.32 | H16: 4.1 | I16: 1016.8 | J16: ca
A17: 1.1.4 | B17: PRÓPRIA | C17: CPU.08 | D17: Mobilização da equipe de vistoria | E17: unid. | F17: 1 | G17: =TRUNC(CPU!G69,2) -> 4275.71 | H17: 5283.06 | I17: 5283.06
A18: 1.2 | D18: Levantamento topográfico | I18: =SUM(I19:I19) -> 1133.11
A19: 1.2.1 | B19: ORSE | C19: 9346 | D19: Levantamento topográfico planimétrico cadastral | E19: m2 | F19: =Quantitativos!D7 -> 2635.15 | G19: =(1-$H$9)*0.35 -> 0.35 | H19: 0.43 | I19: =TRUNC(F19*H19,2) -> 1133.11
A20: 1.3 | D20: Investigação Geológica e Geotécnica | I20: =SUM(I21:I22) -> 34670.59
A21: 1.3.1 | B21: SBC | C21: 000015 | D21: Sondagem Rotativa | E21: m | F21: =Quantitativos!D11 -> 21 | G21: 1219.29 | H21: 1506.55 | I21: =TRUNC(F21*H21,2) -> 31637.55
A22: 1.3.2 | B22: EMBASA | C22: 32.04.61 | D22: ENSAIO DE PERDA DAGUA SOB PRESSAO | E22: unid. | F22: 4 | G22: 613.68 | H22: 758.26 | I22: =TRUNC(F22*H22,2) -> 3033.04
A24: 2 | D24: LAUDOS E PROJETOS | I24: =SUM(I25,I27,I29,I32,I34) -> 88099.12
A25: 2.1 | D25: As is da Barragem | I25: =SUM(I26) -> 23319.99
A26: 2.1.1 | B26: PRÓPRIA | C26: =C14+2 -> 3 | D26: Projeto Geométrico | E26: unid. | F26: 1 | G26: =CPU!G28 -> 18873.41909 | H26: 23319.99 | I26: =TRUNC(F26*H26,2) -> 23319.99
A27: 2.2 | D27: Estudo hidrológico e hidráulico | I27: =SUM(I28) -> 16003.88
A28: 2.2.1 | B28: PRÓPRIA | C28: =C26+1 -> 4 | D28: Relatório de estudo hidrológico e hidráulico | E28: unid. | F28: 1 | G28: =CPU!G37 -> 12952.32 | H28: 16003.88 | I28: =TRUNC(F28*H28,2) -> 16003.88
A29: 2.3 | D29: Estudo geológico e geotécnico | I29: =SUM(I30:I31) -> 25205.12
A30: 2.3.1 | B30: PRÓPRIA | C30: =C28+1 -> 5 | D30: Relatório de avaliação geológico e geotécnico | E30: unid. | F30: 1 | G30: =CPU!G45 -> 10199.55 | H30: 12602.56 | I30: =TRUNC(F30*H30,2) -> 12602.56
A31: 2.3.2 | B31: PRÓPRIA | C31: =C30+1 -> 6 | D31: Estudo de Estabilidade | E31: unid. | F31: 1 | G31: =CPU!G53 -> 10199.55 | H31: 12602.56 | I31: =TRUNC(F31*H31,2) -> 12602.56
A32: 2.4 | D32: Projeto de recuperação das anomalias | I32: =SUM(I33) -> 23234.71
A33: 2.4.1 | B33: PRÓPRIA | C33: =C31+1 -> 7 | D33: Projeto executivo e Documentação Técnica | E33: unid. | F33: 1 | G33: =CPU!G61 -> 18804.4 | H33: 23234.71 | I33: =TRUNC(F33*H33,2) -> 23234.71
A34: 2.5 | D34: Anotação de Responsabilidade técnica pelos projetos | I34: =SUM(I35) -> 335.42
A35: 2.5.1 | B35: PRÓPRIA | C35: CPU.09 | D35: ART dos Projetos | E35: unid. | F35: 1 | G35: =TRUNC(CPU!F81,2) -> 271.47 | H35: =TRUNC(G35*(1+$H$5),2) -> 335.42 | I35: =TRUNC(F35*H35,2) -> 335.42
D37: TOTAL (Custo): | I37: =TRUNC(SUMPRODUCT(F13:F34,G13:G34),2) -> 112086.48
D38: BDI e Encargos Sociais: | I38: =I39-I37 -> 26733.83
D39: TOTAL GERAL COM BDI: | I39: =TRUNC(SUMPRODUCT(F13:F35,H13:H35),2) -> 138820.31 | J39: VERIFICAÇÃO | K39: =SUM(I12,I24) -> 138820.31

Sheet CPU
A1: Ministério da Integração e do Desenvolvimento Regional
A2: Companhia de Desenvolvimento dos Vales do São Francisco e do Parnaíba
A4: COMPOSIÇÕES DE PREÇOS UNITÁRIOS - ORÇAMENTO NÃO DESONERADO
A5: ='PO Bom Jardim'!A5 -> OBRA: | B5: =Resumo!B5 -> Elaboração de estudos e projetos de engenharia nas barragens de Bom Jardim, Juá II e Umburana, localizadas no Estado De Pernambuco
A6: ='PO Bom Jardim'!A6 -> LOCAL: | B6: =Resumo!B6 -> BARRAGENS DE PERNAMBUCO
A7: ='PO Bom Jardim'!A7 -> DATA BASE: | B7: =Resumo!B7 -> 2025-03-01
A8: ='PO Bom Jardim'!A8 -> PRAZO: | B8: 90 dias
A9: REFERÊNCIA | B9: CÓDIGO | C9: DESCRIÇÃO | D9: UNIDADE | E9: ÍNDICE | F9: CUSTO UNITÁRIO | G9: CUSTO TOTAL
A10: ='PO Bom Jardim'!A14 -> 1.1.1 | B10: =VLOOKUP(A10,'PO Bom Jardim'!A$10:F$2009,3) -> 1 | C10: =VLOOKUP(B10,'PO Bom Jardim'!C$10:F$2009,2,0) -> Levantamento de campo (Diagnóstico e levantamento de quantitativo) | D10: unid. | E10: 1 | G10: =SUM(G14,G13,G12,G11) -> 2330.56 | H10: S | I10: 1 dia
A11: =A10 -> 1.1.1 | C11: MATERIAL | G11: 0 | H11: ss
A12: =A10 -> 1.1.1 | C12: EQUIPAMENTOS | G12: 0 | H12: ss
A13: =A10 -> 1.1.1 | C13: SERVIÇOS | G13: 0 | H13: ss
A14: =A10 -> 1.1.1 | C14: MÃO DE OBRA | G14: =SUM(G15:G16) -> 2330.56 | H14: mdo
A15: SINAPI | B15: 90777 | C15: ENGENHEIRO CIVIL DE OBRA JUNIOR COM ENCARGOS COMPLEMENTARES | D15: H | E15: 8 | F15: =VLOOKUP(B15,'SINAPI-CSD'!B11:E9657,4,0) -> 129.55 | G15: =E15*F15 -> 1036.4 | H15: ca
A16: SINAPI | B16: 90779 | C16: ENGENHEIRO CIVIL DE OBRA SENIOR COM ENCARGOS COMPLEMENTARES | D16: H | E16: 8 | F16: =VLOOKUP(B16,'SINAPI-CSD'!B12:E9658,4,0) -> 161.77 | G16: =E16*F16 -> 1294.16 | H16: ca
A18: ='PO Bom Jardim'!A24 -> 1.4.1 | B18: =VLOOKUP(A18,'PO Bom Jardim'!A$10:F$2009,3) -> 2 | C18: =VLOOKUP(B18,'PO Bom Jardim'!C$10:F$2009,2,0) -> Retirada da água para inspeção dos equipamentos | D18: UNID. | E18: 1 | G18: =SUM(G24,G23,G20,G19) -> 1398.36 | H18: S | I18: 1 dia
A19: =A18 -> 1.4.1 | C19: MATERIAL | G19: 0 | H19: ss
A20: =A18 -> 1.4.1 | C20: EQUIPAMENTOS | G20: =SUM(G21:G22) -> 90.52 | H20: ss
A21: SINAPI | B21: 73536 | C21: MOTOBOMBA CENTRÍFUGA, MOTOR A GASOLINA, POTÊNCIA 5,42 HP, BOCAIS 1 1/2" X 1", DIÂMETRO ROTOR 143 MM HM/Q = 6 MCA / 16,8 M3/H A 38 MCA / 6,6 M3/H - CHP DIURNO. AF_06/2014 | D21: CHP | E21: 4 | F21: =VLOOKUP(B21,'SINAPI-CSD'!B17:E9663,4,0) -> 22.45 | G21: =E21*F21 -> 89.8 | H21: ca
A22: SINAPI | B22: 5806 | C22: MOTOBOMBA CENTRÍFUGA, MOTOR A GASOLINA, POTÊNCIA 5,42 HP, BOCAIS 1 1/2" X 1", DIÂMETRO ROTOR 143 MM HM/Q = 6 MCA / 16,8 M3/H A 38 MCA / 6,6 M3/H - CHI DIURNO. AF_06/2014 | D22: CHI | E22: 4 | F22: =VLOOKUP(B22,'SINAPI-CSD'!B18:E9664,4,0) -> 0.18 | G22: =E22*F22 -> 0.72 | H22: ca
A23: =A18 -> 1.4.1 | C23: SERVIÇOS | G23: 0 | H23: ss
A24: =A18 -> 1.4.1 | C24: MÃO DE OBRA | G24: =SUM(G25:G26) -> 1307.84 | H24: mdo
A25: SINAPI | B25: 88267 | C25: ENCANADOR OU BOMBEIRO HIDRÁULICO COM ENCARGOS COMPLEMENTARES | D25: H | E25: 8 | F25: =VLOOKUP(B25,'SINAPI-CSD'!B21:E9667,4,0) -> 27.62 | G25: =E25*F25 -> 220.96 | H25: ca
A26: SINAPI | B26: 90778 | C26: ENGENHEIRO CIVIL DE OBRA PLENO COM ENCARGOS COMPLEMENTARES | D26: H | E26: 8 | F26: =VLOOKUP(B26,'SINAPI-CSD'!B22:E9668,4,0) -> 135.86 | G26: =E26*F26 -> 1086.88 | H26: ca
A28: ='PO Bom Jardim'!A28 -> 2.1.1 | B28: =VLOOKUP(A28,'PO Bom Jardim'!A$10:F$2009,3) -> 3 | C28: =VLOOKUP(B28,'PO Bom Jardim'!C$10:F$2009,2,0) -> Projeto Geométrico | D28: UNID. | E28: 1 | G28: =SUM(G33,G32,G30,G29) -> 18873.41909 | H28: S | I28: 15 dias
A29: =A28 -> 2.1.1 | C29: MATERIAL | G29: 0 | H29: ss
A30: =A28 -> 2.1.1 | C30: EQUIPAMENTOS | G30: =SUM(G31:G31) -> 69.01908676 | H30: ss
A31: COTAÇÃO | B31: CT-2 | C31: Programas de desenho assistido pelo computador (Softwares CAD) | D31: H | E31: 80 | F31: =Cotação!H13 -> 0.8627385845 | G31: =F31*E31 -> 69.01908676
A32: =A28 -> 2.1.1 | C32: SERVIÇOS | G32: 0 | H32: ss
A33: =A28 -> 2.1.1 | C33: MÃO DE OBRA | G33: =SUM(G34:G36) -> 18804.4 | H33: mdo
A34: SINAPI | B34: 90777 | C34: ENGENHEIRO CIVIL DE OBRA JUNIOR COM ENCARGOS COMPLEMENTARES | D34: H | E34: 80 | F34: =VLOOKUP(B34,'SINAPI-CSD'!B29:E9675,4,0) -> 129.55 | G34: =E34*F34 -> 10364 | H34: ca
A35: SINAPI | B35: 90779 | C35: ENGENHEIRO CIVIL DE OBRA SENIOR COM ENCARGOS COMPLEMENTARES | D35: H | E35: 40 | F35: =VLOOKUP(B35,'SINAPI-CSD'!B30:E9676,4,0) -> 161.77 | G35: =E35*F35 -> 6470.8 | H35: ca
A36: SINAPI | B36: 90775 | C36: DESENHISTA PROJETISTA COM ENCARGOS COMPLEMENTARES | D36: H | E36: =80 -> 80 | F36: =VLOOKUP(B36,'SINAPI-CSD'!B30:E9676,4,0) -> 24.62 | G36: =E36*F36 -> 1969.6
A37: ='PO Bom Jardim'!A30 -> 2.2.1 | B37: =VLOOKUP(A37,'PO Bom Jardim'!A$10:F$2009,3) -> 4 | C37: =VLOOKUP(B37,'PO Bom Jardim'!C$10:F$2009,2,0) -> Relatório de estudo hidrológico e hidráulico | D37: UNID. | E37: 1 | G37: =SUM(G41,G40,G39,G38) -> 12952.32 | H37: S | I37: 15 dias
A38: =A37 -> 2.2.1 | C38: MATERIAL | G38: 0 | H38: ss
A39: =A37 -> 2.2.1 | C39: EQUIPAMENTOS | G39: 0 | H39: ss
A40: =A37 -> 2.2.1 | C40: SERVIÇOS | G40: 0 | H40: ss
A41: =A37 -> 2.2.1 | C41: MÃO DE OBRA | G41: =SUM(G42:G43) -> 12952.32 | H41: mdo
A42: SINAPI | B42: 90777 | C42: ENGENHEIRO CIVIL DE OBRA JUNIOR COM ENCARGOS COMPLEMENTARES | D42: H | E42: 80 | F42: =VLOOKUP(B42,'SINAPI-CSD'!B37:E9683,4,0) -> 129.55 | G42: =E42*F42 -> 10364 | H42: ca
A43: SINAPI | B43: 90779 | C43: ENGENHEIRO CIVIL DE OBRA SENIOR COM ENCARGOS COMPLEMENTARES | D43: H | E43: 16 | F43: =VLOOKUP(B43,'SINAPI-CSD'!B38:E9684,4,0) -> 161.77 | G43: =E43*F43 -> 2588.32 | H43: ca
A45: ='PO Bom Jardim'!A32 -> 2.3.1 | B45: =VLOOKUP(A45,'PO Bom Jardim'!A$10:F$2009,3) -> 5 | C45: =VLOOKUP(B45,'PO Bom Jardim'!C$10:F$2009,2,0) -> Relatório de avaliação geológico e geotécnico | D45: UNID. | E45: 1 | G45: =SUM(G49,G48,G47,G46) -> 10199.55 | H45: S | I45: 15 dias
A46: =A45 -> 2.3.1 | C46: MATERIAL | G46: 0 | H46: ss
A47: =A45 -> 2.3.1 | C47: EQUIPAMENTOS | G47: 0 | H47: ss
A48: =A45 -> 2.3.1 | C48: SERVIÇOS | G48: 0 | H48: ss
A49: =A45 -> 2.3.1 | C49: MÃO DE OBRA | G49: =SUM(G50:G51) -> 10199.55 | H49: mdo
A50: SINAPI | B50: 90777 | C50: ENGENHEIRO CIVIL DE OBRA JUNIOR COM ENCARGOS COMPLEMENTARES | D50: H | E50: 60 | F50: =VLOOKUP(B50,'SINAPI-CSD'!B45:E9691,4,0) -> 129.55 | G50: =E50*F50 -> 7773 | H50: ca
A51: SINAPI | B51: 90779 | C51: ENGENHEIRO CIVIL DE OBRA SENIOR COM ENCARGOS COMPLEMENTARES | D51: H | E51: 15 | F51: =VLOOKUP(B51,'SINAPI-CSD'!B46:E9692,4,0) -> 161.77 | G51: =E51*F51 -> 2426.55 | H51: ca
A53: ='PO Bom Jardim'!A33 -> 2.3.2 | B53: =VLOOKUP(A53,'PO Bom Jardim'!A$10:F$2009,3) -> 6 | C53: =VLOOKUP(B53,'PO Bom Jardim'!C$10:F$2009,2,0) -> Estudo de Estabilidade | D53: UNID. | E53: 1 | G53: =SUM(G57,G56,G55,G54) -> 10199.55 | H53: S | I53: 15 dias
A54: =A53 -> 2.3.2 | C54: MATERIAL | G54: 0 | H54: ss
A55: =A53 -> 2.3.2 | C55: EQUIPAMENTOS | G55: 0 | H55: ss
A56: =A53 -> 2.3.2 | C56: SERVIÇOS | G56: 0 | H56: ss
A57: =A53 -> 2.3.2 | C57: MÃO DE OBRA | G57: =SUM(G58:G59) -> 10199.55 | H57: mdo
A58: SINAPI | B58: 90777 | C58: ENGENHEIRO CIVIL DE OBRA JUNIOR COM ENCARGOS COMPLEMENTARES | D58: H | E58: 60 | F58: =VLOOKUP(B58,'SINAPI-CSD'!B53:E9699,4,0) -> 129.55 | G58: =E58*F58 -> 7773 | H58: ca
A59: SINAPI | B59: 90779 | C59: ENGENHEIRO CIVIL DE OBRA SENIOR COM ENCARGOS COMPLEMENTARES | D59: H | E59: 15 | F59: =VLOOKUP(B59,'SINAPI-CSD'!B54:E9700,4,0) -> 161.77 | G59: =E59*F59 -> 2426.55 | H59: ca
A61: ='PO Bom Jardim'!A35 -> 2.4.1 | B61: =VLOOKUP(A61,'PO Bom Jardim'!A$10:F$2009,3) -> 7 | C61: =VLOOKUP(B61,'PO Bom Jardim'!C$10:F$2009,2,0) -> Projeto executivo e Documentação Técnica | D61: UNID. | E61: 1 | G61: =SUM(G65,G64,G63,G62) -> 18804.4 | H61: S | I61: 15 dias
A62: =A61 -> 2.4.1 | C62: MATERIAL | G62: 0 | H62: ss
A63: =A61 -> 2.4.1 | C63: EQUIPAMENTOS | G63: 0 | H63: ss
A64: =A61 -> 2.4.1 | C64: SERVIÇOS | G64: 0 | H64: ss
A65: =A61 -> 2.4.1 | C65: MÃO DE OBRA | G65: =SUM(G66:G68) -> 18804.4 | H65: mdo
A66: SINAPI | B66: 90777 | C66: ENGENHEIRO CIVIL DE OBRA JUNIOR COM ENCARGOS COMPLEMENTARES | D66: H | E66: 80 | F66: =VLOOKUP(B66,'SINAPI-CSD'!B61:E9707,4,0) -> 129.55 | G66: =E66*F66 -> 10364 | H66: ca
A67: SINAPI | B67: 90779 | C67: ENGENHEIRO CIVIL DE OBRA SENIOR COM ENCARGOS COMPLEMENTARES | D67: H | E67: 40 | F67: =VLOOKUP(B67,'SINAPI-CSD'!B62:E9708,4,0) -> 161.77 | G67: =E67*F67 -> 6470.8 | H67: ca
A68: SINAPI | B68: 90775 | C68: DESENHISTA PROJETISTA COM ENCARGOS COMPLEMENTARES | D68: H | E68: 80 | F68: =VLOOKUP(B68,'SINAPI-CSD'!B30:E9676,4,0) -> 24.62 | G68: =F68*E68 -> 1969.6 | H68: ca
A69: ='PO Bom Jardim'!A17 -> 1.1.4 | B69: =VLOOKUP(A69,'PO Bom Jardim'!A$10:F$2009,3) -> CPU.08 | C69: =VLOOKUP(B69,'PO Bom Jardim'!C$10:F$2009,2,0) -> Mobilização da equipe de vistoria | D69: UNID. | E69: 1 | G69: =SUM(G72,G70) -> 4275.715016 | H69: s
A70: =A69 -> 1.1.4 | C70: MATERIAL | G70: =G71 -> 1060.17 | H70: ss
A71: CODEVASF | B71: DP | C71: DIÁRIA + ALIMENTAÇÃO | D71: DIA | E71: 3 | F71: 353.39 | G71: =E71*F71 -> 1060.17 | H71: i
A72: =A69 -> 1.1.4 | C72: EQUIPAMENTOS | G72: =SUM(G73:G74) -> 3215.545016 | H72: ss
A73: CODEVASF | B73: PRÓPRIA | C73: Veículo tipo pick-up, cabine dupla - 2.0 16V 4x4 diesel Aut. | D73: DIA | E73: 3 | F73: ='CPU-VEICULO_PickUp'!C11 -> 345.292783 | G73: =E73*F73 -> 1035.878349 | H73: i
A74: 2025-02-01 | B74: COTAÇÃO | C74: Passagem aérea | D74: UN | E74: 2 | F74: ='Passagens aéreas'!C4 -> 1089.833333 | G74: =E74*F74 -> 2179.666667 | H74: ca
A75: =A69 -> 1.1.4 | C75: SERVIÇOS
A76: =A69 -> 1.1.4 | C76: MÃO DE OBRA
A77: ='PO Bom Jardim'!A37 -> 2.5.1 | B77: =VLOOKUP(A77,'PO Bom Jardim'!A$10:F$2009,3) -> CPU.09 | C77: Anotação de Responsabilidade técnica pelos projetos | D77: un | G77: =SUM(G78,G79,G80,G82) -> 271.47
A78: =A77 -> 2.5.1 | C78: MATERIAL | G78: 0
A79: =A77 -> 2.5.1 | C79: EQUIPAMENTOS | G79: 0
A80: =A77 -> 2.5.1 | C80: SERVIÇOS | G80: =G81 -> 271.47
A81: CREA-PE | B81: CONSULTA | C81: ART para contratos acima de R$ 15.000 | D81: un | E81: 1 | F81: 271.47 | G81: =TRUNC((E81*F81),2) -> 271.47
A82: =A78 -> 2.5.1 | C82: MÃO DE OBRA

Sheet Quantitativos
A1: Ministério da Integração e do Desenvolvimento Regional
A2: Companhia de Desenvolvimento dos Vales do São Francisco e do Parnaíba
A4: QUANTITATIVO
A5: DESCRIÇÃO DO SERVIÇO | B5: Barragens | E5: TOTAL
B6: ='PO Bom Jardim'!B9 -> Bom Jardim | C6: ='PO Juá II'!B9 -> Juá II | D6: ='PO Umburana'!B9 -> Umburana
A7: Área (m²) | B7: 6289 | C7: 12037 | D7: 2635.15 | E7: =B7+C7+D7 -> 20961.15
A8: Área de roçada (m²) | B8: 20 | C8: 20 | D8: 20 | E8: 60
A9: Altura da Barragem (m) | B9: 13.5 | C9: 12.5 | D9: 6.5 | E9: 32.5
A10: Crista da Barragem (m) | B10: 249.4 | C10: 287.55 | D10: 160 | E10: 696.95
A11: Sondagem Rotativa (m) | B11: =ROUND(B9*0.5*(B10/40),0) -> 42 | C11: =ROUND(C9*0.5*(C10/40),0) -> 45 | D11: =ROUND(D9*0.8*(D10/40),0) -> 21 | E11: =B11+C11+D11 -> 108 | F11: Furo a cada 40 m
A12: Volume de resíduo (m³) | B12: =B8*0.1 -> 2 | C12: =C8*0.1 -> 2 | D12: =D8*0.1 -> 2 | E12: 6
A13: Distância da barragem até Petrolina (km) | B13: 156 | C13: 278 | D13: 124 | E13: -
A14: Tempo gasto de carro da barragem até Petrolina (h) | B14: 2.38 | C14: 4 | D14: 1.63 | E14: -
A18: Deslocamento (Ida e volta) | B18: =B13*2 -> 312 | C18: =C13*2 -> 556 | D18: =D13*2 -> 248
A19: Média | B19: =AVERAGE(B18:D18) -> 372
A20: Mediana | B20: =MEDIAN(B18:D18) -> 312

Sheet Cronograma Bom Jardim
A1: Ministério da Integração e do Desenvolvimento Regional
A2: Companhia de Desenvolvimento dos Vales do São Francisco e do Parnaíba
A3: ='[1]Planilha Orçamentária'!A3:I3 -> 0
A4: CRONOGRAMA FÍSICO-FINANCEIRO NÃO DESONERADO
A5: ='PO Bom Jardim'!A5 -> OBRA: | B5: =Resumo!B5 -> Elaboração de estudos e projetos de engenharia nas barragens de Bom Jardim, Juá II e Umburana, localizadas no Estado De Pernambuco
A6: ='PO Bom Jardim'!A6 -> LOCAL: | B6: =Resumo!B6 -> BARRAGENS DE PERNAMBUCO
A7: ='PO Bom Jardim'!A7 -> DATA BASE: | B7: =Resumo!B7 -> 2025-03-01
A8: ='PO Bom Jardim'!A8 -> PRAZO: | B8: 90 dias
A9: ITEM | B9: DESCRIÇÃO | C9: TOTAL POR ETAPA | D9: MESES | G9: TOTAL
D10: 1 | E10: 2 | F10: 3
A11: 1.1 | B11: =VLOOKUP(A11,'PO Bom Jardim'!A$10:I$1003,4) -> Serviços Preliminares | C11: =VLOOKUP(A11,'PO Bom Jardim'!A$10:I$1003,9) -> 18501.89 | D11: =$C11*D12 -> 18501.89 | G11: =SUM(D11:F11) -> 18501.89 | H11: R$
C12: =C11/C11 -> 1 | D12: 1 | G12: 1 | H12: %
A13: 1.2 | B13: =VLOOKUP(A13,'PO Bom Jardim'!A$10:I$1003,4) -> Levantamento topográfico | C13: =VLOOKUP(A13,'PO Bom Jardim'!A$10:I$1003,9) -> 2704.27 | D13: =$C13*D14 -> 2704.27 | G13: 2704.27 | H13: R$
C14: =C13/C13 -> 1 | D14: 1 | G14: 1 | H14: %
A15: 1.3 | B15: =VLOOKUP(A15,'PO Bom Jardim'!A$10:I$1003,4) -> Investigação Geológica e Geotécnica | C15: =VLOOKUP(A15,'PO Bom Jardim'!A$10:I$1003,9) -> 66308.14 | D15: =$C15*D16 -> 66308.14 | G15: 66308.14 | H15: R$
C16: =C15/C15 -> 1 | D16: 1 | G16: 1 | H16: %
A17: 1.4 | B17: =VLOOKUP(A17,'PO Bom Jardim'!A$10:I$1003,4) -> Bombeamento do acúmulo de água na casa de controle | C17: =VLOOKUP(A17,'PO Bom Jardim'!A$10:I$1003,9) -> 1727.81 | D17: =$C17*D18 -> 1727.81 | G17: 1727.81 | H17: R$
C18: =C17/C17 -> 1 | D18: 1 | G18: 1 | H18: %
A19: 2.1 | B19: =VLOOKUP(A19,'PO Bom Jardim'!A$10:I$1003,4) -> As is da Barragem | C19: =VLOOKUP(A19,'PO Bom Jardim'!A$10:I$1003,9) -> 23319.98 | E19: =$C19*E20 -> 23319.98 | G19: 23319.98 | H19: R$
C20: =C19/C19 -> 1 | E20: 1 | G20: 1 | H20: %
A21: 2.2 | B21: =VLOOKUP(A21,'PO Bom Jardim'!A$10:I$1003,4) -> Estudo hidrológico e hidráulico | C21: =VLOOKUP(A21,'PO Bom Jardim'!A$10:I$1003,9) -> 16003.88 | E21: =$C21*E22 -> 16003.88 | G21: 16003.88 | H21: R$
C22: =C21/C21 -> 1 | E22: 1 | G22: 1 | H22: %
A23: 2.3 | B23: =VLOOKUP(A23,'PO Bom Jardim'!A$10:I$1003,4) -> Estudo geológico e geotécnico | C23: =VLOOKUP(A23,'PO Bom Jardim'!A$10:I$1003,9) -> 25205.12 | F23: =$C23*F24 -> 25205.12 | G23: 25205.12 | H23: R$
C24: =C23/C23 -> 1 | F24: 1 | G24: 1 | H24: %
A25: 2.4 | B25: =VLOOKUP(A25,'PO Bom Jardim'!A$10:I$1003,4) -> Projeto de recuperação das anomalias | C25: =VLOOKUP(A25,'PO Bom Jardim'!A$10:I$1003,9) -> 23234.71 | F25: =$C25*F26 -> 23234.71 | G25: 23234.71 | H25: R$
C26: =C25/C25 -> 1 | F26: 1 | G26: 1 | H26: %
B27: VALOR TOTAL: | C27: =SUMIF($H$11:$H$26,"R$",C$11:C$26) -> 177005.8 | D27: =SUMIF($H$11:$H$26,"R$",D$11:D$26) -> 89242.11 | E27: =SUMIF($H$11:$H$26,"R$",E$11:E$26) -> 39323.86 | F27: =SUMIF($H$11:$H$26,"R$",F$11:F$26) -> 48439.83 | G27: =SUMIF($H$11:$H$26,"R$",G$11:G$26) -> 177005.8
B28: VALOR ACUMULADO: | D28: =D27 -> 89242.11 | E28: =E27+D28 -> 128565.97 | F28: =F27+E28 -> 177005.8 | G28: =F28 -> 177005.8
B29: FÍSICO PARCIAL: | D29: =SUMIF($H$11:$H$26,"R$",D$11:D$26)/$C$27 -> 0.5041761908 | E29: =SUMIF($H$11:$H$26,"R$",E$11:E$26)/$C$27 -> 0.2221614207 | F29: =SUMIF($H$11:$H$26,"R$",F$11:F$26)/$C$27 -> 0.2736623885 | G29: =G27/$C$27 -> 1
B30: AVANÇO FÍSICO: | D30: =D29 -> 0.5041761908 | E30: =E29+D30 -> 0.7263376115 | F30: =F29+E30 -> 1 | G30: =F30 -> 1

Sheet Cronograma Juá II
A1: Ministério da Integração e do Desenvolvimento Regional
A2: Companhia de Desenvolvimento dos Vales do São Francisco e do Parnaíba
A3: ='[1]Planilha Orçamentária'!A3:I3 -> 0
A4: CRONOGRAMA FÍSICO-FINANCEIRO NÃO DESONERADO
A5: ='PO Bom Jardim'!A5 -> OBRA: | B5: =Resumo!B5 -> Elaboração de estudos e projetos de engenharia nas barragens de Bom Jardim, Juá II e Umburana, localizadas no Estado De Pernambuco
A6: ='PO Bom Jardim'!A6 -> LOCAL: | B6: =Resumo!B6 -> BARRAGENS DE PERNAMBUCO
A7: ='PO Bom Jardim'!A7 -> DATA BASE: | B7: =Resumo!B7 -> 2025-03-01
A8: ='PO Bom Jardim'!A8 -> PRAZO: | B8: 90 dias
A9: ITEM | B9: DESCRIÇÃO | C9: TOTAL POR ETAPA | D9: MESES | G9: TOTAL
D10: 1 | E10: 2 | F10: 3
A11: 1.1 | B11: =VLOOKUP(A11,'PO Juá II'!A$10:I$1002,4) -> Serviços Preliminares | C11: =VLOOKUP(A11,'PO Juá II'!A$10:I$1002,9) -> 21314.29 | D11: =$C11*D12 -> 21314.29 | G11: =SUM(D11:F11) -> 21314.29 | H11: R$
C12: =C11/C11 -> 1 | D12: 1 | G12: 1 | H12: %
A13: 1.2 | B13: =VLOOKUP(A13,'PO Juá II'!A$10:I$1002,4) -> Levantamento topográfico | C13: =VLOOKUP(A13,'PO Juá II'!A$10:I$1002,9) -> 5175.91 | D13: =$C13*D14 -> 5175.91 | G13: 5175.91 | H13: R$
C14: =C13/C13 -> 1 | D14: 1 | G14: 1 | H14: %
A15: 1.3 | B15: =VLOOKUP(A15,'PO Juá II'!A$10:I$1002,4) -> Investigação Geológica e Geotécnica | C15: =VLOOKUP(A15,'PO Juá II'!A$10:I$1002,9) -> 70827.79 | D15: =$C15*D16 -> 70827.79 | G15: 70827.79 | H15: R$
C16: =C15/C15 -> 1 | D16: 1 | G16: 1 | H16: %
A17: 2.1 | B17: =VLOOKUP(A17,'PO Juá II'!A$10:I$1002,4) -> As is da Barragem | C17: =VLOOKUP(A17,'PO Juá II'!A$10:I$1002,9) -> 23319.98 | E17: =$C17*E18 -> 23319.98 | G17: 23319.98 | H17: R$
C18: =C17/C17 -> 1 | E18: 1 | G18: 1 | H18: %
A19: 2.2 | B19: =VLOOKUP(A19,'PO Juá II'!A$10:I$1002,4) -> Estudo hidrológico e hidráulico | C19: =VLOOKUP(A19,'PO Juá II'!A$10:I$1002,9) -> 16003.88 | E19: =$C19*E20 -> 16003.88 | G19: 16003.88 | H19: R$
C20: =C19/C19 -> 1 | E20: 1 | G20: 1 | H20: %
A21: 2.3 | B21: =VLOOKUP(A21,'PO Juá II'!A$10:I$1002,4) -> Estudo geológico e geotécnico | C21: =VLOOKUP(A21,'PO Juá II'!A$10:I$1002,9) -> 25205.12 | F21: =$C21*F22 -> 25205.12 | G21: 25205.12 | H21: R$
C22: =C21/C21 -> 1 | F22: 1 | G22: 1 | H22: %
A23: 2.4 | B23: =VLOOKUP(A23,'PO Juá II'!A$10:I$1002,4) -> Projeto de recuperação das anomalias | C23: =VLOOKUP(A23,'PO Juá II'!A$10:I$1002,9) -> 23234.71 | F23: =$C23*F24 -> 23234.71 | G23: 23234.71 | H23: R$
C24: =C23/C23 -> 1 | F24: 1 | G24: 1 | H24: %
B25: VALOR TOTAL: | C25: =SUMIF($H$11:$H$24,"R$",C$11:C$24) -> 185081.68 | D25: =SUMIF($H$11:$H$24,"R$",D$11:D$24) -> 97317.99 | E25: =SUMIF($H$11:$H$24,"R$",E$11:E$24) -> 39323.86 | F25: =SUMIF($H$11:$H$24,"R$",F$11:F$24) -> 48439.83 | G25: =SUMIF($H$11:$H$24,"R$",G$11:G$24) -> 185081.68
B26: VALOR ACUMULADO: | D26: =D25 -> 97317.99 | E26: =E25+D26 -> 136641.85 | F26: =F25+E26 -> 185081.68 | G26: =F26 -> 185081.68
B27: FÍSICO PARCIAL: | D27: =SUMIF($H$11:$H$24,"R$",D$11:D$24)/$C$25 -> 0.5258110365 | E27: =SUMIF($H$11:$H$24,"R$",E$11:E$24)/$C$25 -> 0.2124675981 | F27: =SUMIF($H$11:$H$24,"R$",F$11:F$24)/$C$25 -> 0.2617213654 | G27: =G25/$C$25 -> 1
B28: AVANÇO FÍSICO: | D28: =D27 -> 0.5258110365 | E28: =E27+D28 -> 0.7382786346 | F28: =F27+E28 -> 1 | G28: =F28 -> 1

Sheet Cronograma Umburana
A1: Ministério da Integração e do Desenvolvimento Regional
A2: Companhia de Desenvolvimento dos Vales do São Francisco e do Parnaíba
A3: ='[1]Planilha Orçamentária'!A3:I3 -> 0
A4: CRONOGRAMA FÍSICO-FINANCEIRO NÃO DESONERADO
A5: ='PO Bom Jardim'!A5 -> OBRA: | B5: =Resumo!B5 -> Elaboração de estudos e projetos de engenharia nas barragens de Bom Jardim, Juá II e Umburana, localizadas no Estado De Pernambuco
A6: ='PO Bom Jardim'!A6 -> LOCAL: | B6: =Resumo!B6 -> BARRAGENS DE PERNAMBUCO
A7: ='PO Bom Jardim'!A7 -> DATA BASE: | B7: =Resumo!B7 -> 2025-03-01
A8: ='PO Bom Jardim'!A8 -> PRAZO: | B8: 90 dias
A9: ITEM | B9: DESCRIÇÃO | C9: TOTAL POR ETAPA | D9: MESES | G9: TOTAL
D10: 1 | E10: 2 | F10: 3
A11: 1.1 | B11: =VLOOKUP(A11,'PO Umburana'!A$10:I$1003,4) -> Serviços Preliminares | C11: =VLOOKUP(A11,'PO Umburana'!A$10:I$1003,9) -> 14917.49 | D11: =$C11*D12 -> 14917.49 | G11: =SUM(D11:F11) -> 14917.49 | H11: R$
C12: =C11/C11 -> 1 | D12: 1 | G12: 1 | H12: %
A13: 1.2 | B13: =VLOOKUP(A13,'PO Umburana'!A$10:I$1003,4) -> Levantamento topográfico | C13: =VLOOKUP(A13,'PO Umburana'!A$10:I$1003,9) -> 1133.11 | D13: =$C13*D14 -> 1133.11 | G13: 1133.11 | H13: R$
C14: =C13/C13 -> 1 | D14: 1 | G14: 1 | H14: %
A15: 1.3 | B15: =VLOOKUP(A15,'PO Umburana'!A$10:I$1003,4) -> Investigação Geológica e Geotécnica | C15: =VLOOKUP(A15,'PO Umburana'!A$10:I$1003,9) -> 34670.59 | D15: =$C15*D16 -> 34670.59 | G15: 34670.59 | H15: R$
C16: =C15/C15 -> 1 | D16: 1 | G16: 1 | H16: %
A17: 2.1 | B17: =VLOOKUP(A17,'PO Umburana'!A$10:I$1003,4) -> As is da Barragem | C17: =VLOOKUP(A17,'PO Umburana'!A$10:I$1003,9) -> 23319.99 | E17: =$C17*E18 -> 23319.99 | G17: 23319.99 | H17: R$
C18: =C17/C17 -> 1 | E18: 1 | G18: 1 | H18: %
A19: 2.2 | B19: =VLOOKUP(A19,'PO Umburana'!A$10:I$1003,4) -> Estudo hidrológico e hidráulico | C19: =VLOOKUP(A19,'PO Umburana'!A$10:I$1003,9) -> 16003.88 | E19: =$C19*E20 -> 16003.88 | G19: 16003.88 | H19: R$
C20: =C19/C19 -> 1 | E20: 1 | G20: 1 | H20: %
A21: 2.3 | B21: =VLOOKUP(A21,'PO Umburana'!A$10:I$1003,4) -> Estudo geológico e geotécnico | C21: =VLOOKUP(A21,'PO Umburana'!A$10:I$1003,9) -> 25205.12 | F21: =$C21*F22 -> 25205.12 | G21: 25205.12 | H21: R$
C22: =C21/C21 -> 1 | F22: 1 | G22: 1 | H22: %
A23: 2.4 | B23: =VLOOKUP(A23,'PO Umburana'!A$10:I$1003,4) -> Projeto de recuperação das anomalias | C23: =VLOOKUP(A23,'PO Umburana'!A$10:I$1003,9) -> 23234.71 | F23: =$C23*F24 -> 23234.71 | G23: 23234.71 | H23: R$
C24: =C23/C23 -> 1 | F24: 1 | G24: 1 | H24: %
B25: VALOR TOTAL: | C25: =SUMIF($H$11:$H$24,"R$",C$11:C$24) -> 138484.89 | D25: =SUMIF($H$11:$H$24,"R$",D$11:D$24) -> 50721.19 | E25: =SUMIF($H$11:$H$24,"R$",E$11:E$24) -> 39323.87 | F25: =SUMIF($H$11:$H$24,"R$",F$11:F$24) -> 48439.83 | G25: =SUMIF($H$11:$H$24,"R$",G$11:G$24) -> 138484.89
B26: VALOR ACUMULADO: | D26: =D25 -> 50721.19 | E26: =E25+D26 -> 90045.06 | F26: =F25+E26 -> 138484.89 | G26: =F26 -> 138484.89
B27: FÍSICO PARCIAL: | D27: =SUMIF($H$11:$H$24,"R$",D$11:D$24)/$C$25 -> 0.3662579362 | E27: =SUMIF($H$11:$H$24,"R$",E$11:E$24)/$C$25 -> 0.2839578383 | F27: =SUMIF($H$11:$H$24,"R$",F$11:F$24)/$C$25 -> 0.3497842256 | G27: =G25/$C$25 -> 1
B28: AVANÇO FÍSICO: | D28: =D27 -> 0.3662579362 | E28: =E27+D28 -> 0.6502157744 | F28: =F27+E28 -> 1 | G28: =F28 -> 1

Sheet Cronograma Geral
A1: Ministério da Integração e do Desenvolvimento Regional
A2: Companhia de Desenvolvimento dos Vales do São Francisco e do Parnaíba
A3: ='[1]Planilha Orçamentária'!A3:I3 -> 0
A4: CRONOGRAMA FÍSICO-FINANCEIRO NÃO DESONERADO
A5: ='PO Bom Jardim'!A5 -> OBRA: | B5: =Resumo!B5 -> Elaboração de estudos e projetos de engenharia nas barragens de Bom Jardim, Juá II e Umburana, localizadas no Estado De Pernambuco
A6: ='PO Bom Jardim'!A6 -> LOCAL: | B6: =Resumo!B6 -> BARRAGENS DE PERNAMBUCO
A7: ='PO Bom Jardim'!A7 -> DATA BASE: | B7: =Resumo!B7 -> 2025-03-01
A8: ='PO Bom Jardim'!A8 -> PRAZO: | B8: =Resumo!B8 -> 270 dias
A9: ITEM | B9: DESCRIÇÃO | C9: TOTAL POR ETAPA | D9: MESES | M9: TOTAL
D10: 1 | E10: 2 | F10: 3 | G10: 4 | H10: 5 | I10: 6 | J10: 7 | K10: 8 | L10: 9
A11: 1.1 | B11: =VLOOKUP(A11,Resumo!A$10:I$1003,2) -> Bom Jardim | C11: =VLOOKUP(A11,Resumo!A$10:I$1003,7) -> 177025.33 | D11: =$C11*D12 -> 89251.95656 | E11: =$C11*E12 -> 39328.19881 | F11: =$C11*F12 -> 48445.17463 | M11: =SUM(D11:L11) -> 177025.33 | N11: R$
C12: =C11/C11 -> 1 | D12: ='Cronograma Bom Jardim'!D29 -> 0.5041761908 | E12: ='Cronograma Bom Jardim'!E29 -> 0.2221614207 | F12: ='Cronograma Bom Jardim'!F29 -> 0.2736623885 | M12: 1 | N12: %
A13: 1.2 | B13: =VLOOKUP(A13,Resumo!A$10:I$1003,2) -> Juá II | C13: =VLOOKUP(A13,Resumo!A$10:I$1003,7) -> 185116.52 | G13: =$C13*G14 -> 97336.30926 | H13: =$C13*H14 -> 39331.26237 | I13: =$C13*I14 -> 48448.94837 | M13: 185116.52 | N13: R$
C14: =C13/C13 -> 1 | G14: =' Cronograma Juá II'!D27 -> 0.5258110365 | H14: =' Cronograma Juá II'!E27 -> 0.2124675981 | I14: =' Cronograma Juá II'!F27 -> 0.2617213654 | M14: 1 | N14: %
A15: 1.3 | B15: =VLOOKUP(A15,Resumo!A$10:I$1003,2) -> Umburana | C15: =VLOOKUP(A15,Resumo!A$10:I$1003,7) -> 138494.05 | J15: =$C15*J16 -> 50724.54492 | K15: =$C15*K16 -> 39326.47105 | L15: =$C15*L16 -> 48443.03402 | M15: 138494.05 | N15: R$
C16: =C15/C15 -> 1 | J16: =' Cronograma Umburana'!D27 -> 0.3662579362 | K16: =' Cronograma Umburana'!E27 -> 0.2839578383 | L16: =' Cronograma Umburana'!F27 -> 0.3497842256 | M16: 1 | N16: %
B17: VALOR TOTAL: | C17: =SUMIF($N$11:$N$16,"R$",C$11:C$16) -> 500635.9 | D17: 89251.95656 | E17: 39328.19881 | F17: 48445.17463 | G17: 97336.30926 | H17: 39331.26237 | I17: 48448.94837 | J17: 50724.54492 | K17: 39326.47105 | L17: 48443.03402 | M17: 500635.9
B18: VALOR ACUMULADO: | D18: =D17 -> 89251.95656 | E18: =E17+D18 -> 128580.1554 | F18: =F17+E18 -> 177025.33 | G18: =G17+F18 -> 274361.6393 | H18: 313692.9016 | I18: 362141.85 | J18: 412866.3949 | K18: 452192.866 | L18: =L17+K18 -> 500635.9 | M18: =L18 -> 500635.9
B19: FÍSICO PARCIAL: | D19: =SUMIF($N$11:$N$16,"R$",D$11:D$16)/$C$17 -> 0.1782771802 | E19: =SUMIF($N$11:$N$16,"R$",E$11:E$16)/$C$17 -> 0.07855648948 | F19: =SUMIF($N$11:$N$16,"R$",F$11:F$16)/$C$17 -> 0.09676728063 | G19: =SUMIF($N$11:$N$16,"R$",G$11:G$16)/$C$17 -> 0.1944253484 | H19: 0.07856260882 | I19: 0.09677481853 | J19: =SUMIF($N$11:$N$16,"R$",J$11:J$16)/$C$17 -> 0.1013202308 | K19: 0.07855303835 | L19: 0.09676300486 | M19: =M17/$C$17 -> 1
B20: AVANÇO FÍSICO: | D20: =D19 -> 0.1782771802 | E20: =E19+D20 -> 0.2568336697 | F20: =F19+E20 -> 0.3536009503 | G20: 0.5480262987 | H20: 0.6265889075 | I20: 0.723363726 | J20: 0.8246839568 | K20: 0.9032369951 | L20: 1 | M20: =L20 -> 1

Sheet BDI serv
A1: Ministério do Desenvolvimento Regional
A2: Companhia de Desenvolvimento dos Vales do São Francisco e do Parnaíba
A4: COMPOSIÇÃO DE BDI - SERVIÇOS - NÃO DESONERADO
A5: OBRA: | B5: =Resumo!B5 -> Elaboração de estudos e projetos de engenharia nas barragens de Bom Jardim, Juá II e Umburana, localizadas no Estado De Pernambuco | D5: BDI (serv.): | E5: =D23 -> 0.2356
A6: LOCAL: | B6: =Resumo!B6 -> BARRAGENS DE PERNAMBUCO | D6: BDI (forn.): | E6: ='BDI forn'!E6 -> 0.136
A7: DATA BASE: | B7: =Resumo!B7 -> 2025-03-01
A8: PRAZO: | B8: =Resumo!B8 -> 270 dias
A9: ITEM | B9: DESCRIÇÃO | C9: SIGLA | D9: % APLICADO | E9: REFERÊNCIA TCU (ACÓRDÃO Nº 2622/2013)
E10: 1º QUARTIL | F10: 2º QUARTIL | G10: 3º QUARTIL | XFC10: ISS de Pernambuco
A11: 1 | B11: ADMINISTRAÇÃO CENTRAL | C11: AC | D11: =E11 -> 0.0343 | E11: 0.0343 | F11: 0.0493 | G11: 0.0671
A12: 2 | B12: IMPOSTOS | C12: T | D12: =SUM(D13:D16) -> 0.0865
A13: 2.1 | B13: ISS (*) | D13: 0.05 | E13: - | F13: - | G13: -
A14: 2.2 | B14: PIS | D14: 0.0065 | E14: - | F14: - | G14: -
A15: 2.3 | B15: Cofins | D15: 0.03 | E15: - | F15: - | G15: - | XFC15: https://legis.alepe.pe.gov.br/texto.aspx?id=3311&tipo=TEXTOATUALIZADO#:~:text=16.,28%20de%20dezembro%20de%201995.)
A16: 2.4 | B16: Contribuição previdênciária sobre a receita bruta (CPRB) | E16: - | F16: - | G16: -
A17: 3 | B17: SEGURO, GARANTIA E RISCO | D17: =SUM(D18:D20) -> 0.0128
A18: 3.1 | B18: Seguro | C18: S | D18: =E18 -> 0.0028 | E18: 0.0028 | F18: 0.0049 | G18: 0.0075
A19: 3.2 | B19: Garantia | C19: G
A20: 3.3 | B20: Risco | C20: R | D20: =E20 -> 0.01 | E20: 0.01 | F20: 0.0139 | G20: 0.0174
A21: 4 | B21: DESPESAS FINANCEIRAS | C21: DF | D21: =F21 -> 0.0099 | E21: 0.0094 | F21: 0.0099 | G21: 0.0117
A22: 5 | B22: LUCRO | C22: L | D22: =E22 -> 0.0674 | E22: 0.0674 | F22: 0.0804 | G22: 0.094
B23: BDI ADOTADO: | D23: =ROUND(((((1+D11+D17)*(1+D21)*(1+D22))/(1-D12))-1),4) -> 0.2356
A24: Considerações: O BDI foi calculado através da seguinte fórmula, regulamentada pelo Acórdão Nº 2622/2013 – TCU.
H173: =SUM(H174:H177) -> 0
D177: mec | F177: 2 | G177: 128

Sheet BDI forn
A1: Ministério do Desenvolvimento Regional
A2: Companhia de Desenvolvimento dos Vales do São Francisco e do Parnaíba
A4: COMPOSIÇÃO DE BDI - FORNECIMENTO - NÃO DESONERADO
A5: ='PO Bom Jardim'!A5 -> OBRA: | B5: =Resumo!B5 -> Elaboração de estudos e projetos de engenharia nas barragens de Bom Jardim, Juá II e Umburana, localizadas no Estado De Pernambuco | D5: BDI (serv.): | E5: ='BDI serv'!D23 -> 0.2356
A6: ='PO Bom Jardim'!A6 -> LOCAL: | B6: =Resumo!B6 -> BARRAGENS DE PERNAMBUCO | D6: BDI (forn.): | E6: =D23 -> 0.136
A7: ='PO Bom Jardim'!A7 -> DATA BASE: | B7: =Resumo!B7 -> 2025-03-01
A8: ='PO Bom Jardim'!A8 -> PRAZO: | B8: =Resumo!B8 -> 270 dias
A9: ITEM | B9: DESCRIÇÃO | C9: SIGLA | D9: % APLICADO | E9: REFERÊNCIA TCU (ACÓRDÃO Nº 2622/2013)
E10: 1º QUARTIL | F10: 2º QUARTIL | G10: 3º QUARTIL
A11: 1 | B11: ADMINISTRAÇÃO CENTRAL | C11: AC | D11: 0.03 | E11: 0.015 | F11: 0.0345 | G11: 0.0449
A12: 2 | B12: IMPOSTOS | C12: T | D12: =SUM(D13:D16) -> 0.0365
A13: 2.1 | B13: ISS (*) | E13: - | F13: - | G13: -
A14: 2.2 | B14: PIS | D14: 0.0065 | E14: - | F14: - | G14: -
A15: 2.3 | B15: Cofins | D15: 0.03 | E15: - | F15: - | G15: -
A16: 2.4 | B16: Contribuição previdênciária sobre a receita bruta (CPRB) | E16: - | F16: - | G16: -
A17: 3 | B17: SEGURO, GARANTIA E RISCO | D17: =SUM(D18:D20) -> 0.0086
A18: 3.1 | B18: Seguro | C18: S | D18: =E18 -> 0.003 | E18: 0.003 | F18: 0.0048 | G18: 0.0082
A19: 3.2 | B19: Garantia | C19: G
A20: 3.3 | B20: Risco | C20: R | D20: =E20 -> 0.0056 | E20: 0.0056 | F20: 0.0085 | G20: 0.0089
A21: 4 | B21: DESPESAS FINANCEIRAS | C21: DF | D21: =F21 -> 0.0085 | E21: 0.0085 | F21: 0.0085 | G21: 0.0111
A22: 5 | B22: LUCRO | C22: L | D22: 0.045 | E22: 0.035 | F22: 0.0511 | G22: 0.0622
B23: BDI ADOTADO: | D23: =ROUND(((((1+D11+D17)*(1+D21)*(1+D22))/(1-D12))-1),4) -> 0.136
A24: Considerações: O BDI foi calculado através da seguinte fórmula, regulamentada pelo Acórdão Nº 2622/2013 – TCU.
H173: =SUM(H174:H177) -> 0
D177: mec | F177: 2 | G177: 128

Sheet Encargos Sociais
A1: Ministério da Integração e do Desenvolvimento Regional
A2: Companhia de Desenvolvimento dos Vales do São Francisco e do Parnaíba
A4: COMPOSIÇÃO DE ENCARGOS SOCIAIS SOBRE A MÃO DE OBRA
A5: ='PO Bom Jardim'!A5 -> OBRA: | B5: =Resumo!B5 -> Elaboração de estudos e projetos de engenharia nas barragens de Bom Jardim, Juá II e Umburana, localizadas no Estado De Pernambuco
A6: ='PO Bom Jardim'!A6 -> LOCAL: | B6: =Resumo!B6 -> BARRAGENS DE PERNAMBUCO
A7: ='PO Bom Jardim'!A7 -> DATA BASE: | B7: =Resumo!B7 -> 2025-03-01
A8: ='PO Bom Jardim'!A8 -> PRAZO: | B8: =Resumo!B8 -> 270 dias
A10: PERNAMBUCO
A11: Encargos Sociais – Pernambuco VIGÊNCIA A PARTIR DE 12/2022
A12: ENCARGOS SOCIAIS SOBRE A MÃO DE OBRA
A13: CÓDIGO | B13: DESCRIÇÃO | C13: COM DESONERAÇÃO | E13: SEM DESONERAÇÃO
C14: HORISTA % | D14: MENSALISTA % | E14: HORISTA % | F14: MENSALISTA %
A15: GRUPO A
A16: A1 | B16: INSS | C16: 0.05 | D16: 0.05 | E16: 0.2 | F16: 0.2
A17: A2 | B17: SESI | C17: 0.015 | D17: 0.015 | E17: 0.015 | F17: 0.015
A18: A3 | B18: SENAI | C18: 0.01 | D18: 0.01 | E18: 0.01 | F18: 0.01
A19: A4 | B19: INCRA | C19: 0.002 | D19: 0.002 | E19: 0.002 | F19: 0.002
A20: A5 | B20: SEBRAE | C20: 0.006 | D20: 0.006 | E20: 0.006 | F20: 0.006
A21: A6 | B21: Salário Educação | C21: 0.025 | D21: 0.025 | E21: 0.025 | F21: 0.025
A22: A7 | B22: Seguro Contra Acidentes de Trabalho | C22: 0.03 | D22: 0.03 | E22: 0.03 | F22: 0.03
A23: A8 | B23: FGTS | C23: 0.08 | D23: 0.08 | E23: 0.08 | F23: 0.08
A24: A9 | B24: SECONCI | C24: 0 | D24: 0 | E24: 0 | F24: 0
A25: A | B25: Total | C25: =SUM(C16:C24) -> 0.218 | D25: =SUM(D16:D24) -> 0.218 | E25: =SUM(E16:E24) -> 0.368 | F25: =SUM(F16:F24) -> 0.368
A26: GRUPO B
A27: B1 | B27: Repouso Semanal Remunerado | C27: 0.1801 | D27: Não incide | E27: 0.1801 | F27: Não incide
A28: B2 | B28: Feriados | C28: 0.0432 | D28: Não incide | E28: 0.0432 | F28: Não incide
A29: B3 | B29: Auxílio - Enfermidade | C29: 0.0086 | D29: 0.0065 | E29: 0.0086 | F29: 0.0065
A30: B4 | B30: 13º Salário | C30: 0.1097 | D30: 0.0833 | E30: 0.1097 | F30: 0.0833
A31: B5 | B31: Licença Paternidade | C31: 0.0007 | D31: 0.0005 | E31: 0.0007 | F31: 0.0005
A32: B6 | B32: Faltas Justificadas | C32: 0.0073 | D32: 0.0056 | E32: 0.0073 | F32: 0.0056
A33: B7 | B33: Dias de Chuvas | C33: 0.0196 | D33: Não incide | E33: 0.0196 | F33: Não incide
A34: B8 | B34: Auxílio Acidente de Trabalho | C34: 0.001 | D34: 0.0007 | E34: 0.001 | F34: 0.0007
A35: B9 | B35: Férias Gozadas | C35: 0.0995 | D35: 0.0756 | E35: 0.0995 | F35: 0.0756
A36: B10 | B36: Salário Maternidade | C36: 0.0003 | D36: 0.0003 | E36: 0.0003 | F36: 0.0003
A37: B | B37: Total | C37: =SUM(C27:C36) -> 0.47 | D37: =SUM(D27:D36) -> 0.1725 | E37: =SUM(E27:E36) -> 0.47 | F37: =SUM(F27:F36) -> 0.1725
A38: GRUPO C
A39: C1 | B39: Aviso Prévio Indenizado | C39: 0.0477 | D39: 0.0363 | E39: 0.0477 | F39: 0.0363
A40: C2 | B40: Aviso Prévio Trabalhado | C40: 0.0011 | D40: 0.0009 | E40: 0.0011 | F40: 0.0009
A41: C3 | B41: Férias Indenizadas | C41: 0.0398 | D41: 0.0303 | E41: 0.0398 | F41: 0.0303
A42: C4 | B42: Depósito Rescisão Sem Justa Causa | C42: 0.0306 | D42: 0.0233 | E42: 0.0306 | F42: 0.0233
A43: C5 | B43: Indenização Adicional | C43: 0.004 | D43: 0.0031 | E43: 0.004 | F43: 0.0031
A44: C | B44: Total | C44: =SUM(C39:C43) -> 0.1232 | D44: =SUM(D39:D43) -> 0.0939 | E44: =SUM(E39:E43) -> 0.1232 | F44: =SUM(F39:F43) -> 0.0939
A45: GRUPO D
A46: D1 | B46: Reincidência de Grupo A sobre Grupo B | C46: 0.097 | D46: 0.0334 | E46: 0.173 | F46: 0.0635
A47: D2 | B47: Reincidência de Grupo A sobre Aviso Prévio Trabalhado e Reincidência do FGTS sobre Aviso Prévio Indenizado | C47: 0.0041 | D47: 0.0031 | E47: 0.0042 | F47: 0.0032
A48: D | B48: Total | C48: =SUM(C46:C47) -> 0.1011 | D48: =SUM(D46:D47) -> 0.0365 | E48: =SUM(E46:E47) -> 0.1772 | F48: =SUM(F46:F47) -> 0.0667
A49: TOTAL(A+B+C+D) | C49: =C25+C37+C44+C48 -> 0.9123 | D49: =D25+D37+D44+D48 -> 0.5209 | E49: =E25+E37+E44+E48 -> 1.1384 | F49: =F25+F37+F44+F48 -> 0.7011
A50: Fonte: Informação Dias de Chuva – INMET

Sheet SINAPI-ISD
A1: SINAPI - Sistema Nacional de Pesquisa de Custos e Índices da Construção Civil
A2: RELATÓRIO DE PREÇOS DE INSUMOS - ENGARGOS SOCIAIS SEM DESONERAÇÃO
A3: Mês de Referência: | B3: 04/2025 | E3: Encargos sociais sobre a mão de obra:
A4: Data de emissão: | B4: 09/05/2025 | E4: (SEM DESONERAÇÃO) | F4: PE
E5: Localidade | F5: RECIFE
A6: Origem de preço: | B6: C = COLETADO | C6: CR = COEFICIENTE DE REPRESENTATIVIDADE | E6: Horista | F6: 1.1384
A7: Preço em branco para determinado estado significa que não houve coleta mínima de preços no mês de referência | E7: Mensalista | F7: 0.7011
A9: Acessar Fichas de Especificação Técnico dos Insumos | E9: Preços Medianos (R$):
A10: Classificação | B10: Código do Insumo | C10: Descrição do Insumo | D10: Unidade | E10: Origem de Preço | F10: PE
A11: MATERIAL | B11: 45333 | C11: ABERTURA PARA ENCAIXE DE CUBA OU LAVATORIO EM BANCADA DE MARMORE/ GRANITO OU OUTRO TIPO DE PEDRA NATURAL | D11: UN | E11: CR | F11: 177.69
A12: MATERIAL | B12: 11270 | C12: ABRACADEIRA DE LATAO PARA FIXACAO DE CABO PARA-RAIO, DIMENSOES 32 X 24 X 24 MM | D12: UN | E12: CR | F12: 3.57
A13: MATERIAL | B13: 412 | C13: ABRACADEIRA DE NYLON PARA AMARRACAO DE CABOS, COMPRIMENTO DE *230* X *7,6* MM | D13: UN | E13: CR | F13: 1.18
A14: MATERIAL | B14: 414 | C14: ABRACADEIRA DE NYLON PARA AMARRACAO DE CABOS, COMPRIMENTO DE 100 X 2,5 MM | D14: UN | E14: CR | F14: 0.07
A15: MATERIAL | B15: 410 | C15: ABRACADEIRA DE NYLON PARA AMARRACAO DE CABOS, COMPRIMENTO DE 150 X *3,6* MM | D15: UN | E15: CR | F15: 0.18
A16: MATERIAL | B16: 411 | C16: ABRACADEIRA DE NYLON PARA AMARRACAO DE CABOS, COMPRIMENTO DE 200 X *4,6* MM | D16: UN | E16: C | F16: 0.23
A17: MATERIAL | B17: 408 | C17: ABRACADEIRA DE NYLON PARA AMARRACAO DE CABOS, COMPRIMENTO DE 390 X *4,6* MM | D17: UN | E17: CR | F17: 1.14
A18: MATERIAL | B18: 39131 | C18: ABRACADEIRA EM ACO PARA AMARRACAO DE ELETRODUTOS, TIPO D, COM 1 1/2" E CUNHA DE FIXACAO | D18: UN | E18: CR | F18: 4.93
A19: MATERIAL | B19: 394 | C19: ABRACADEIRA EM ACO PARA AMARRACAO DE ELETRODUTOS, TIPO D, COM 1 1/2" E PARAFUSO DE FIXACAO | D19: UN | E19: CR | F19: 4.99
A20: MATERIAL | B20: 39130 | C20: ABRACADEIRA EM ACO PARA AMARRACAO DE ELETRODUTOS, TIPO D, COM 1 1/4" E CUNHA DE FIXACAO | D20: UN | E20: CR | F20: 4.5
A21: MATERIAL | B21: 395 | C21: ABRACADEIRA EM ACO PARA AMARRACAO DE ELETRODUTOS, TIPO D, COM 1 1/4" E PARAFUSO DE FIXACAO | D21: UN | E21: CR | F21: 4.81
A22: MATERIAL | B22: 39129 | C22: ABRACADEIRA EM ACO PARA AMARRACAO DE ELETRODUTOS, TIPO D, COM 1" E CUNHA DE FIXACAO | D22: UN | E22: CR | F22: 2.77
A23: MATERIAL | B23: 393 | C23: ABRACADEIRA EM ACO PARA AMARRACAO DE ELETRODUTOS, TIPO D, COM 1" E PARAFUSO DE FIXACAO | D23: UN | E23: C | F23: 2.9
A24: MATERIAL | B24: 39127 | C24: ABRACADEIRA EM ACO PARA AMARRACAO DE ELETRODUTOS, TIPO D, COM 1/2" E CUNHA DE FIXACAO | D24: UN | E24: CR | F24: 2.37
A25: MATERIAL | B25: 392 | C25: ABRACADEIRA EM ACO PARA AMARRACAO DE ELETRODUTOS, TIPO D, COM 1/2" E PARAFUSO DE FIXACAO | D25: UN | E25: CR | F25: 2.43
A26: MATERIAL | B26: 39133 | C26: ABRACADEIRA EM ACO PARA AMARRACAO DE ELETRODUTOS, TIPO D, COM 2 1/2" E CUNHA DE FIXACAO | D26: UN | E26: CR | F26: 6.47
A27: MATERIAL | B27: 397 | C27: ABRACADEIRA EM ACO PARA AMARRACAO DE ELETRODUTOS, TIPO D, COM 2 1/2" E PARAFUSO DE FIXACAO | D27: UN | E27: CR | F27: 7.15
A28: MATERIAL | B28: 39132 | C28: ABRACADEIRA EM ACO PARA AMARRACAO DE ELETRODUTOS, TIPO D, COM 2" E CUNHA DE FIXACAO | D28: UN | E28: CR | F28: 5.18
A29: MATERIAL | B29: 396 | C29: ABRACADEIRA EM ACO PARA AMARRACAO DE ELETRODUTOS, TIPO D, COM 2" E PARAFUSO DE FIXACAO | D29: UN | E29: CR | F29: 5.55
A30: MATERIAL | B30: 39135 | C30: ABRACADEIRA EM ACO PARA AMARRACAO DE ELETRODUTOS, TIPO D, COM 3 1/2" E CUNHA DE FIXACAO | D30: UN | E30: CR | F30: 10.36
A31: MATERIAL | B31: 39134 | C31: ABRACADEIRA EM ACO PARA AMARRACAO DE ELETRODUTOS, TIPO D, COM 3" E CUNHA DE FIXACAO | D31: UN | E31: CR | F31: 8.63
A32: MATERIAL | B32: 398 | C32: ABRACADEIRA EM ACO PARA AMARRACAO DE ELETRODUTOS, TIPO D, COM 3" E PARAFUSO DE FIXACAO | D32: UN | E32: CR | F32: 7.95
A33: MATERIAL | B33: 39128 | C33: ABRACADEIRA EM ACO PARA AMARRACAO DE ELETRODUTOS, TIPO D, COM 3/4" E CUNHA DE FIXACAO | D33: UN | E33: CR | F33: 2.59
A34: MATERIAL | B34: 400 | C34: ABRACADEIRA EM ACO PARA AMARRACAO DE ELETRODUTOS, TIPO D, COM 3/4" E PARAFUSO DE FIXACAO | D34: UN | E34: CR | F34: 2.52
A35: MATERIAL | B35: 39125 | C35: ABRACADEIRA EM ACO PARA AMARRACAO DE ELETRODUTOS, TIPO D, COM 3/8" E PARAFUSO DE FIXACAO | D35: UN | E35: CR | F35: 2.59
A36: MATERIAL | B36: 39126 | C36: ABRACADEIRA EM ACO PARA AMARRACAO DE ELETRODUTOS, TIPO D, COM 4" E CUNHA DE FIXACAO | D36: UN | E36: CR | F36: 11.66
A37: MATERIAL | B37: 399 | C37: ABRACADEIRA EM ACO PARA AMARRACAO DE ELETRODUTOS, TIPO D, COM 4" E PARAFUSO DE FIXACAO | D37: UN | E37: CR | F37: 10.27
A38: MATERIAL | B38: 39158 | C38: ABRACADEIRA EM ACO PARA AMARRACAO DE ELETRODUTOS, TIPO ECONOMICA (GOTA), COM 8" | D38: UN | E38: CR | F38: 27.58
A39: MATERIAL | B39: 39141 | C39: ABRACADEIRA EM ACO PARA AMARRACAO DE ELETRODUTOS, TIPO U SIMPLES, COM 1 1/2" | D39: UN | E39: CR | F39: 2
A40: MATERIAL | B40: 39140 | C40: ABRACADEIRA EM ACO PARA AMARRACAO DE ELETRODUTOS, TIPO U SIMPLES, COM 1 1/4" | D40: UN | E40: CR | F40: 1.82
A41: MATERIAL | B41: 39139 | C41: ABRACADEIRA EM ACO PARA AMARRACAO DE ELETRODUTOS, TIPO U SIMPLES, COM 1" | D41: UN | E41: CR | F41: 1.51
A42: MATERIAL | B42: 39137 | C42: ABRACADEIRA EM ACO PARA AMARRACAO DE ELETRODUTOS, TIPO U SIMPLES, COM 1/2" | D42: UN | E42: CR | F42: 1.04
A43: MATERIAL | B43: 39143 | C43: ABRACADEIRA EM ACO PARA AMARRACAO DE ELETRODUTOS, TIPO U SIMPLES, COM 2 1/2" | D43: UN | E43: CR | F43: 4.13
A44: MATERIAL | B44: 39142 | C44: ABRACADEIRA EM ACO PARA AMARRACAO DE ELETRODUTOS, TIPO U SIMPLES, COM 2" | D44: UN | E44: CR | F44: 2.96
A45: MATERIAL | B45: 39144 | C45: ABRACADEIRA EM ACO PARA AMARRACAO DE ELETRODUTOS, TIPO U SIMPLES, COM 3" | D45: UN | E45: CR | F45: 4.81
A46: MATERIAL | B46: 39138 | C46: ABRACADEIRA EM ACO PARA AMARRACAO DE ELETRODUTOS, TIPO U SIMPLES, COM 3/4" | D46: UN | E46: CR | F46: 1.11
A47: MATERIAL | B47: 39136 | C47: ABRACADEIRA EM ACO PARA AMARRACAO DE ELETRODUTOS, TIPO U SIMPLES, COM 3/8" | D47: UN | E47: CR | F47: 0.74
A48: MATERIAL | B48: 39145 | C48: ABRACADEIRA EM ACO PARA AMARRACAO DE ELETRODUTOS, TIPO U SIMPLES, COM 4" | D48: UN | E48: CR | F48: 7.92
A49: MATERIAL | B49: 12615 | C49: ABRACADEIRA PVC, PARA CALHA PLUVIAL, DIAMETRO ENTRE *80 E 100* MM, PARA DRENAGEM PLUVIAL PREDIAL | D49: UN | E49: CR | F49: 11.22
A50: MATERIAL | B50: 11927 | C50: ABRACADEIRA, GALVANIZADA/ZINCADA, ROSCA SEM FIM, PARAFUSO INOX, LARGURA FITA *12,6 A *14 MM, D = 2" A 2 1/2" | D50: UN | E50: CR | F50: 10.67
A51: MATERIAL | B51: 11928 | C51: ABRACADEIRA, GALVANIZADA/ZINCADA, ROSCA SEM FIM, PARAFUSO INOX, LARGURA FITA *12,6 A *14 MM, D = 3" A 3 3/4" | D51: UN | E51: CR | F51: 12.23
A52: MATERIAL | B52: 11929 | C52: ABRACADEIRA, GALVANIZADA/ZINCADA, ROSCA SEM FIM, PARAFUSO INOX, LARGURA FITA *12,6 A *14 MM, D = 4" A 4 3/4" | D52: UN | E52: CR | F52: 18.91
A53: MATERIAL | B53: 36801 | C53: ACABAMENTO DE METAL CROMADO PARA REGISTRO PEQUENO, DE PAREDE, 1/2" OU 3/4" | D53: UN | E53: CR | F53: 41.07
A54: MATERIAL | B54: 36246 | C54: ACABAMENTO SIMPLES/CONVENCIONAL PARA FORRO PVC, TIPO "U" OU "C", COR BRANCA, COMPRIMENTO 6 M | D54: M | E54: CR | F54: 3.99
A55: MATERIAL | B55: 37600 | C55: ACESSORIO DE LIGACAO NAO ELETRICO PARA CARGAS EXPLOSIVAS, TUBO DE 6 M | D55: UN | E55: CR
A56: MATERIAL | B56: 37599 | C56: ACESSORIO INICIADOR NAO ELETRICO, TUBO DE 6 M, TEMPO DE RETARDO DE *160* MS | D56: UN | E56: CR
A57: MATERIAL | B57: 1 | C57: ACETILENO - RECARGA DE GAS PARA CILINDRO (NAO INCLUI TROCA/MANUTENCAO DO CILINDRO) | D57: KG | E57: C
A58: MATERIAL | B58: 3 | C58: ACIDO CLORIDRICO / ACIDO MURIATICO, DILUICAO 10% A 12% PARA USO EM LIMPEZA | D58: L | E58: CR | F58: 22.63
A59: MATERIAL | B59: 43054 | C59: ACO CA-25, 10,0 MM, OU 12,5 MM, OU 16,0 MM, OU 20,0 MM, OU 25,0 MM, VERGALHAO | D59: KG | E59: CR | F59: 8.89
A60: MATERIAL | B60: 42402 | C60: ACO CA-25, 16,0 MM, BARRA DE TRANSFERENCIA | D60: KG | E60: CR | F60: 8.5
A61: MATERIAL | B61: 42403 | C61: ACO CA-25, 20,0 MM, BARRA DE TRANSFERENCIA | D61: KG | E61: CR | F61: 10.9
A62: MATERIAL | B62: 42404 | C62: ACO CA-25, 25,0 MM, BARRA DE TRANSFERENCIA | D62: KG | E62: CR | F62: 10.84
A63: MATERIAL | B63: 42405 | C63: ACO CA-25, 32,0 MM, BARRA DE TRANSFERENCIA | D63: KG | E63: CR | F63: 11.55
A64: MATERIAL | B64: 34341 | C64: ACO CA-25, 32,0 MM, VERGALHAO | D64: KG | E64: CR | F64: 10.02
A65: MATERIAL | B65: 43053 | C65: ACO CA-25, 6,3 MM OU 8,0 MM, VERGALHAO | D65: KG | E65: CR | F65: 7.94
A66: MATERIAL | B66: 43058 | C66: ACO CA-50, 10,0 MM, OU 12,5 MM, OU 16,0 MM, OU 20,0 MM, DOBRADO E CORTADO | D66: KG | E66: CR | F66: 8.24
A67: MATERIAL | B67: 34 | C67: ACO CA-50, 10,0 MM, VERGALHAO | D67: KG | E67: CR | F67: 8.28
A68: MATERIAL | B68: 43055 | C68: ACO CA-50, 12,5 MM OU 16,0 MM, VERGALHAO | D68: KG | E68: C | F68: 7.17
A69: MATERIAL | B69: 43056 | C69: ACO CA-50, 20,0 MM OU 25,0 MM, VERGALHAO | D69: KG | E69: CR | F69: 8.27
A70: MATERIAL | B70: 43057 | C70: ACO CA-50, 32,0 MM, VERGALHAO | D70: KG | E70: CR | F70: 9.08
A71: MATERIAL | B71: 34449 | C71: ACO CA-50, 6,3 MM, DOBRADO E CORTADO | D71: KG | E71: CR | F71: 9.71
A72: MATERIAL | B72: 32 | C72: ACO CA-50, 6,3 MM, VERGALHAO | D72: KG | E72: CR | F72: 8.73
A73: MATERIAL | B73: 33 | C73: ACO CA-50, 8,0 MM, VERGALHAO | D73: KG | E73: CR | F73: 8.78
A74: MATERIAL | B74: 43061 | C74: ACO CA-60, 4,2 MM OU 5,0 MM, DOBRADO E CORTADO | D74: KG | E74: CR | F74: 8.21
A75: MATERIAL | B75: 43059 | C75: ACO CA-60, 4,2 MM, OU 5,0 MM, OU 6,0 MM, OU 7,0 MM, VERGALHAO | D75: KG | E75: CR | F75: 7.83
A76: MATERIAL | B76: 43062 | C76: ACO CA-60, 6,0 MM OU 7,0 MM, DOBRADO E CORTADO | D76: KG | E76: CR | F76: 8.68
A77: MATERIAL | B77: 43060 | C77: ACO CA-60, 8,0 MM OU 9,5 MM, VERGALHAO | D77: KG | E77: CR | F77: 6.82
A78: MATERIAL | B78: 40410 | C78: ACOPLAMENTO RIGIDO EM FERRO FUNDIDO PARA SISTEMA DE TUBULACAO RANHURADA, DN 50 MM (2") | D78: UN | E78: C
A79: MATERIAL | B79: 40411 | C79: ACOPLAMENTO RIGIDO EM FERRO FUNDIDO PARA SISTEMA DE TUBULACAO RANHURADA, DN 65 MM (2 1/2") | D79: UN | E79: CR
A80: MATERIAL | B80: 40412 | C80: ACOPLAMENTO RIGIDO EM FERRO FUNDIDO PARA SISTEMA DE TUBULACAO RANHURADA, DN 80 MM (3") | D80: UN | E80: CR
A81: MATERIAL | B81: 44254 | C81: ADAPTADOR CPVC, ROSCAVEL, COM FLANGES E ANEL DE VEDACAO, 15 MM, CAIXA D'AGUA PARA AGUA QUENTE | D81: UN | E81: CR | F81: 28.93
A82: MATERIAL | B82: 44255 | C82: ADAPTADOR CPVC, ROSCAVEL, COM FLANGES E ANEL DE VEDACAO, 22 MM, CAIXA D'AGUA PARA AGUA QUENTE | D82: UN | E82: CR | F82: 32.06
A83: MATERIAL | B83: 44256 | C83: ADAPTADOR CPVC, ROSCAVEL, COM FLANGES E ANEL DE VEDACAO, 28 MM, CAIXA D'AGUA PARA AGUA QUENTE | D83: UN | E83: CR | F83: 36.21
A84: MATERIAL | B84: 44257 | C84: ADAPTADOR CPVC, ROSCAVEL, COM FLANGES E ANEL DE VEDACAO, 35 MM, CAIXA D'AGUA PARA AGUA QUENTE | D84: UN | E84: CR | F84: 57.29
A85: MATERIAL | B85: 44258 | C85: ADAPTADOR CPVC, ROSCAVEL, COM FLANGES E ANEL DE VEDACAO, 42 MM, CAIXA D'AGUA PARA AGUA QUENTE | D85: UN | E85: CR | F85: 65.47
A86: MATERIAL | B86: 44259 | C86: ADAPTADOR CPVC, ROSCAVEL, COM FLANGES E ANEL DE VEDACAO, 54 MM, CAIXA D'AGUA PARA AGUA QUENTE | D86: UN | E86: CR | F86: 89.87
A87: MATERIAL | B87: 37997 | C87: ADAPTADOR CPVC, SOLDAVEL, 15 MM, PARA AGUA QUENTE | D87: UN | E87: CR | F87: 17.24
A88: MATERIAL | B88: 37998 | C88: ADAPTADOR CPVC, SOLDAVEL, 22 MM, PARA AGUA QUENTE | D88: UN | E88: CR | F88: 23.07
A89: MATERIAL | B89: 55 | C89: ADAPTADOR DE COMPRESSAO EM POLIPROPILENO (PP), PARA TUBO EM PEAD, 20 MM X 1/2", PARA LIGACAO PREDIAL DE AGUA (NTS 179) | D89: UN | E89: C
A90: MATERIAL | B90: 61 | C90: ADAPTADOR DE COMPRESSAO EM POLIPROPILENO (PP), PARA TUBO EM PEAD, 20 MM X 3/4", PARA LIGACAO PREDIAL DE AGUA (NTS 179) | D90: UN | E90: CR
A91: MATERIAL | B91: 62 | C91: ADAPTADOR DE COMPRESSAO EM POLIPROPILENO (PP), PARA TUBO EM PEAD, 32 MM X 1", PARA LIGACAO PREDIAL DE AGUA (NTS 179) | D91: UN | E91: CR
A92: MATERIAL | B92: 10899 | C92: ADAPTADOR EM LATAO, ENGATE RAPIDO 2 1/2" X ROSCA INTERNA 5 FIOS 2 1/2", PARA INSTALACAO PREDIAL DE COMBATE A INCENDIO | D92: UN | E92: CR | F92: 100.76
A93: MATERIAL | B93: 10900 | C93: ADAPTADOR EM LATAO, ENGATE RAPIDO1 1/2" X ROSCA INTERNA 5 FIOS 2 1/2", PARA INSTALACAO PREDIAL DE COMBATE A INCENDIO | D93: UN | E93: CR | F93: 78.85
A94: MATERIAL | B94: 47 | C94: ADAPTADOR PVC PBA, BOLSA/ROSCA, JE, DN 100 / DE 110 MM | D94: UN | E94: CR
A95: MATERIAL | B95: 48 | C95: ADAPTADOR PVC PBA, BOLSA/ROSCA, JE, DN 50 / DE 60 MM | D95: UN | E95: CR
A96: MATERIAL | B96: 46 | C96: ADAPTADOR PVC PBA, BOLSA/ROSCA, JE, DN 75 / DE 85 MM | D96: UN | E96: CR
A97: MATERIAL | B97: 52 | C97: ADAPTADOR PVC PBA, PONTA/ROSCA, JE, DN 50 / DE 60 MM | D97: UN | E97: CR
A98: MATERIAL | B98: 43 | C98: ADAPTADOR PVC PBA, PONTA/ROSCA, JE, DN 75 / DE 85 MM | D98: UN | E98: CR
A99: MATERIAL | B99: 103 | C99: ADAPTADOR PVC SOLDAVEL CURTO COM BOLSA E ROSCA, 110 MM X 4", PARA AGUA FRIA | D99: UN | E99: CR | F99: 42.6
A100: MATERIAL | B100: 107 | C100: ADAPTADOR PVC SOLDAVEL CURTO COM BOLSA E ROSCA, 20 MM X 1/2", PARA AGUA FRIA | D100: UN | E100: CR | F100: 0.8
A101: MATERIAL | B101: 65 | C101: ADAPTADOR PVC SOLDAVEL CURTO COM BOLSA E ROSCA, 25 MM X 3/4", PARA AGUA FRIA | D101: UN | E101: CR | F101: 0.88
A102: MATERIAL | B102: 108 | C102: ADAPTADOR PVC SOLDAVEL CURTO COM BOLSA E ROSCA, 32 MM X 1", PARA AGUA FRIA | D102: UN | E102: CR | F102: 1.76
A103: MATERIAL | B103: 110 | C103: ADAPTADOR PVC SOLDAVEL CURTO COM BOLSA E ROSCA, 40 MM X 1 1/2", PARA AGUA FRIA | D103: UN | E103: CR | F103: 6.13
A104: MATERIAL | B104: 109 | C104: ADAPTADOR PVC SOLDAVEL CURTO COM BOLSA E ROSCA, 40 MM X 1 1/4", PARA AGUA FRIA | D104: UN | E104: CR | F104: 3.65
A105: MATERIAL | B105: 111 | C105: ADAPTADOR PVC SOLDAVEL CURTO COM BOLSA E ROSCA, 50 MM X 1 1/4", PARA AGUA FRIA | D105: UN | E105: CR | F105: 8.29
A106: MATERIAL | B106: 112 | C106: ADAPTADOR PVC SOLDAVEL CURTO COM BOLSA E ROSCA, 50 MM X1 1/2", PARA AGUA FRIA | D106: UN | E106: CR | F106: 4.39
A107: MATERIAL | B107: 113 | C107: ADAPTADOR PVC SOLDAVEL CURTO COM BOLSA E ROSCA, 60 MM X 2", PARA AGUA FRIA | D107: UN | E107: CR | F107: 11
A108: MATERIAL | B108: 104 | C108: ADAPTADOR PVC SOLDAVEL CURTO COM BOLSA E ROSCA, 75 MM X 2 1/2", PARA AGUA FRIA | D108: UN | E108: CR | F108: 19.14
A109: MATERIAL | B109: 102 | C109: ADAPTADOR PVC SOLDAVEL CURTO COM BOLSA E ROSCA, 85 MM X 3", PARA AGUA FRIA | D109: UN | E109: CR | F109: 26.39
A110: MATERIAL | B110: 95 | C110: ADAPTADOR PVC SOLDAVEL, COM FLANGE E ANEL DE VEDACAO, 20 MM X 1/2", PARA CAIXA D'AGUA | D110: UN | E110: CR | F110: 11.15
A111: MATERIAL | B111: 96 | C111: ADAPTADOR PVC SOLDAVEL, COM FLANGE E ANEL DE VEDACAO, 25 MM X 3/4", PARA CAIXA D'AGUA | D111: UN | E111: CR | F111: 12.13
A112: MATERIAL | B112: 97 | C112: ADAPTADOR PVC SOLDAVEL, COM FLANGE E ANEL DE VEDACAO, 32 MM X 1", PARA CAIXA D'AGUA | D112: UN | E112: CR | F112: 18.25
A113: MATERIAL | B113: 98 | C113: ADAPTADOR PVC SOLDAVEL, COM FLANGE E ANEL DE VEDACAO, 40 MM X 1 1/4", PARA CAIXA D'AGUA | D113: UN | E113: CR | F113: 27.32
A114: MATERIAL | B114: 99 | C114: ADAPTADOR PVC SOLDAVEL, COM FLANGE E ANEL DE VEDACAO, 50 MM X 1 1/2", PARA CAIXA D'AGUA | D114: UN | E114: CR | F114: 25.82
A115: MATERIAL | B115: 60 | C115: ADAPTADOR PVC, COM REGISTRO, PARA PEAD, 20 MM X 3/4", PARA LIGACAO PREDIAL DE AGUA | D115: UN | E115: CR
A116: MATERIAL | B116: 72 | C116: ADAPTADOR PVC, ROSCAVEL, COM FLANGES E ANEL DE VEDACAO, 1 1/2", PARA CAIXA D'AGUA | D116: UN | E116: CR | F116: 49.53
A117: MATERIAL | B117: 71 | C117: ADAPTADOR PVC, ROSCAVEL, COM FLANGES E ANEL DE VEDACAO, 1", PARA CAIXA D'AGUA | D117: UN | E117: CR | F117: 30.59
A118: MATERIAL | B118: 67 | C118: ADAPTADOR PVC, ROSCAVEL, COM FLANGES E ANEL DE VEDACAO, 1/2", PARA CAIXA D'AGUA | D118: UN | E118: CR | F118: 16.01
A119: MATERIAL | B119: 73 | C119: ADAPTADOR PVC, ROSCAVEL, COM FLANGES E ANEL DE VEDACAO, 3/4", PARA CAIXA D'AGUA | D119: UN | E119: CR | F119: 15.32
A120: MATERIAL | B120: 100 | C120: ADAPTADOR PVC, SOLDAVEL, COM FLANGES E ANEL DE VEDACAO, 60 MM X 2", PARA CAIXA D'AGUA | D120: UN | E120: CR | F120: 45.12
A121: MATERIAL | B121: 75 | C121: ADAPTADOR PVC, SOLDAVEL, COM FLANGES LIVRES, 110 MM X 4", PARA CAIXA D'AGUA | D121: UN | E121: CR | F121: 263.07
A122: MATERIAL | B122: 83 | C122: ADAPTADOR PVC, SOLDAVEL, COM FLANGES LIVRES, 75 MM X 2 1/2", PARA CAIXA D'AGUA | D122: UN | E122: CR | F122: 210.32
A123: MATERIAL | B123: 74 | C123: ADAPTADOR PVC, SOLDAVEL, COM FLANGES LIVRES, 85 MM X 3", PARA CAIXA D'AGUA | D123: UN | E123: CR | F123: 300.69
A124: MATERIAL | B124: 106 | C124: ADAPTADOR PVC, SOLDAVEL, LONGO, COM FLANGE LIVRE, 110 MM X 4", PARA CAIXA D'AGUA | D124: UN | E124: CR | F124: 380.24
A125: MATERIAL | B125: 88 | C125: ADAPTADOR PVC, SOLDAVEL, LONGO, COM FLANGE LIVRE, 32 MM X 1", PARA CAIXA D'AGUA | D125: UN | E125: CR | F125: 10.68
A126: MATERIAL | B126: 82 | C126: ADAPTADOR PVC, SOLDAVEL, LONGO, COM FLANGE LIVRE, 75 MM X 2 1/2", PARA CAIXA D'AGUA | D126: UN | E126: CR | F126: 200.1
A127: MATERIAL | B127: 105 | C127: ADAPTADOR PVC, SOLDAVEL, LONGO, COM FLANGE LIVRE, 85 MM X 3", PARA CAIXA D'AGUA | D127: UN | E127: CR | F127: 283.54
A128: MATERIAL | B128: 39719 | C128: ADESIVO / COLA DE CONTATO LIQUIDO, A BASE DE RESINAS, PARA COLAGEM DE ESPUMA PARA ISOLAMENTO TERMICO FLEXIVEL | D128: L | E128: CR | F128: 170.13
A129: MATERIAL | B129: 3410 | C129: ADESIVO / COLA PARA EPS (ISOPOR) E OUTROS MATERIAIS | D129: KG | E129: CR | F129: 38.27
A130: MATERIAL | B130: 4791 | C130: ADESIVO ACRILICO DE BASE AQUOSA / COLA DE CONTATO | D130: KG | E130: CR | F130: 45.49
A131: MATERIAL | B131: 157 | C131: ADESIVO ESTRUTURAL A BASE DE RESINA EPOXI PARA INJECAO EM TRINCAS, BICOMPONENTE, BAIXA VISCOSIDADE | D131: KG | E131: CR | F131: 155.7
A132: MATERIAL | B132: 156 | C132: ADESIVO ESTRUTURAL A BASE DE RESINA EPOXI, BICOMPONENTE, FLUIDO | D132: KG | E132: CR | F132: 55.44
A133: MATERIAL | B133: 131 | C133: ADESIVO ESTRUTURAL A BASE DE RESINA EPOXI, BICOMPONENTE, PASTOSO (TIXOTROPICO) | D133: KG | E133: CR | F133: 47.41
A134: MATERIAL | B134: 21114 | C134: ADESIVO PARA TUBOS CPVC, *75* G | D134: UN | E134: CR | F134: 33.53
A135: MATERIAL | B135: 119 | C135: ADESIVO PLASTICO PARA PVC, BISNAGA COM 75 GR | D135: UN | E135: C | F135: 8.5
A136: MATERIAL | B136: 122 | C136: ADESIVO PLASTICO PARA PVC, FRASCO COM *850* GR | D136: UN | E136: CR | F136: 65.4
A137: MATERIAL | B137: 20080 | C137: ADESIVO PLASTICO PARA PVC, FRASCO COM 175 GR | D137: UN | E137: CR | F137: 21.34
A138: MATERIAL | B138: 124 | C138: ADITIVO ACELERADOR DE PEGA E ENDURECIMENTO PARA ARGAMASSAS E CONCRETOS, LIQUIDO E ISENTO DE CLORETOS | D138: L | E138: CR | F138: 18.28
A139: MATERIAL | B139: 7334 | C139: ADITIVO ADESIVO LIQUIDO PARA ARGAMASSAS DE REVESTIMENTOS CIMENTICIOS | D139: L | E139: CR | F139: 17.08
A140: MATERIAL | B140: 45146 | C140: ADITIVO IMPERMEABILIZANTE CRISTALIZANTE PARA CONCRETO | D140: KG | E140: CR | F140: 35.06
A141: MATERIAL | B141: 123 | C141: ADITIVO IMPERMEABILIZANTE DE PEGA NORMAL PARA ARGAMASSAS E CONCRETOS SEM ARMACAO, LIQUIDO E ISENTO DE CLORETOS | D141: L | E141: C | F141: 7.48
A142: MATERIAL | B142: 127 | C142: ADITIVO IMPERMEABILIZANTE DE PEGA ULTRARRAPIDA, LIQUIDO E ISENTO DE CLORETOS | D142: L | E142: CR | F142: 17.86
A143: MATERIAL | B143: 133 | C143: ADITIVO LIQUIDO INCORPORADOR DE AR PARA CONCRETO E ARGAMASSA, LIQUIDO E ISENTO DE CLORETOS | D143: L | E143: CR | F143: 7.41
A144: MATERIAL | B144: 43617 | C144: ADITIVO PLASTIFICANTE E ESTABILIZADOR PARA ARGAMASSAS DE ASSENTAMENTO E REBOCO, LIQUIDO E ISENTO DE CLORETOS | D144: L | E144: CR | F144: 8.28
A145: MATERIAL | B145: 132 | C145: ADITIVO PLASTIFICANTE RETARDADOR DE PEGA E REDUTOR DE AGUA PARA CONCRETO, LIQUIDO E ISENTO DE CLORETOS | D145: L | E145: CR | F145: 7.69
A146: MATERIAL | B146: 43618 | C146: ADITIVO SUPERPLASTIFICANTE DE PEGA NORMAL PARA CONCRETO, LIQUIDO E ISENTO DE CLORETOS | D146: KG | E146: CR | F146: 19.36
A147: MATERIAL | B147: 37476 | C147: ADUELA/ GALERIA PRE-MOLDADA DE CONCRETO ARMADO, SECAO QUADRADA INTERNA DE 1,50 X 1,50 M (L X A), MISULA DE 20 X 20 CM, C = 1,00 M, ESPESSURA MIN = 15 CM, TB-45 E FCK DO CONCRETO = 30 MPA | D147: UN | E147: CR | F147: 2828.57
A148: MATERIAL | B148: 37478 | C148: ADUELA/ GALERIA PRE-MOLDADA DE CONCRETO ARMADO, SECAO RETANGULAR INTERNA DE 2,00 X 2,00 M (L X A), MISULA DE 20 X 20 CM, C = 1,00 M, ESPESSURA MIN = 15 CM, TB-45 E FCK DO CONCRETO = 30 MPA | D148: UN | E148: CR | F148: 3542.85
A149: MATERIAL | B149: 37477 | C149: ADUELA/ GALERIA PRE-MOLDADA DE CONCRETO ARMADO, SECAO RETANGULAR INTERNA DE 2,50 X 2,50 M (L X A), MISULA DE 20 X 20 CM, C = 1,00 M, ESPESSURA MIN = 15 CM, TB-45 E FCK DO CONCRETO = 30 MPA | D149: UN | E149: CR | F149: 4799.99
A150: MATERIAL | B150: 37479 | C150: ADUELA/ GALERIA PRE-MOLDADA DE CONCRETO ARMADO, SECAO RETANGULAR INTERNA DE 3,00 X 3,00 M (L X A), MISULA DE 20 X 20 CM, C = 1.00 M, ESPESSURA MIN = 20 CM, TB-45 E FCK DO CONCRETO = 30 MPA | D150: UN | E150: CR | F150: 5692.85
A151: MATERIAL | B151: 4319 | C151: AFASTADOR PARA TELHA DE FIBROCIMENTO CANALETE 90 OU KALHETAO | D151: UN | E151: CR | F151: 1.17
A152: MATERIAL | B152: 42409 | C152: AGENTE DE CURA, PROTETOR DA EVAPORACAO DA AGUA DE HIDRATACAO DO CONCRETO | D152: KG | E152: CR | F152: 12.19
A153: MATERIAL | B153: 40553 | C153: AGREGADO RECICLADO, TIPO RACHAO RECICLADO CINZA, CLASSE A | D153: M3 | E153: C
A154: MAO DE OBRA | B154: 6114 | C154: AJUDANTE DE ARMADOR (HORISTA) | D154: H | E154: CR | F154: 16.74
A155: MAO DE OBRA | B155: 40912 | C155: AJUDANTE DE ARMADOR (MENSALISTA) | D155: MES | E155: CR | F155: 2931.19
A156: MAO DE OBRA | B156: 247 | C156: AJUDANTE DE ELETRICISTA (HORISTA) | D156: H | E156: CR | F156: 16.74
A157: MAO DE OBRA | B157: 40919 | C157: AJUDANTE DE ELETRICISTA (MENSALISTA) | D157: MES | E157: CR | F157: 2931.19
A158: MAO DE OBRA | B158: 44499 | C158: AJUDANTE DE ESTRUTURAS METALICAS (HORISTA) | D158: H | E158: CR | F158: 16.74
A159: MAO DE OBRA | B159: 40984 | C159: AJUDANTE DE ESTRUTURAS METALICAS (MENSALISTA) | D159: MES | E159: CR | F159: 2931.19
A160: MAO DE OBRA | B160: 248 | C160: AJUDANTE DE OPERACAO EM GERAL (HORISTA) | D160: H | E160: CR | F160: 16.89
A161: MAO DE OBRA | B161: 41086 | C161: AJUDANTE DE OPERACAO EM GERAL (MENSALISTA) | D161: MES | E161: CR | F161: 2957.17
A162: MAO DE OBRA | B162: 34466 | C162: AJUDANTE DE PINTOR (HORISTA) | D162: H | E162: CR | F162: 16.74
A163: MAO DE OBRA | B163: 41083 | C163: AJUDANTE DE PINTOR (MENSALISTA) | D163: MES | E163: CR | F163: 2931.19
A164: MAO DE OBRA | B164: 252 | C164: AJUDANTE DE SERRALHEIRO (HORISTA) | D164: H | E164: CR | F164: 16.74
A165: MAO DE OBRA | B165: 40909 | C165: AJUDANTE DE SERRALHEIRO (MENSALISTA) | D165: MES | E165: CR | F165: 2931.19
A166: MAO DE OBRA | B166: 242 | C166: AJUDANTE ESPECIALIZADO (HORISTA) | D166: H | E166: CR | F166: 16.89
A167: MAO DE OBRA | B167: 41085 | C167: AJUDANTE ESPECIALIZADO (MENSALISTA) | D167: MES | E167: CR | F167: 2957.17
A168: MATERIAL | B168: 427 | C168: ALCA PREFORMADA DE CONTRA POSTE, EM ACO GALVANIZADO, PARA CABO 3/16", COMPRIMENTO *860* MM | D168: UN | E168: CR
A169: MATERIAL | B169: 417 | C169: ALCA PREFORMADA DE DISTRIBUICAO, EM ACO GALVANIZADO, PARA CABO DE ALUMINIO DIAMETRO 16 A 25 MM | D169: UN | E169: CR
A170: MATERIAL | B170: 11273 | C170: ALCA PREFORMADA DE DISTRIBUICAO, EM ACO GALVANIZADO, PARA CONDUTORES DE ALUMINIO AWG 1/0 (CAA 6/1 OU CA 7 FIOS) | D170: UN | E170: CR
A171: MATERIAL | B171: 11272 | C171: ALCA PREFORMADA DE DISTRIBUICAO, EM ACO GALVANIZADO, PARA CONDUTORES DE ALUMINIO AWG 2 (CAA 6/1 OU CA 7 FIOS) | D171: UN | E171: CR
A172: MATERIAL | B172: 11275 | C172: ALCA PREFORMADA DE SERVICO, EM ACO GALVANIZADO, PARA CONDUTORES DE ALUMINIO AWG 4 (CAA 6/1) | D172: UN | E172: CR
A173: MATERIAL | B173: 11274 | C173: ALCA PREFORMADA DE SERVICO, EM ACO GALVANIZADO, PARA CONDUTORES DE ALUMINIO AWG 6 (CAA 6/1) | D173: UN | E173: CR
A174: MATERIAL | B174: 38470 | C174: ALICATE DE CORTE DIAGONAL 6" COM ISOLAMENTO | D174: UN | E174: C | F174: 43.23
A175: MATERIAL | B175: 38547 | C175: ALICATE DE CRIMPAR RJ11, RJ12 E RJ45, COM CATRACA | D175: UN | E175: CR | F175: 117.97
A176: MATERIAL | B176: 38467 | C176: ALICATE DE PRESSAO 11" PARA SOLDA, TIPO C | D176: UN | E176: CR | F176: 71.37
A177: MATERIAL | B177: 38468 | C177: ALICATE DE PRESSAO 11" PARA SOLDA, TIPO U | D177: UN | E177: CR | F177: 78.54
A178: MATERIAL | B178: 38469 | C178: ALICATE DE PRESSAO PARA SOLDA DE CHAPA 18" | D178: UN | E178: CR | F178: 126.84
A179: MATERIAL | B179: 38471 | C179: ALICATE PARA ANEIS DE PISTAO, CAPACIDADE *50* A 100 MM | D179: UN | E179: CR | F179: 101.99
A180: MATERIAL | B180: 37370 | C180: ALIMENTACAO - HORISTA (COLETADO CAIXA - ENCARGOS COMPLEMENTARES) | D180: H | E180: C | F180: 2.79
A181: MATERIAL | B181: 40862 | C181: ALIMENTACAO - MENSALISTA (COLETADO CAIXA - ENCARGOS COMPLEMENTARES) | D181: MES | E181: C | F181: 526.86
A182: EQUIPAMENTO (AQUISIÇÃO) | B182: 10658 | C182: ALISADORA DE CONCRETO COM MOTOR A GASOLINA DE 5,5 HP, PESO COM MOTOR DE 78 KG, 4 PAS | D182: UN | E182: C
A183: MAO DE OBRA | B183: 253 | C183: ALMOXARIFE (HORISTA) | D183: H | E183: C | F183: 20.97
A184: MAO DE OBRA | B184: 40809 | C184: ALMOXARIFE (MENSALISTA) | D184: MES | E184: CR | F184: 3671.31
A185: MATERIAL | B185: 42428 | C185: ALONGADOR COM TRES ALTURAS, EM TUBO DE ACO CARBONO, PINTURA NO PROCESSO ELETROSTATICO - EQUIPAMENTO DE GINASTICA PARA ACADEMIA AO AR LIVRE / ACADEMIA DA TERCEIRA IDADE - ATI | D185: UN | E185: C
A186: MATERIAL | B186: 301 | C186: ANEL BORRACHA PARA TUBO ESGOTO PREDIAL, DN 100 MM (NBR 5688) | D186: UN | E186: C | F186: 3.8
A187: MATERIAL | B187: 296 | C187: ANEL BORRACHA PARA TUBO ESGOTO PREDIAL, DN 50 MM (NBR 5688) | D187: UN | E187: CR | F187: 2.14
A188: MATERIAL | B188: 297 | C188: ANEL BORRACHA PARA TUBO ESGOTO PREDIAL, DN 75 MM (NBR 5688) | D188: UN | E188: CR | F188: 3.15
A189: MATERIAL | B189: 299 | C189: ANEL BORRACHA, DN 100 MM, PARA TUBO SERIE REFORCADA ESGOTO PREDIAL | D189: UN | E189: CR | F189: 4.46
A190: MATERIAL | B190: 300 | C190: ANEL BORRACHA, DN 150 MM, PARA TUBO SERIE REFORCADA ESGOTO PREDIAL | D190: UN | E190: CR | F190: 15.42
A191: MATERIAL | B191: 20085 | C191: ANEL BORRACHA, DN 50 MM, PARA TUBO SERIE REFORCADA ESGOTO PREDIAL | D191: UN | E191: CR | F191: 2.82
A192: MATERIAL | B192: 298 | C192: ANEL BORRACHA, DN 75 MM, PARA TUBO SERIE REFORCADA ESGOTO PREDIAL | D192: UN | E192: CR | F192: 3.43
A193: MATERIAL | B193: 311 | C193: ANEL BORRACHA, PARA TUBO PVC DEFOFO, DN 100 MM (NBR 7665) | D193: UN | E193: CR | F193: 12.72
A194: MATERIAL | B194: 318 | C194: ANEL BORRACHA, PARA TUBO PVC DEFOFO, DN 150 MM (NBR 7665) | D194: UN | E194: CR | F194: 25.62
A195: MATERIAL | B195: 319 | C195: ANEL BORRACHA, PARA TUBO PVC DEFOFO, DN 200 MM (NBR 7665) | D195: UN | E195: CR | F195: 40.17
A196: MATERIAL | B196: 303 | C196: ANEL BORRACHA, PARA TUBO PVC, REDE COLETOR ESGOTO, DN 100 MM (NBR 7362) | D196: UN | E196: CR | F196: 4.21
A197: MATERIAL | B197: 305 | C197: ANEL BORRACHA, PARA TUBO PVC, REDE COLETOR ESGOTO, DN 150 MM (NBR 7362) | D197: UN | E197: CR | F197: 13.24
A198: MATERIAL | B198: 306 | C198: ANEL BORRACHA, PARA TUBO PVC, REDE COLETOR ESGOTO, DN 200 MM (NBR 7362) | D198: UN | E198: CR | F198: 20.08
A199: MATERIAL | B199: 307 | C199: ANEL BORRACHA, PARA TUBO PVC, REDE COLETOR ESGOTO, DN 250 MM (NBR 7362) | D199: UN | E199: CR | F199: 50.74
A200: MATERIAL | B200: 309 | C200: ANEL BORRACHA, PARA TUBO PVC, REDE COLETOR ESGOTO, DN 350 MM (NBR 7362) | D200: UN | E200: CR | F200: 83.12
A201: MATERIAL | B201: 310 | C201: ANEL BORRACHA, PARA TUBO PVC, REDE COLETOR ESGOTO, DN 400 MM (NBR 7362) | D201: UN | E201: CR | F201: 115.2
... 4646 more rows

Sheet SINAPI-CSD
A1: SINAPI - Sistema Nacional de Pesquisa de Custos e Índices da Construção Civil
A2: RELATÓRIO DE CUSTOS DE COMPOSIÇÕES - ENCARGOS SOCIAIS SEM DESONERAÇÃO
A3: Mês de Referência: | B3: 04/2025 | D3: Encargos sociais sobre a mão de obra:
A4: Data de emissão: | B4: 09/05/2025 | D4: (SEM DESONERAÇÃO) | E4: PE
D5: Localidade | E5: RECIFE
A6: Observação: | B6: %AS (porcentagem Atribuído São Paulo) corresponde a porcentagem do custo total da | D6: Horista | E6: 1.1384
B7: composição que foi obtida utilizando preços de insumos de São Paulo por indisponibilidade | D7: Mensalista | E7: 0.7011
B8: dos preços de insumos necessários à composição no estado em questão. Custo zerado (hífen)
B9: indica que pelo menos um dos itens da composição não tem custo/preço. | E9: PE
A10: Grupo | B10: Código da Composição | C10: Descrição | D10: Unidade | E10: Custo (R$) | F10: %AS
A11: Acessibilidade | B11: 104658 | C11: PISO PODOTÁTIL DE ALERTA OU DIRECIONAL, DE CONCRETO, ASSENTADO SOBRE ARGAMASSA. AF_03/2024 | D11: M2 | E11: 145.79 | F11: 0
A12: Acessibilidade | B12: 105002 | C12: RAMPA DE ACESSIBILIDADE EM CONCRETO MOLDADO IN LOCO, EM CALÇADA NOVA COM LARGURA MAIOR OU IGUAL À 3,00 M, FCK 25MPA, COM PISO PODOTÁTIL. AF_03/2024 | D12: UN | E12: 715.35 | F12: 0
A13: Acessibilidade | B13: 105004 | C13: RAMPA DE ACESSIBILIDADE EM CONCRETO MOLDADO IN LOCO, EM CALÇADA NOVA COM LARGURA MENOR À 3,00 M, FCK 25MPA, COM PISO PODOTÁTIL. AF_03/2024 | D13: M2 | E13: 121.61 | F13: 0
A14: Acessibilidade | B14: 105003 | C14: RAMPA DE ACESSIBILIDADE EM CONCRETO MOLDADO IN LOCO, EM CALÇADA PRÉ EXISTENTE COM LARGURA MAIOR OU IGUAL À 3,00 M, FCK 25MPA, COM PISO PODOTÁTIL. AF_03/2024 | D14: UN | E14: 1144.47 | F14: 0.0644
A15: Acessibilidade | B15: 105005 | C15: RAMPA DE ACESSIBILIDADE EM CONCRETO MOLDADO IN LOCO, EM CALÇADA PRÉ EXISTENTE COM LARGURA MENOR À 3,00 M, FCK 25MPA, COM PISO PODOTÁTIL. AF_03/2024 | D15: M2 | E15: 201.07 | F15: 0.0678
A16: Acessibilidade | B16: 105006 | C16: RAMPA DE ACESSIBILIDADE EM CONCRETO PRÉ MOLDADO, EM CALÇADA NOVA COM LARGURA MAIOR OU IGUAL À 3,00 M, FCK 25MPA, COM PISO PODOTÁTIL. AF_03/2024 | D16: UN | E16: 0
A17: Acessibilidade | B17: 104999 | C17: RAMPA DE ACESSIBILIDADE EM CONCRETO PRÉ MOLDADO, EM CALÇADA PRÉ EXISTENTE COM LARGURA MAIOR OU IGUAL À 3,00 M, FCK 25MPA, COM PISO PODOTÁTIL. AF_03/2024 | D17: UN | E17: 0
A18: Acessibilidade | B18: 105000 | C18: RAMPA DE ACESSIBILIDADE PARA ACESSO A EDIFICAÇÕES COM INCLINAÇÃO DE 8,33% EM CONCRETO MOLDADO IN LOCO, COM LARGURA DE 1,20M, FCK 25MPA, NÃO ARMADA, COM JUNTA A CADA 2M COM CORTE À SECO. AF_03/2024 | D18: M | E18: 1298.44 | F18: 0
A19: Acessibilidade | B19: 105001 | C19: RAMPA DE ACESSIBILIDADE PARA ACESSO A EDIFICAÇÕES COM INCLINAÇÃO DE 8,33% EM CONCRETO MOLDADO IN LOCO, COM LARGURA DE 1,50M, FCK 25MPA, NÃO ARMADA, COM JUNTA A CADA 2M COM CORTE À SECO. AF_03/2024 | D19: M | E19: 1328.88 | F19: 0
A20: Alvenaria Estrutural - Blocos Cerâmicos | B20: 89306 | C20: ALVENARIA ESTRUTURAL DE BLOCOS CERÂMICOS 14X19X29, (ESPESSURA DE 14 CM), UTILIZANDO COLHER DE PEDREIRO E ARGAMASSA DE ASSENTAMENTO COM PREPARO EM BETONEIRA. AF_03/2023 | D20: M2 | E20: 91.48 | F20: 0
A21: Alvenaria Estrutural - Blocos Cerâmicos | B21: 89307 | C21: ALVENARIA ESTRUTURAL DE BLOCOS CERÂMICOS 14X19X29, (ESPESSURA DE 14 CM), UTILIZANDO COLHER DE PEDREIRO E ARGAMASSA DE ASSENTAMENTO COM PREPARO MANUAL. AF_03/2023 | D21: M2 | E21: 94.14 | F21: 0
A22: Alvenaria Estrutural - Blocos Cerâmicos | B22: 89290 | C22: ALVENARIA ESTRUTURAL DE BLOCOS CERÂMICOS 14X19X29, (ESPESSURA DE 14 CM), UTILIZANDO PALHETA E ARGAMASSA DE ASSENTAMENTO COM PREPARO EM BETONEIRA. AF_03/2023 | D22: M2 | E22: 74.69 | F22: 0
A23: Alvenaria Estrutural - Blocos Cerâmicos | B23: 89291 | C23: ALVENARIA ESTRUTURAL DE BLOCOS CERÂMICOS 14X19X29, (ESPESSURA DE 14 CM), UTILIZANDO PALHETA E ARGAMASSA DE ASSENTAMENTO COM PREPARO MANUAL. AF_03/2023 | D23: M2 | E23: 76.67 | F23: 0
A24: Alvenaria Estrutural - Blocos Cerâmicos | B24: 89298 | C24: ALVENARIA ESTRUTURAL DE BLOCOS CERÂMICOS 14X19X39, (ESPESSURA DE 14 CM), UTILIZANDO COLHER DE PEDREIRO E ARGAMASSA DE ASSENTAMENTO COM PREPARO EM BETONEIRA. AF_03/2023 | D24: M2 | E24: 78.13 | F24: 0
A25: Alvenaria Estrutural - Blocos Cerâmicos | B25: 89299 | C25: ALVENARIA ESTRUTURAL DE BLOCOS CERÂMICOS 14X19X39, (ESPESSURA DE 14 CM), UTILIZANDO COLHER DE PEDREIRO E ARGAMASSA DE ASSENTAMENTO COM PREPARO MANUAL. AF_03/2023 | D25: M2 | E25: 80.52 | F25: 0
A26: Alvenaria Estrutural - Blocos Cerâmicos | B26: 89282 | C26: ALVENARIA ESTRUTURAL DE BLOCOS CERÂMICOS 14X19X39, (ESPESSURA DE 14 CM), UTILIZANDO PALHETA E ARGAMASSA DE ASSENTAMENTO COM PREPARO EM BETONEIRA. AF_03/2023 | D26: M2 | E26: 66.25 | F26: 0
A27: Alvenaria Estrutural - Blocos Cerâmicos | B27: 89283 | C27: ALVENARIA ESTRUTURAL DE BLOCOS CERÂMICOS 14X19X39, (ESPESSURA DE 14 CM), UTILIZANDO PALHETA E ARGAMASSA DE ASSENTAMENTO COM PREPARO MANUAL. AF_03/2023 | D27: M2 | E27: 68.04 | F27: 0
A28: Alvenaria Estrutural - Blocos de Concreto | B28: 89480 | C28: ALVENARIA DE BLOCOS DE CONCRETO ESTRUTURAL 14X19X29 CM (ESPESSURA 14 CM), FBK = 14 MPA, UTILIZANDO COLHER DE PEDREIRO. AF_10/2022 | D28: M2 | E28: 156.26 | F28: 0
A29: Alvenaria Estrutural - Blocos de Concreto | B29: 89464 | C29: ALVENARIA DE BLOCOS DE CONCRETO ESTRUTURAL 14X19X29 CM (ESPESSURA 14 CM), FBK = 14,0 MPA, UTILIZANDO PALHETA. AF_10/2022 | D29: M2 | E29: 135.56 | F29: 0
A30: Alvenaria Estrutural - Blocos de Concreto | B30: 89478 | C30: ALVENARIA DE BLOCOS DE CONCRETO ESTRUTURAL 14X19X29 CM (ESPESSURA 14 CM), FBK = 4,5 MPA, UTILIZANDO COLHER DE PEDREIRO. AF_10/2022 | D30: M2 | E30: 135.96 | F30: 0
A31: Alvenaria Estrutural - Blocos de Concreto | B31: 89462 | C31: ALVENARIA DE BLOCOS DE CONCRETO ESTRUTURAL 14X19X29 CM (ESPESSURA 14 CM), FBK = 4,5 MPA, UTILIZANDO PALHETA. AF_10/2022 | D31: M2 | E31: 115.98 | F31: 0
A32: Alvenaria Estrutural - Blocos de Concreto | B32: 104444 | C32: ALVENARIA DE BLOCOS DE CONCRETO ESTRUTURAL 14X19X29 CM (ESPESSURA 14 CM), FBK = 8 MPA, UTILIZANDO COLHER DE PEDREIRO. AF_10/2022 | D32: M2 | E32: 0
A33: Alvenaria Estrutural - Blocos de Concreto | B33: 104442 | C33: ALVENARIA DE BLOCOS DE CONCRETO ESTRUTURAL 14X19X29 CM (ESPESSURA 14 CM), FBK = 8 MPA, UTILIZANDO PALHETA. AF_10/2022 | D33: M2 | E33: 0
A34: Alvenaria Estrutural - Blocos de Concreto | B34: 89472 | C34: ALVENARIA DE BLOCOS DE CONCRETO ESTRUTURAL 14X19X39 CM (ESPESSURA 14 CM), FBK = 14 MPA, UTILIZANDO COLHER DE PEDREIRO. AF_10/2022 | D34: M2 | E34: 119.08 | F34: 0
A35: Alvenaria Estrutural - Blocos de Concreto | B35: 89455 | C35: ALVENARIA DE BLOCOS DE CONCRETO ESTRUTURAL 14X19X39 CM (ESPESSURA 14 CM), FBK = 14 MPA, UTILIZANDO PALHETA. AF_10/2022 | D35: M2 | E35: 105.99 | F35: 0
A36: Alvenaria Estrutural - Blocos de Concreto | B36: 89470 | C36: ALVENARIA DE BLOCOS DE CONCRETO ESTRUTURAL 14X19X39 CM (ESPESSURA 14 CM), FBK = 4,5 MPA, UTILIZANDO COLHER DE PEDREIRO. AF_10/2022 | D36: M2 | E36: 100.45 | F36: 0
A37: Alvenaria Estrutural - Blocos de Concreto | B37: 89453 | C37: ALVENARIA DE BLOCOS DE CONCRETO ESTRUTURAL 14X19X39 CM (ESPESSURA 14 CM), FBK = 4,5 MPA, UTILIZANDO PALHETA. AF_10/2022 | D37: M2 | E37: 88.11 | F37: 0
A38: Alvenaria Estrutural - Blocos de Concreto | B38: 104443 | C38: ALVENARIA DE BLOCOS DE CONCRETO ESTRUTURAL 14X19X39 CM (ESPESSURA 14 CM), FBK = 8 MPA, UTILIZANDO COLHER DE PEDREIRO. AF_10/2022 | D38: M2 | E38: 0
A39: Alvenaria Estrutural - Blocos de Concreto | B39: 104441 | C39: ALVENARIA DE BLOCOS DE CONCRETO ESTRUTURAL 14X19X39 CM (ESPESSURA 14 CM), FBK = 8 MPA, UTILIZANDO PALHETA. AF_10/2022 | D39: M2 | E39: 0
A40: Alvenaria de Vedação | B40: 103354 | C40: ALVENARIA DE VEDAÇÃO DE BLOCOS CERÂMICOS FURADOS NA HORIZONTAL DE 11,5X14X24 CM (ESPESSURA 11,5 CM) E ARGAMASSA DE ASSENTAMENTO COM PREPARO EM BETONEIRA. AF_12/2021 | D40: M2 | E40: 85.65 | F40: 0.0072
A41: Alvenaria de Vedação | B41: 103355 | C41: ALVENARIA DE VEDAÇÃO DE BLOCOS CERÂMICOS FURADOS NA HORIZONTAL DE 11,5X14X24 CM (ESPESSURA 11,5 CM) E ARGAMASSA DE ASSENTAMENTO COM PREPARO MANUAL. AF_12/2021 | D41: M2 | E41: 87.15 | F41: 0.0071
A42: Alvenaria de Vedação | B42: 103330 | C42: ALVENARIA DE VEDAÇÃO DE BLOCOS CERÂMICOS FURADOS NA HORIZONTAL DE 11,5X19X19 CM (ESPESSURA 11,5 CM) E ARGAMASSA DE ASSENTAMENTO COM PREPARO EM BETONEIRA. AF_12/2021 | D42: M2 | E42: 78.94 | F42: 0.0057
A43: Alvenaria de Vedação | B43: 103331 | C43: ALVENARIA DE VEDAÇÃO DE BLOCOS CERÂMICOS FURADOS NA HORIZONTAL DE 11,5X19X19 CM (ESPESSURA 11,5 CM) E ARGAMASSA DE ASSENTAMENTO COM PREPARO MANUAL. AF_12/2021 | D43: M2 | E43: 80.36 | F43: 0.0056
A44: Alvenaria de Vedação | B44: 103358 | C44: ALVENARIA DE VEDAÇÃO DE BLOCOS CERÂMICOS FURADOS NA HORIZONTAL DE 11,5X19X29 CM (ESPESSURA 11,5 CM) E ARGAMASSA DE ASSENTAMENTO COM PREPARO EM BETONEIRA. AF_12/2021 | D44: M2 | E44: 66.44 | F44: 0.0068
A45: Alvenaria de Vedação | B45: 103359 | C45: ALVENARIA DE VEDAÇÃO DE BLOCOS CERÂMICOS FURADOS NA HORIZONTAL DE 11,5X19X29 CM (ESPESSURA 11,5 CM) E ARGAMASSA DE ASSENTAMENTO COM PREPARO MANUAL. AF_12/2021 | D45: M2 | E45: 67.64 | F45: 0.0067
A46: Alvenaria de Vedação | B46: 103366 | C46: ALVENARIA DE VEDAÇÃO DE BLOCOS CERÂMICOS FURADOS NA HORIZONTAL DE 11,5X19X39 CM (ESPESSURA 11,5 CM) E ARGAMASSA DE ASSENTAMENTO COM PREPARO EM BETONEIRA. AF_12/2021 | D46: M2 | E46: 57.6 | F46: 0.0078
A47: Alvenaria de Vedação | B47: 103367 | C47: ALVENARIA DE VEDAÇÃO DE BLOCOS CERÂMICOS FURADOS NA HORIZONTAL DE 11,5X19X39 CM (ESPESSURA 11,5 CM) E ARGAMASSA DE ASSENTAMENTO COM PREPARO MANUAL. AF_12/2021 | D47: M2 | E47: 58.69 | F47: 0.0077
A48: Alvenaria de Vedação | B48: 103360 | C48: ALVENARIA DE VEDAÇÃO DE BLOCOS CERÂMICOS FURADOS NA HORIZONTAL DE 14X19X29 CM (ESPESSURA 14 CM) E ARGAMASSA DE ASSENTAMENTO COM PREPARO EM BETONEIRA. AF_12/2021 | D48: M2 | E48: 77.86 | F48: 0.0058
A49: Alvenaria de Vedação | B49: 103361 | C49: ALVENARIA DE VEDAÇÃO DE BLOCOS CERÂMICOS FURADOS NA HORIZONTAL DE 14X19X29 CM (ESPESSURA 14 CM) E ARGAMASSA DE ASSENTAMENTO COM PREPARO MANUAL. AF_12/2021 | D49: M2 | E49: 79.38 | F49: 0.0057
A50: Alvenaria de Vedação | B50: 103368 | C50: ALVENARIA DE VEDAÇÃO DE BLOCOS CERÂMICOS FURADOS NA HORIZONTAL DE 14X19X39 CM (ESPESSURA 14 CM) E ARGAMASSA DE ASSENTAMENTO COM PREPARO EM BETONEIRA. AF_12/2021 | D50: M2 | E50: 65.61 | F50: 0.0069
A51: Alvenaria de Vedação | B51: 103369 | C51: ALVENARIA DE VEDAÇÃO DE BLOCOS CERÂMICOS FURADOS NA HORIZONTAL DE 14X19X39 CM (ESPESSURA 14 CM) E ARGAMASSA DE ASSENTAMENTO COM PREPARO MANUAL. AF_12/2021 | D51: M2 | E51: 66.98 | F51: 0.0067
A52: Alvenaria de Vedação | B52: 103334 | C52: ALVENARIA DE VEDAÇÃO DE BLOCOS CERÂMICOS FURADOS NA HORIZONTAL DE 14X9X19 CM (ESPESSURA 14 CM, BLOCO DEITADO) E ARGAMASSA DE ASSENTAMENTO COM PREPARO EM BETONEIRA. AF_12/2021 | D52: M2 | E52: 140.08 | F52: 0.0062
A53: Alvenaria de Vedação | B53: 103335 | C53: ALVENARIA DE VEDAÇÃO DE BLOCOS CERÂMICOS FURADOS NA HORIZONTAL DE 14X9X19 CM (ESPESSURA 14 CM, BLOCO DEITADO) E ARGAMASSA DE ASSENTAMENTO COM PREPARO MANUAL. AF_12/2021 | D53: M2 | E53: 142.72 | F53: 0.0061
A54: Alvenaria de Vedação | B54: 103362 | C54: ALVENARIA DE VEDAÇÃO DE BLOCOS CERÂMICOS FURADOS NA HORIZONTAL DE 19X19X29 CM (ESPESSURA 19 CM) E ARGAMASSA DE ASSENTAMENTO COM PREPARO EM BETONEIRA. AF_12/2021 | D54: M2 | E54: 93.86 | F54: 0.0048
A55: Alvenaria de Vedação | B55: 103363 | C55: ALVENARIA DE VEDAÇÃO DE BLOCOS CERÂMICOS FURADOS NA HORIZONTAL DE 19X19X29 CM (ESPESSURA 19 CM) E ARGAMASSA DE ASSENTAMENTO COM PREPARO MANUAL. AF_12/2021 | D55: M2 | E55: 95.56 | F55: 0.0047
A56: Alvenaria de Vedação | B56: 103370 | C56: ALVENARIA DE VEDAÇÃO DE BLOCOS CERÂMICOS FURADOS NA HORIZONTAL DE 19X19X39 CM (ESPESSURA 19 CM) E ARGAMASSA DE ASSENTAMENTO COM PREPARO EM BETONEIRA. AF_12/2021 | D56: M2 | E56: 82.09 | F56: 0.0055
A57: Alvenaria de Vedação | B57: 103371 | C57: ALVENARIA DE VEDAÇÃO DE BLOCOS CERÂMICOS FURADOS NA HORIZONTAL DE 19X19X39 CM (ESPESSURA 19 CM) E ARGAMASSA DE ASSENTAMENTO COM PREPARO MANUAL. AF_12/2021 | D57: M2 | E57: 83.63 | F57: 0.0054
A58: Alvenaria de Vedação | B58: 103332 | C58: ALVENARIA DE VEDAÇÃO DE BLOCOS CERÂMICOS FURADOS NA HORIZONTAL DE 9X14X19 CM (ESPESSURA 9 CM) E ARGAMASSA DE ASSENTAMENTO COM PREPARO EM BETONEIRA. AF_12/2021 | D58: M2 | E58: 117.3 | F58: 0.0026
A59: Alvenaria de Vedação | B59: 103333 | C59: ALVENARIA DE VEDAÇÃO DE BLOCOS CERÂMICOS FURADOS NA HORIZONTAL DE 9X14X19 CM (ESPESSURA 9 CM) E ARGAMASSA DE ASSENTAMENTO COM PREPARO MANUAL. AF_12/2021 | D59: M2 | E59: 118.82 | F59: 0.0026
A60: Alvenaria de Vedação | B60: 103352 | C60: ALVENARIA DE VEDAÇÃO DE BLOCOS CERÂMICOS FURADOS NA HORIZONTAL DE 9X14X24 CM (ESPESSURA 9 CM) E ARGAMASSA DE ASSENTAMENTO COM PREPARO EM BETONEIRA. AF_12/2021 | D60: M2 | E60: 100.29 | F60: 0.0031
A61: Alvenaria de Vedação | B61: 103353 | C61: ALVENARIA DE VEDAÇÃO DE BLOCOS CERÂMICOS FURADOS NA HORIZONTAL DE 9X14X24 CM (ESPESSURA 9 CM) E ARGAMASSA DE ASSENTAMENTO COM PREPARO MANUAL. AF_12/2021 | D61: M2 | E61: 101.69 | F61: 0.003
A62: Alvenaria de Vedação | B62: 103328 | C62: ALVENARIA DE VEDAÇÃO DE BLOCOS CERÂMICOS FURADOS NA HORIZONTAL DE 9X19X19 CM (ESPESSURA 9 CM) E ARGAMASSA DE ASSENTAMENTO COM PREPARO EM BETONEIRA. AF_12/2021 | D62: M2 | E62: 91.43 | F62: 0.0024
A63: Alvenaria de Vedação | B63: 103329 | C63: ALVENARIA DE VEDAÇÃO DE BLOCOS CERÂMICOS FURADOS NA HORIZONTAL DE 9X19X19 CM (ESPESSURA 9 CM) E ARGAMASSA DE ASSENTAMENTO COM PREPARO MANUAL. AF_12/2021 | D63: M2 | E63: 92.75 | F63: 0.0024
A64: Alvenaria de Vedação | B64: 103356 | C64: ALVENARIA DE VEDAÇÃO DE BLOCOS CERÂMICOS FURADOS NA HORIZONTAL DE 9X19X29 CM (ESPESSURA 9 CM) E ARGAMASSA DE ASSENTAMENTO COM PREPARO EM BETONEIRA. AF_12/2021 | D64: M2 | E64: 57.76 | F64: 0.0038
A65: Alvenaria de Vedação | B65: 103357 | C65: ALVENARIA DE VEDAÇÃO DE BLOCOS CERÂMICOS FURADOS NA HORIZONTAL DE 9X19X29 CM (ESPESSURA 9 CM) E ARGAMASSA DE ASSENTAMENTO COM PREPARO MANUAL. AF_12/2021 | D65: M2 | E65: 58.88 | F65: 0.0037
A66: Alvenaria de Vedação | B66: 103364 | C66: ALVENARIA DE VEDAÇÃO DE BLOCOS CERÂMICOS FURADOS NA HORIZONTAL DE 9X19X39 CM (ESPESSURA 9 CM) E ARGAMASSA DE ASSENTAMENTO COM PREPARO EM BETONEIRA. AF_12/2021 | D66: M2 | E66: 47.97 | F66: 0.0094
A67: Alvenaria de Vedação | B67: 103365 | C67: ALVENARIA DE VEDAÇÃO DE BLOCOS CERÂMICOS FURADOS NA HORIZONTAL DE 9X19X39 CM (ESPESSURA 9 CM) E ARGAMASSA DE ASSENTAMENTO COM PREPARO MANUAL. AF_12/2021 | D67: M2 | E67: 48.73 | F67: 0.0045
A68: Alvenaria de Vedação | B68: 103350 | C68: ALVENARIA DE VEDAÇÃO DE BLOCOS CERÂMICOS FURADOS NA HORIZONTAL DE 9X9X19 CM (ESPESSURA 9 CM) E ARGAMASSA DE ASSENTAMENTO COM PREPARO EM BETONEIRA. AF_12/2021 | D68: M2 | E68: 169.07 | F68: 0.0025
A69: Alvenaria de Vedação | B69: 103351 | C69: ALVENARIA DE VEDAÇÃO DE BLOCOS CERÂMICOS FURADOS NA HORIZONTAL DE 9X9X19 CM (ESPESSURA 9 CM) E ARGAMASSA DE ASSENTAMENTO COM PREPARO MANUAL. AF_12/2021 | D69: M2 | E69: 171 | F69: 0.0025
A70: Alvenaria de Vedação | B70: 103344 | C70: ALVENARIA DE VEDAÇÃO DE BLOCOS CERÂMICOS FURADOS NA VERTICAL DE 11,5X19X29 CM (ESPESSURA 11,5 CM) E ARGAMASSA DE ASSENTAMENTO COM PREPARO EM BETONEIRA. AF_12/2021 | D70: M2 | E70: 77.8 | F70: 0.0058
A71: Alvenaria de Vedação | B71: 103345 | C71: ALVENARIA DE VEDAÇÃO DE BLOCOS CERÂMICOS FURADOS NA VERTICAL DE 11,5X19X29 CM (ESPESSURA 11,5 CM) E ARGAMASSA DE ASSENTAMENTO COM PREPARO MANUAL. AF_12/2021 | D71: M2 | E71: 79.56 | F71: 0.0057
A72: Alvenaria de Vedação | B72: 103348 | C72: ALVENARIA DE VEDAÇÃO DE BLOCOS CERÂMICOS FURADOS NA VERTICAL DE 11,5X19X39 CM (ESPESSURA 11,5 CM) E ARGAMASSA DE ASSENTAMENTO COM PREPARO EM BETONEIRA. AF_12/2021 | D72: M2 | E72: 65.42 | F72: 0.0069
A73: Alvenaria de Vedação | B73: 103349 | C73: ALVENARIA DE VEDAÇÃO DE BLOCOS CERÂMICOS FURADOS NA VERTICAL DE 11,5X19X39 CM (ESPESSURA 11,5 CM) E ARGAMASSA DE ASSENTAMENTO COM PREPARO MANUAL. AF_12/2021 | D73: M2 | E73: 67.02 | F73: 0.0067
A74: Alvenaria de Vedação | B74: 103346 | C74: ALVENARIA DE VEDAÇÃO DE BLOCOS CERÂMICOS FURADOS NA VERTICAL DE 14X19X29 CM (ESPESSURA 14 CM) E ARGAMASSA DE ASSENTAMENTO COM PREPARO EM BETONEIRA. AF_12/2021 | D74: M2 | E74: 86.68 | F74: 0.0052
A75: Alvenaria de Vedação | B75: 103347 | C75: ALVENARIA DE VEDAÇÃO DE BLOCOS CERÂMICOS FURADOS NA VERTICAL DE 14X19X29 CM (ESPESSURA 14 CM) E ARGAMASSA DE ASSENTAMENTO COM PREPARO MANUAL. AF_12/2021 | D75: M2 | E75: 88.55 | F75: 0.0051
A76: Alvenaria de Vedação | B76: 103324 | C76: ALVENARIA DE VEDAÇÃO DE BLOCOS CERÂMICOS FURADOS NA VERTICAL DE 14X19X39 CM (ESPESSURA 14 CM) E ARGAMASSA DE ASSENTAMENTO COM PREPARO EM BETONEIRA. AF_12/2021 | D76: M2 | E76: 74.08 | F76: 0.0061
A77: Alvenaria de Vedação | B77: 103325 | C77: ALVENARIA DE VEDAÇÃO DE BLOCOS CERÂMICOS FURADOS NA VERTICAL DE 14X19X39 CM (ESPESSURA 14 CM) E ARGAMASSA DE ASSENTAMENTO COM PREPARO MANUAL. AF_12/2021 | D77: M2 | E77: 75.78 | F77: 0.0059
A78: Alvenaria de Vedação | B78: 103326 | C78: ALVENARIA DE VEDAÇÃO DE BLOCOS CERÂMICOS FURADOS NA VERTICAL DE 19X19X39 CM (ESPESSURA 19 CM) E ARGAMASSA DE ASSENTAMENTO COM PREPARO EM BETONEIRA. AF_12/2021 | D78: M2 | E78: 87.22 | F78: 0.0052
A79: Alvenaria de Vedação | B79: 103327 | C79: ALVENARIA DE VEDAÇÃO DE BLOCOS CERÂMICOS FURADOS NA VERTICAL DE 19X19X39 CM (ESPESSURA 19 CM) E ARGAMASSA DE ASSENTAMENTO COM PREPARO MANUAL. AF_12/2021 | D79: M2 | E79: 89.21 | F79: 0.005
A80: Alvenaria de Vedação | B80: 103322 | C80: ALVENARIA DE VEDAÇÃO DE BLOCOS CERÂMICOS FURADOS NA VERTICAL DE 9X19X39 CM (ESPESSURA 9 CM) E ARGAMASSA DE ASSENTAMENTO COM PREPARO EM BETONEIRA. AF_12/2021 | D80: M2 | E80: 55.45 | F80: 0.004
A81: Alvenaria de Vedação | B81: 103323 | C81: ALVENARIA DE VEDAÇÃO DE BLOCOS CERÂMICOS FURADOS NA VERTICAL DE 9X19X39 CM (ESPESSURA 9 CM) E ARGAMASSA DE ASSENTAMENTO COM PREPARO MANUAL. AF_12/2021 | D81: M2 | E81: 56.95 | F81: 0.0039
A82: Alvenaria de Vedação | B82: 103338 | C82: ALVENARIA DE VEDAÇÃO DE BLOCOS VAZADOS DE CONCRETO APARENTE DE 14X19X39 CM (ESPESSURA 14 CM) E ARGAMASSA DE ASSENTAMENTO COM PREPARO EM BETONEIRA. AF_12/2021 | D82: M2 | E82: 113.74 | F82: 0.004
A83: Alvenaria de Vedação | B83: 103339 | C83: ALVENARIA DE VEDAÇÃO DE BLOCOS VAZADOS DE CONCRETO APARENTE DE 14X19X39 CM (ESPESSURA 14 CM) E ARGAMASSA DE ASSENTAMENTO COM PREPARO MANUAL. AF_12/2021 | D83: M2 | E83: 115.21 | F83: 0.0039
A84: Alvenaria de Vedação | B84: 103340 | C84: ALVENARIA DE VEDAÇÃO DE BLOCOS VAZADOS DE CONCRETO APARENTE DE 19X19X39 CM (ESPESSURA 19 CM) E ARGAMASSA DE ASSENTAMENTO COM PREPARO EM BETONEIRA. AF_12/2021 | D84: M2 | E84: 137.58 | F84: 0.0033
A85: Alvenaria de Vedação | B85: 103341 | C85: ALVENARIA DE VEDAÇÃO DE BLOCOS VAZADOS DE CONCRETO APARENTE DE 19X19X39 CM (ESPESSURA 19 CM) E ARGAMASSA DE ASSENTAMENTO COM PREPARO MANUAL. AF_12/2021 | D85: M2 | E85: 139.42 | F85: 0.0032
A86: Alvenaria de Vedação | B86: 103336 | C86: ALVENARIA DE VEDAÇÃO DE BLOCOS VAZADOS DE CONCRETO APARENTE DE 9X19X39 CM (ESPESSURA 9 CM) E ARGAMASSA DE ASSENTAMENTO COM PREPARO EM BETONEIRA. AF_12/2021 | D86: M2 | E86: 86.68 | F86: 0.0025
A87: Alvenaria de Vedação | B87: 103337 | C87: ALVENARIA DE VEDAÇÃO DE BLOCOS VAZADOS DE CONCRETO APARENTE DE 9X19X39 CM (ESPESSURA 9 CM) E ARGAMASSA DE ASSENTAMENTO COM PREPARO MANUAL. AF_12/2021 | D87: M2 | E87: 87.94 | F87: 0.0025
A88: Alvenaria de Vedação | B88: 103342 | C88: ALVENARIA DE VEDAÇÃO DE BLOCOS VAZADOS DE CONCRETO DE 14X19X29 CM (ESPESSURA 14 CM) E ARGAMASSA DE ASSENTAMENTO COM PREPARO EM BETONEIRA. AF_12/2021 | D88: M2 | E88: 116.51 | F88: 0.0039
A89: Alvenaria de Vedação | B89: 103343 | C89: ALVENARIA DE VEDAÇÃO DE BLOCOS VAZADOS DE CONCRETO DE 14X19X29 CM (ESPESSURA 14 CM) E ARGAMASSA DE ASSENTAMENTO COM PREPARO MANUAL. AF_12/2021 | D89: M2 | E89: 118.14 | F89: 0.0038
A90: Alvenaria de Vedação | B90: 103318 | C90: ALVENARIA DE VEDAÇÃO DE BLOCOS VAZADOS DE CONCRETO DE 14X19X39 CM (ESPESSURA 14 CM) E ARGAMASSA DE ASSENTAMENTO COM PREPARO EM BETONEIRA. AF_12/2021 | D90: M2 | E90: 99.9 | F90: 0.0045
A91: Alvenaria de Vedação | B91: 103319 | C91: ALVENARIA DE VEDAÇÃO DE BLOCOS VAZADOS DE CONCRETO DE 14X19X39 CM (ESPESSURA 14 CM) E ARGAMASSA DE ASSENTAMENTO COM PREPARO MANUAL. AF_12/2021 | D91: M2 | E91: 101.37 | F91: 0.0044
A92: Alvenaria de Vedação | B92: 103320 | C92: ALVENARIA DE VEDAÇÃO DE BLOCOS VAZADOS DE CONCRETO DE 19X19X39 CM (ESPESSURA 19 CM) E ARGAMASSA DE ASSENTAMENTO COM PREPARO EM BETONEIRA. AF_12/2021 | D92: M2 | E92: 120.11 | F92: 0.0037
A93: Alvenaria de Vedação | B93: 103321 | C93: ALVENARIA DE VEDAÇÃO DE BLOCOS VAZADOS DE CONCRETO DE 19X19X39 CM (ESPESSURA 19 CM) E ARGAMASSA DE ASSENTAMENTO COM PREPARO MANUAL. AF_12/2021 | D93: M2 | E93: 121.95 | F93: 0.0037
A94: Alvenaria de Vedação | B94: 103316 | C94: ALVENARIA DE VEDAÇÃO DE BLOCOS VAZADOS DE CONCRETO DE 9X19X39 CM (ESPESSURA 9 CM) E ARGAMASSA DE ASSENTAMENTO COM PREPARO EM BETONEIRA. AF_12/2021 | D94: M2 | E94: 77.1 | F94: 0.0029
A95: Alvenaria de Vedação | B95: 103317 | C95: ALVENARIA DE VEDAÇÃO DE BLOCOS VAZADOS DE CONCRETO DE 9X19X39 CM (ESPESSURA 9 CM) E ARGAMASSA DE ASSENTAMENTO COM PREPARO MANUAL. AF_12/2021 | D95: M2 | E95: 78.36 | F95: 0.0028
A96: Alvenarias Diversas | B96: 101166 | C96: ALVENARIA DE EMBASAMENTO COM BLOCO ESTRUTURAL DE CERÂMICA, DE 14X19X29CM E ARGAMASSA DE ASSENTAMENTO COM PREPARO EM BETONEIRA. AF_05/2020 | D96: M3 | E96: 634.53 | F96: 0
A97: Alvenarias Diversas | B97: 101165 | C97: ALVENARIA DE EMBASAMENTO COM BLOCO ESTRUTURAL DE CONCRETO, DE 14X19X29CM E ARGAMASSA DE ASSENTAMENTO COM PREPARO EM BETONEIRA. AF_05/2020 | D97: M3 | E97: 997.06 | F97: 0
A98: Alvenarias Diversas | B98: 101163 | C98: ALVENARIA DE VEDAÇÃO COM BLOCO DE VIDRO VAZADO, TIPO VENEZIANA, DE 6X20X20CM E ARGAMASSA DE ASSENTAMENTO COM PREPARO EM BETONEIRA. AF_05/2020 | D98: M2 | E98: 675.58 | F98: 0.7359
A99: Alvenarias Diversas | B99: 101164 | C99: ALVENARIA DE VEDAÇÃO COM BLOCO DE VIDRO, TIPO CANELADO, DE 8X19X19CM E ARGAMASSA DE ASSENTAMENTO COM PREPARO EM BETONEIRA. AF_05/2020 | D99: M2 | E99: 686.38 | F99: 0.7329
A100: Alvenarias Diversas | B100: 101162 | C100: ALVENARIA DE VEDAÇÃO COM ELEMENTO VAZADO DE CERÂMICA (COBOGÓ) DE 7X20X20CM E ARGAMASSA DE ASSENTAMENTO COM PREPARO EM BETONEIRA. AF_05/2020 | D100: M2 | E100: 146.42 | F100: 0
A101: Alvenarias Diversas | B101: 101161 | C101: ALVENARIA DE VEDAÇÃO COM ELEMENTO VAZADO DE CONCRETO (COBOGÓ) DE 7X50X50CM E ARGAMASSA DE ASSENTAMENTO COM PREPARO EM BETONEIRA. AF_05/2020 | D101: M2 | E101: 226.45 | F101: 0
A102: Alvenarias Diversas | B102: 101160 | C102: ALVENARIA DE VEDAÇÃO DE BLOCO DE SOLO-CIMENTO (TIJOLO ECOLÓGICO) DE 7X15X30CM (ESPESSURA 15CM). AF_05/2020 | D102: M2 | E102: 0
A103: Alvenarias Diversas | B103: 101159 | C103: ALVENARIA DE VEDAÇÃO DE BLOCOS CERÂMICOS MACIÇOS DE 5X10X20CM (ESPESSURA 10CM) E ARGAMASSA DE ASSENTAMENTO COM PREPARO EM BETONEIRA. AF_05/2020 | D103: M2 | E103: 131.31 | F103: 0
A104: Alvenarias Diversas | B104: 101154 | C104: ALVENARIA DE VEDAÇÃO DE BLOCOS DE CONCRETO CELULAR DE 10X30X60CM (ESPESSURA 10CM) E ARGAMASSA DE ASSENTAMENTO COM PREPARO EM BETONEIRA. AF_05/2020 | D104: M2 | E104: 143.78 | F104: 0.6927
A105: Alvenarias Diversas | B105: 101155 | C105: ALVENARIA DE VEDAÇÃO DE BLOCOS DE CONCRETO CELULAR DE 15X30X60CM (ESPESSURA 15CM) E ARGAMASSA DE ASSENTAMENTO COM PREPARO EM BETONEIRA. AF_05/2020 | D105: M2 | E105: 201.93 | F105: 0.7245
A106: Alvenarias Diversas | B106: 101156 | C106: ALVENARIA DE VEDAÇÃO DE BLOCOS DE CONCRETO CELULAR DE 20X30X60CM (ESPESSURA 20CM) E ARGAMASSA DE ASSENTAMENTO COM PREPARO EM BETONEIRA. AF_05/2020 | D106: M2 | E106: 296.45 | F106: 0.7559
A107: Alvenarias Diversas | B107: 101158 | C107: ALVENARIA DE VEDAÇÃO DE BLOCOS DE GESSO DE 10X50X66CM (ESPESSURA 10CM). AF_05/2020 | D107: M2 | E107: 76.68 | F107: 0
A108: Alvenarias Diversas | B108: 101157 | C108: ALVENARIA DE VEDAÇÃO DE BLOCOS DE GESSO DE 7X50X66CM (ESPESSURA 7CM). AF_05/2020 | D108: M2 | E108: 58.94 | F108: 0
A109: Argamassas | B109: 87382 | C109: ARGAMASSA INDUSTRIALIZADA MULTIUSO PARA REVESTIMENTOS E ASSENTAMENTO DA ALVENARIA, PREPARO COM MISTURADOR DE EIXO HORIZONTAL DE 160 KG. AF_08/2019 | D109: M3 | E109: 2108.64 | F109: 0
A110: Argamassas | B110: 87383 | C110: ARGAMASSA INDUSTRIALIZADA MULTIUSO PARA REVESTIMENTOS E ASSENTAMENTO DA ALVENARIA, PREPARO COM MISTURADOR DE EIXO HORIZONTAL DE 300 KG. AF_08/2019 | D110: M3 | E110: 2107.96 | F110: 0
A111: Argamassas | B111: 87384 | C111: ARGAMASSA INDUSTRIALIZADA MULTIUSO PARA REVESTIMENTOS E ASSENTAMENTO DA ALVENARIA, PREPARO COM MISTURADOR DE EIXO HORIZONTAL DE 600 KG. AF_08/2019 | D111: M3 | E111: 2103.32 | F111: 0
A112: Argamassas | B112: 87398 | C112: ARGAMASSA INDUSTRIALIZADA MULTIUSO PARA REVESTIMENTOS E ASSENTAMENTO DA ALVENARIA, PREPARO MANUAL. AF_08/2019 | D112: M3 | E112: 2349.04 | F112: 0
A113: Argamassas | B113: 87395 | C113: ARGAMASSA INDUSTRIALIZADA PARA CHAPISCO COLANTE, PREPARO COM MISTURADOR DE EIXO HORIZONTAL DE 160 KG. AF_08/2019 | D113: M3 | E113: 4123.13 | F113: 0
A114: Argamassas | B114: 87396 | C114: ARGAMASSA INDUSTRIALIZADA PARA CHAPISCO COLANTE, PREPARO COM MISTURADOR DE EIXO HORIZONTAL DE 300 KG. AF_08/2019 | D114: M3 | E114: 4152.84 | F114: 0
A115: Argamassas | B115: 87397 | C115: ARGAMASSA INDUSTRIALIZADA PARA CHAPISCO COLANTE, PREPARO COM MISTURADOR DE EIXO HORIZONTAL DE 600 KG. AF_08/2019 | D115: M3 | E115: 4184.84 | F115: 0
A116: Argamassas | B116: 87402 | C116: ARGAMASSA INDUSTRIALIZADA PARA CHAPISCO COLANTE, PREPARO MANUAL. AF_08/2019 | D116: M3 | E116: 4431.95 | F116: 0
A117: Argamassas | B117: 87391 | C117: ARGAMASSA INDUSTRIALIZADA PARA CHAPISCO ROLADO, PREPARO COM MISTURADOR DE EIXO HORIZONTAL DE 160 KG. AF_08/2019 | D117: M3 | E117: 6547.3 | F117: 0
A118: Argamassas | B118: 87393 | C118: ARGAMASSA INDUSTRIALIZADA PARA CHAPISCO ROLADO, PREPARO COM MISTURADOR DE EIXO HORIZONTAL DE 300 KG. AF_08/2019 | D118: M3 | E118: 6609.57 | F118: 0
A119: Argamassas | B119: 87394 | C119: ARGAMASSA INDUSTRIALIZADA PARA CHAPISCO ROLADO, PREPARO COM MISTURADOR DE EIXO HORIZONTAL DE 600 KG. AF_08/2019 | D119: M3 | E119: 6672.66 | F119: 0
A120: Argamassas | B120: 87401 | C120: ARGAMASSA INDUSTRIALIZADA PARA CHAPISCO ROLADO, PREPARO MANUAL. AF_08/2019 | D120: M3 | E120: 6905.75 | F120: 0
A121: Argamassas | B121: 87407 | C121: ARGAMASSA INDUSTRIALIZADA PARA REVESTIMENTOS, MISTURA E PROJEÇÃO DE 1,5 M³/H DE ARGAMASSA. AF_08/2019 | D121: M3 | E121: 2150.36 | F121: 0
A122: Argamassas | B122: 87408 | C122: ARGAMASSA INDUSTRIALIZADA PARA REVESTIMENTOS, MISTURA E PROJEÇÃO DE 2 M³/H DE ARGAMASSA. AF_08/2019 | D122: M3 | E122: 2139.91 | F122: 0
A123: Argamassas | B123: 87404 | C123: ARGAMASSA PARA REVESTIMENTO DECORATIVO MONOCAMADA (MONOCAPA), MISTURA E PROJEÇÃO DE 1,5 M3/H DE ARGAMASSA. AF_08/2019 | D123: M3 | E123: 6111.53 | F123: 0
A124: Argamassas | B124: 87405 | C124: ARGAMASSA PARA REVESTIMENTO DECORATIVO MONOCAMADA (MONOCAPA), MISTURA E PROJEÇÃO DE 2 M3/H DE ARGAMASSA. AF_08/2019 | D124: M3 | E124: 6131.68 | F124: 0
A125: Argamassas | B125: 87388 | C125: ARGAMASSA PARA REVESTIMENTO DECORATIVO MONOCAMADA (MONOCAPA), PREPARO COM MISTURADOR DE EIXO HORIZONTAL DE 160 KG. AF_08/2019 | D125: M3 | E125: 5889.83 | F125: 0
A126: Argamassas | B126: 87389 | C126: ARGAMASSA PARA REVESTIMENTO DECORATIVO MONOCAMADA (MONOCAPA), PREPARO COM MISTURADOR DE EIXO HORIZONTAL DE 300 KG. AF_08/2019 | D126: M3 | E126: 5916.25 | F126: 0
A127: Argamassas | B127: 87390 | C127: ARGAMASSA PARA REVESTIMENTO DECORATIVO MONOCAMADA (MONOCAPA), PREPARO COM MISTURADOR DE EIXO HORIZONTAL DE 600 KG. AF_08/2019 | D127: M3 | E127: 5950.56 | F127: 0
A128: Argamassas | B128: 87385 | C128: ARGAMASSA PRONTA PARA CONTRAPISO, PREPARO COM MISTURADOR DE EIXO HORIZONTAL DE 160 KG. AF_08/2019 | D128: M3 | E128: 2444.18 | F128: 0
A129: Argamassas | B129: 87386 | C129: ARGAMASSA PRONTA PARA CONTRAPISO, PREPARO COM MISTURADOR DE EIXO HORIZONTAL DE 300 KG. AF_08/2019 | D129: M3 | E129: 2438.94 | F129: 0
A130: Argamassas | B130: 87387 | C130: ARGAMASSA PRONTA PARA CONTRAPISO, PREPARO COM MISTURADOR DE EIXO HORIZONTAL DE 600 KG. AF_08/2019 | D130: M3 | E130: 2437.32 | F130: 0
A131: Argamassas | B131: 87399 | C131: ARGAMASSA PRONTA PARA CONTRAPISO, PREPARO MANUAL. AF_08/2019 | D131: M3 | E131: 2689.81 | F131: 0
A132: Argamassas | B132: 88627 | C132: ARGAMASSA TRAÇO 1:0,5:4,5 (EM VOLUME DE CIMENTO, CAL E AREIA MÉDIA ÚMIDA) PARA ASSENTAMENTO DE ALVENARIA, PREPARO MANUAL. AF_08/2019 | D132: M3 | E132: 723.85 | F132: 0
A133: Argamassas | B133: 100463 | C133: ARGAMASSA TRAÇO 1:0,5:4,5 (EM VOLUME DE CIMENTO, CAL E AREIA MÉDIA ÚMIDA), PREPARO MECÂNICO COM BETONEIRA 250 L. AF_08/2019 | D133: M3 | E133: 0
A134: Argamassas | B134: 88626 | C134: ARGAMASSA TRAÇO 1:0,5:4,5 (EM VOLUME DE CIMENTO, CAL E AREIA MÉDIA ÚMIDA), PREPARO MECÂNICO COM BETONEIRA 400 L. AF_08/2019 | D134: M3 | E134: 608.75 | F134: 0
A135: Argamassas | B135: 100488 | C135: ARGAMASSA TRAÇO 1:0,5:4,5 (EM VOLUME DE CIMENTO, CAL E AREIA MÉDIA ÚMIDA), PREPARO MECÂNICO COM BETONEIRA 600 L. AF_08/2019 | D135: M3 | E135: 602.61 | F135: 0
A136: Argamassas | B136: 100464 | C136: ARGAMASSA TRAÇO 1:0,5:4,5 (EM VOLUME DE CIMENTO, CAL E AREIA MÉDIA ÚMIDA), PREPARO MECÂNICO COM MISTURADOR DE EIXO HORIZONTAL DE 160 KG. AF_08/2019 | D136: M3 | E136: 632.13 | F136: 0
A137: Argamassas | B137: 100465 | C137: ARGAMASSA TRAÇO 1:0,5:4,5 (EM VOLUME DE CIMENTO, CAL E AREIA MÉDIA ÚMIDA), PREPARO MECÂNICO COM MISTURADOR DE EIXO HORIZONTAL DE 300 KG. AF_08/2019 | D137: M3 | E137: 595.28 | F137: 0
A138: Argamassas | B138: 100466 | C138: ARGAMASSA TRAÇO 1:0,5:4,5 (EM VOLUME DE CIMENTO, CAL E AREIA MÉDIA ÚMIDA), PREPARO MECÂNICO COM MISTURADOR DE EIXO HORIZONTAL DE 600 KG. AF_08/2019 | D138: M3 | E138: 578.31 | F138: 0
A139: Argamassas | B139: 87368 | C139: ARGAMASSA TRAÇO 1:1,5:7,5 (EM VOLUME DE CIMENTO, CAL E AREIA MÉDIA ÚMIDA) PARA EMBOÇO/MASSA ÚNICA/ASSENTAMENTO DE ALVENARIA DE VEDAÇÃO, PREPARO MANUAL. AF_08/2019 | D139: M3 | E139: 804.66 | F139: 0
A140: Argamassas | B140: 100450 | C140: ARGAMASSA TRAÇO 1:1,5:7,5 (EM VOLUME DE CIMENTO, CAL E AREIA MÉDIA ÚMIDA) PARA EMBOÇO/MASSA ÚNICA/ASSENTAMENTO DE ALVENARIA DE VEDAÇÃO, PREPARO MECÂNICO COM BETONEIRA 250 L. AF_08/2019 | D140: M3 | E140: 0
A141: Argamassas | B141: 87289 | C141: ARGAMASSA TRAÇO 1:1,5:7,5 (EM VOLUME DE CIMENTO, CAL E AREIA MÉDIA ÚMIDA) PARA EMBOÇO/MASSA ÚNICA/ASSENTAMENTO DE ALVENARIA DE VEDAÇÃO, PREPARO MECÂNICO COM BETONEIRA 400 L. AF_08/2019 | D141: M3 | E141: 662.74 | F141: 0
A142: Argamassas | B142: 87290 | C142: ARGAMASSA TRAÇO 1:1,5:7,5 (EM VOLUME DE CIMENTO, CAL E AREIA MÉDIA ÚMIDA) PARA EMBOÇO/MASSA ÚNICA/ASSENTAMENTO DE ALVENARIA DE VEDAÇÃO, PREPARO MECÂNICO COM BETONEIRA 600 L. AF_08/2019 | D142: M3 | E142: 655.46 | F142: 0
A143: Argamassas | B143: 87333 | C143: ARGAMASSA TRAÇO 1:1,5:7,5 (EM VOLUME DE CIMENTO, CAL E AREIA MÉDIA ÚMIDA) PARA EMBOÇO/MASSA ÚNICA/ASSENTAMENTO DE ALVENARIA DE VEDAÇÃO, PREPARO MECÂNICO COM MISTURADOR DE EIXO HORIZONTAL DE 300 KG. AF_08/2019 | D143: M3 | E143: 663.77 | F143: 0
A144: Argamassas | B144: 87334 | C144: ARGAMASSA TRAÇO 1:1,5:7,5 (EM VOLUME DE CIMENTO, CAL E AREIA MÉDIA ÚMIDA) PARA EMBOÇO/MASSA ÚNICA/ASSENTAMENTO DE ALVENARIA DE VEDAÇÃO, PREPARO MECÂNICO COM MISTURADOR DE EIXO HORIZONTAL DE 600 KG. AF_08/2019 | D144: M3 | E144: 629.23 | F144: 0
A145: Argamassas | B145: 105515 | C145: ARGAMASSA TRAÇO 1:1,93 (EM VOLUME DE CIMENTO E AREIA MÉDIA ÚMIDA), FCK 20MPA, PREPARO MECÂNICO COM MISTURADOR DUPLO HORIZONTAL DE ALTA TURBULÊNCIA. AF_03/2020 | D145: M3 | E145: 815.16 | F145: 0
A146: Argamassas | B146: 87367 | C146: ARGAMASSA TRAÇO 1:1:6 (EM VOLUME DE CIMENTO, CAL E AREIA MÉDIA ÚMIDA) PARA EMBOÇO/MASSA ÚNICA/ASSENTAMENTO DE ALVENARIA DE VEDAÇÃO, PREPARO MANUAL. AF_08/2019 | D146: M3 | E146: 801.34 | F146: 0
A147: Argamassas | B147: 100449 | C147: ARGAMASSA TRAÇO 1:1:6 (EM VOLUME DE CIMENTO, CAL E AREIA MÉDIA ÚMIDA) PARA EMBOÇO/MASSA ÚNICA/ASSENTAMENTO DE ALVENARIA DE VEDAÇÃO, PREPARO MECÂNICO COM BETONEIRA 250 L. AF_08/2019 | D147: M3 | E147: 0
A148: Argamassas | B148: 87286 | C148: ARGAMASSA TRAÇO 1:1:6 (EM VOLUME DE CIMENTO, CAL E AREIA MÉDIA ÚMIDA) PARA EMBOÇO/MASSA ÚNICA/ASSENTAMENTO DE ALVENARIA DE VEDAÇÃO, PREPARO MECÂNICO COM BETONEIRA 400 L. AF_08/2019 | D148: M3 | E148: 662.6 | F148: 0
A149: Argamassas | B149: 87287 | C149: ARGAMASSA TRAÇO 1:1:6 (EM VOLUME DE CIMENTO, CAL E AREIA MÉDIA ÚMIDA) PARA EMBOÇO/MASSA ÚNICA/ASSENTAMENTO DE ALVENARIA DE VEDAÇÃO, PREPARO MECÂNICO COM BETONEIRA 600 L. AF_08/2019 | D149: M3 | E149: 648.18 | F149: 0
A150: Argamassas | B150: 87331 | C150: ARGAMASSA TRAÇO 1:1:6 (EM VOLUME DE CIMENTO, CAL E AREIA MÉDIA ÚMIDA) PARA EMBOÇO/MASSA ÚNICA/ASSENTAMENTO DE ALVENARIA DE VEDAÇÃO, PREPARO MECÂNICO COM MISTURADOR DE EIXO HORIZONTAL DE 300 KG. AF_08/2019 | D150: M3 | E150: 682.55 | F150: 0
A151: Argamassas | B151: 87332 | C151: ARGAMASSA TRAÇO 1:1:6 (EM VOLUME DE CIMENTO, CAL E AREIA MÉDIA ÚMIDA) PARA EMBOÇO/MASSA ÚNICA/ASSENTAMENTO DE ALVENARIA DE VEDAÇÃO, PREPARO MECÂNICO COM MISTURADOR DE EIXO HORIZONTAL DE 600 KG. AF_08/2019 | D151: M3 | E151: 624.84 | F151: 0
A152: Argamassas | B152: 87369 | C152: ARGAMASSA TRAÇO 1:2:8 (EM VOLUME DE CIMENTO, CAL E AREIA MÉDIA ÚMIDA) PARA EMBOÇO/MASSA ÚNICA/ASSENTAMENTO DE ALVENARIA DE VEDAÇÃO, PREPARO MANUAL. AF_08/2019 | D152: M3 | E152: 842.87 | F152: 0
A153: Argamassas | B153: 100451 | C153: ARGAMASSA TRAÇO 1:2:8 (EM VOLUME DE CIMENTO, CAL E AREIA MÉDIA ÚMIDA) PARA EMBOÇO/MASSA ÚNICA/ASSENTAMENTO DE ALVENARIA DE VEDAÇÃO, PREPARO MECÂNICO COM BETONEIRA 250 L. AF_08/2019 | D153: M3 | E153: 0
A154: Argamassas | B154: 87292 | C154: ARGAMASSA TRAÇO 1:2:8 (EM VOLUME DE CIMENTO, CAL E AREIA MÉDIA ÚMIDA) PARA EMBOÇO/MASSA ÚNICA/ASSENTAMENTO DE ALVENARIA DE VEDAÇÃO, PREPARO MECÂNICO COM BETONEIRA 400 L. AF_08/2019 | D154: M3 | E154: 698.58 | F154: 0
A155: Argamassas | B155: 87335 | C155: ARGAMASSA TRAÇO 1:2:8 (EM VOLUME DE CIMENTO, CAL E AREIA MÉDIA ÚMIDA) PARA EMBOÇO/MASSA ÚNICA/ASSENTAMENTO DE ALVENARIA DE VEDAÇÃO, PREPARO MECÂNICO COM MISTURADOR DE EIXO HORIZONTAL DE 300 KG. AF_08/2019 | D155: M3 | E155: 657.35 | F155: 0
A156: Argamassas | B156: 87336 | C156: ARGAMASSA TRAÇO 1:2:8 (EM VOLUME DE CIMENTO, CAL E AREIA MÉDIA ÚMIDA) PARA EMBOÇO/MASSA ÚNICA/ASSENTAMENTO DE ALVENARIA DE VEDAÇÃO, PREPARO MECÂNICO COM MISTURADOR DE EIXO HORIZONTAL DE 600 KG. AF_08/2019 | D156: M3 | E156: 669.12 | F156: 0
A157: Argamassas | B157: 87370 | C157: ARGAMASSA TRAÇO 1:2:9 (EM VOLUME DE CIMENTO, CAL E AREIA MÉDIA ÚMIDA) PARA EMBOÇO/MASSA ÚNICA/ASSENTAMENTO DE ALVENARIA DE VEDAÇÃO, PREPARO MANUAL. AF_08/2019 | D157: M3 | E157: 809.78 | F157: 0
A158: Argamassas | B158: 100452 | C158: ARGAMASSA TRAÇO 1:2:9 (EM VOLUME DE CIMENTO, CAL E AREIA MÉDIA ÚMIDA) PARA EMBOÇO/MASSA ÚNICA/ASSENTAMENTO DE ALVENARIA DE VEDAÇÃO, PREPARO MECÂNICO COM BETONEIRA 250 L. AF_08/2019 | D158: M3 | E158: 0
A159: Argamassas | B159: 88715 | C159: ARGAMASSA TRAÇO 1:2:9 (EM VOLUME DE CIMENTO, CAL E AREIA MÉDIA ÚMIDA) PARA EMBOÇO/MASSA ÚNICA/ASSENTAMENTO DE ALVENARIA DE VEDAÇÃO, PREPARO MECÂNICO COM BETONEIRA 400 L. AF_08/2019 | D159: M3 | E159: 658.85 | F159: 0
A160: Argamassas | B160: 87294 | C160: ARGAMASSA TRAÇO 1:2:9 (EM VOLUME DE CIMENTO, CAL E AREIA MÉDIA ÚMIDA) PARA EMBOÇO/MASSA ÚNICA/ASSENTAMENTO DE ALVENARIA DE VEDAÇÃO, PREPARO MECÂNICO COM BETONEIRA 600 L. AF_08/2019 | D160: M3 | E160: 665 | F160: 0
A161: Argamassas | B161: 87337 | C161: ARGAMASSA TRAÇO 1:2:9 (EM VOLUME DE CIMENTO, CAL E AREIA MÉDIA ÚMIDA) PARA EMBOÇO/MASSA ÚNICA/ASSENTAMENTO DE ALVENARIA DE VEDAÇÃO, PREPARO MECÂNICO COM MISTURADOR DE EIXO HORIZONTAL DE 300 KG. AF_08/2019 | D161: M3 | E161: 663.44 | F161: 0
A162: Argamassas | B162: 100487 | C162: ARGAMASSA TRAÇO 1:2:9 (EM VOLUME DE CIMENTO, CAL E AREIA MÉDIA ÚMIDA) PARA EMBOÇO/MASSA ÚNICA/ASSENTAMENTO DE ALVENARIA DE VEDAÇÃO, PREPARO MECÂNICO COM MISTURADOR DE EIXO HORIZONTAL DE 600 KG. AF_08/2019 | D162: M3 | E162: 632.32 | F162: 0
A163: Argamassas | B163: 87380 | C163: ARGAMASSA TRAÇO 1:3 (EM VOLUME DE CIMENTO E AREIA GROSSA ÚMIDA) COM ADIÇÃO DE EMULSÃO POLIMÉRICA PARA CHAPISCO ROLADO, PREPARO MANUAL. AF_08/2019 | D163: M3 | E163: 3818.93 | F163: 0
A164: Argamassas | B164: 100461 | C164: ARGAMASSA TRAÇO 1:3 (EM VOLUME DE CIMENTO E AREIA GROSSA ÚMIDA) COM ADIÇÃO DE EMULSÃO POLIMÉRICA PARA CHAPISCO ROLADO, PREPARO MECÂNICO COM BETONEIRA 250 L. AF_08/2019 | D164: M3 | E164: 0
A165: Argamassas | B165: 87322 | C165: ARGAMASSA TRAÇO 1:3 (EM VOLUME DE CIMENTO E AREIA GROSSA ÚMIDA) COM ADIÇÃO DE EMULSÃO POLIMÉRICA PARA CHAPISCO ROLADO, PREPARO MECÂNICO COM BETONEIRA 400 L. AF_08/2019 | D165: M3 | E165: 3708.42 | F165: 0
A166: Argamassas | B166: 87323 | C166: ARGAMASSA TRAÇO 1:3 (EM VOLUME DE CIMENTO E AREIA GROSSA ÚMIDA) COM ADIÇÃO DE EMULSÃO POLIMÉRICA PARA CHAPISCO ROLADO, PREPARO MECÂNICO COM BETONEIRA 600 L. AF_08/2019 | D166: M3 | E166: 3709.2 | F166: 0
A167: Argamassas | B167: 87360 | C167: ARGAMASSA TRAÇO 1:3 (EM VOLUME DE CIMENTO E AREIA GROSSA ÚMIDA) COM ADIÇÃO DE EMULSÃO POLIMÉRICA PARA CHAPISCO ROLADO, PREPARO MECÂNICO COM MISTURADOR DE EIXO HORIZONTAL DE 160 KG. AF_08/2019 | D167: M3 | E167: 3662.71 | F167: 0
A168: Argamassas | B168: 87361 | C168: ARGAMASSA TRAÇO 1:3 (EM VOLUME DE CIMENTO E AREIA GROSSA ÚMIDA) COM ADIÇÃO DE EMULSÃO POLIMÉRICA PARA CHAPISCO ROLADO, PREPARO MECÂNICO COM MISTURADOR DE EIXO HORIZONTAL DE 300 KG. AF_08/2019 | D168: M3 | E168: 3621.2 | F168: 0
A169: Argamassas | B169: 87362 | C169: ARGAMASSA TRAÇO 1:3 (EM VOLUME DE CIMENTO E AREIA GROSSA ÚMIDA) COM ADIÇÃO DE EMULSÃO POLIMÉRICA PARA CHAPISCO ROLADO, PREPARO MECÂNICO COM MISTURADOR DE EIXO HORIZONTAL DE 600 KG. AF_08/2019 | D169: M3 | E169: 3622.35 | F169: 0
A170: Argamassas | B170: 87377 | C170: ARGAMASSA TRAÇO 1:3 (EM VOLUME DE CIMENTO E AREIA GROSSA ÚMIDA) PARA CHAPISCO CONVENCIONAL, PREPARO MANUAL. AF_08/2019 | D170: M3 | E170: 677.29 | F170: 0
A171: Argamassas | B171: 100458 | C171: ARGAMASSA TRAÇO 1:3 (EM VOLUME DE CIMENTO E AREIA GROSSA ÚMIDA) PARA CHAPISCO CONVENCIONAL, PREPARO MECÂNICO COM BETONEIRA 250 L. AF_08/2019 | D171: M3 | E171: 0
A172: Argamassas | B172: 87313 | C172: ARGAMASSA TRAÇO 1:3 (EM VOLUME DE CIMENTO E AREIA GROSSA ÚMIDA) PARA CHAPISCO CONVENCIONAL, PREPARO MECÂNICO COM BETONEIRA 400 L. AF_08/2019 | D172: M3 | E172: 524.67 | F172: 0
A173: Argamassas | B173: 87314 | C173: ARGAMASSA TRAÇO 1:3 (EM VOLUME DE CIMENTO E AREIA GROSSA ÚMIDA) PARA CHAPISCO CONVENCIONAL, PREPARO MECÂNICO COM BETONEIRA 600 L. AF_08/2019 | D173: M3 | E173: 518.09 | F173: 0
A174: Argamassas | B174: 87352 | C174: ARGAMASSA TRAÇO 1:3 (EM VOLUME DE CIMENTO E AREIA GROSSA ÚMIDA) PARA CHAPISCO CONVENCIONAL, PREPARO MECÂNICO COM MISTURADOR DE EIXO HORIZONTAL DE 160 KG. AF_08/2019 | D174: M3 | E174: 604.06 | F174: 0
A175: Argamassas | B175: 87353 | C175: ARGAMASSA TRAÇO 1:3 (EM VOLUME DE CIMENTO E AREIA GROSSA ÚMIDA) PARA CHAPISCO CONVENCIONAL, PREPARO MECÂNICO COM MISTURADOR DE EIXO HORIZONTAL DE 300 KG. AF_08/2019 | D175: M3 | E175: 528.88 | F175: 0
A176: Argamassas | B176: 87354 | C176: ARGAMASSA TRAÇO 1:3 (EM VOLUME DE CIMENTO E AREIA GROSSA ÚMIDA) PARA CHAPISCO CONVENCIONAL, PREPARO MECÂNICO COM MISTURADOR DE EIXO HORIZONTAL DE 600 KG. AF_08/2019 | D176: M3 | E176: 496.39 | F176: 0
A177: Argamassas | B177: 100480 | C177: ARGAMASSA TRAÇO 1:3 (EM VOLUME DE CIMENTO E AREIA MÉDIA ÚMIDA) COM ADIÇÃO DE IMPERMEABILIZANTE, PREPARO MANUAL. AF_08/2019 | D177: M3 | E177: 834.34 | F177: 0
A178: Argamassas | B178: 100476 | C178: ARGAMASSA TRAÇO 1:3 (EM VOLUME DE CIMENTO E AREIA MÉDIA ÚMIDA) COM ADIÇÃO DE IMPERMEABILIZANTE, PREPARO MECÂNICO COM BETONEIRA 250 L. AF_08/2019 | D178: M3 | E178: 0
A179: Argamassas | B179: 100475 | C179: ARGAMASSA TRAÇO 1:3 (EM VOLUME DE CIMENTO E AREIA MÉDIA ÚMIDA) COM ADIÇÃO DE IMPERMEABILIZANTE, PREPARO MECÂNICO COM BETONEIRA 400 L. AF_08/2019 | D179: M3 | E179: 714.91 | F179: 0
A180: Argamassas | B180: 100491 | C180: ARGAMASSA TRAÇO 1:3 (EM VOLUME DE CIMENTO E AREIA MÉDIA ÚMIDA) COM ADIÇÃO DE IMPERMEABILIZANTE, PREPARO MECÂNICO COM BETONEIRA 600 L. AF_08/2019 | D180: M3 | E180: 716.25 | F180: 0
A181: Argamassas | B181: 100477 | C181: ARGAMASSA TRAÇO 1:3 (EM VOLUME DE CIMENTO E AREIA MÉDIA ÚMIDA) COM ADIÇÃO DE IMPERMEABILIZANTE, PREPARO MECÂNICO COM MISTURADOR DE EIXO HORIZONTAL DE 160 KG. AF_08/2019 | D181: M3 | E181: 774.97 | F181: 0
A182: Argamassas | B182: 100478 | C182: ARGAMASSA TRAÇO 1:3 (EM VOLUME DE CIMENTO E AREIA MÉDIA ÚMIDA) COM ADIÇÃO DE IMPERMEABILIZANTE, PREPARO MECÂNICO COM MISTURADOR DE EIXO HORIZONTAL DE 300 KG. AF_08/2019 | D182: M3 | E182: 701.81 | F182: 0
A183: Argamassas | B183: 100479 | C183: ARGAMASSA TRAÇO 1:3 (EM VOLUME DE CIMENTO E AREIA MÉDIA ÚMIDA) COM ADIÇÃO DE IMPERMEABILIZANTE, PREPARO MECÂNICO COM MISTURADOR DE EIXO HORIZONTAL DE 600 KG. AF_08/2019 | D183: M3 | E183: 687.33 | F183: 0
A184: Argamassas | B184: 87372 | C184: ARGAMASSA TRAÇO 1:3 (EM VOLUME DE CIMENTO E AREIA MÉDIA ÚMIDA) PARA CONTRAPISO, PREPARO MANUAL. AF_08/2019 | D184: M3 | E184: 830.62 | F184: 0
A185: Argamassas | B185: 100453 | C185: ARGAMASSA TRAÇO 1:3 (EM VOLUME DE CIMENTO E AREIA MÉDIA ÚMIDA) PARA CONTRAPISO, PREPARO MECÂNICO COM BETONEIRA 250 L. AF_08/2019 | D185: M3 | E185: 0
A186: Argamassas | B186: 87298 | C186: ARGAMASSA TRAÇO 1:3 (EM VOLUME DE CIMENTO E AREIA MÉDIA ÚMIDA) PARA CONTRAPISO, PREPARO MECÂNICO COM BETONEIRA 400 L. AF_08/2019 | D186: M3 | E186: 671.4 | F186: 0
A187: Argamassas | B187: 87299 | C187: ARGAMASSA TRAÇO 1:3 (EM VOLUME DE CIMENTO E AREIA MÉDIA ÚMIDA) PARA CONTRAPISO, PREPARO MECÂNICO COM BETONEIRA 600 L. AF_08/2019 | D187: M3 | E187: 460.61 | F187: 0
A188: Argamassas | B188: 87339 | C188: ARGAMASSA TRAÇO 1:3 (EM VOLUME DE CIMENTO E AREIA MÉDIA ÚMIDA) PARA CONTRAPISO, PREPARO MECÂNICO COM MISTURADOR DE EIXO HORIZONTAL DE 160 KG. AF_08/2019 | D188: M3 | E188: 790.54 | F188: 0
A189: Argamassas | B189: 87340 | C189: ARGAMASSA TRAÇO 1:3 (EM VOLUME DE CIMENTO E AREIA MÉDIA ÚMIDA) PARA CONTRAPISO, PREPARO MECÂNICO COM MISTURADOR DE EIXO HORIZONTAL DE 300 KG. AF_08/2019 | D189: M3 | E189: 669.65 | F189: 0
A190: Argamassas | B190: 87341 | C190: ARGAMASSA TRAÇO 1:3 (EM VOLUME DE CIMENTO E AREIA MÉDIA ÚMIDA) PARA CONTRAPISO, PREPARO MECÂNICO COM MISTURADOR DE EIXO HORIZONTAL DE 600 KG. AF_08/2019 | D190: M3 | E190: 640.06 | F190: 0
A191: Argamassas | B191: 88629 | C191: ARGAMASSA TRAÇO 1:3 (EM VOLUME DE CIMENTO E AREIA MÉDIA ÚMIDA), PREPARO MANUAL. AF_08/2019 | D191: M3 | E191: 679.2 | F191: 0
A192: Argamassas | B192: 100467 | C192: ARGAMASSA TRAÇO 1:3 (EM VOLUME DE CIMENTO E AREIA MÉDIA ÚMIDA), PREPARO MECÂNICO COM BETONEIRA 250 L. AF_08/2019 | D192: M3 | E192: 0
A193: Argamassas | B193: 88628 | C193: ARGAMASSA TRAÇO 1:3 (EM VOLUME DE CIMENTO E AREIA MÉDIA ÚMIDA), PREPARO MECÂNICO COM BETONEIRA 400 L. AF_08/2019 | D193: M3 | E193: 559.21 | F193: 0
A194: Argamassas | B194: 100489 | C194: ARGAMASSA TRAÇO 1:3 (EM VOLUME DE CIMENTO E AREIA MÉDIA ÚMIDA), PREPARO MECÂNICO COM BETONEIRA 600 L. AF_08/2019 | D194: M3 | E194: 559.14 | F194: 0
A195: Argamassas | B195: 100468 | C195: ARGAMASSA TRAÇO 1:3 (EM VOLUME DE CIMENTO E AREIA MÉDIA ÚMIDA), PREPARO MECÂNICO COM MISTURADOR DE EIXO HORIZONTAL DE 160 KG. AF_08/2019 | D195: M3 | E195: 676.62 | F195: 0
A196: Argamassas | B196: 100469 | C196: ARGAMASSA TRAÇO 1:3 (EM VOLUME DE CIMENTO E AREIA MÉDIA ÚMIDA), PREPARO MECÂNICO COM MISTURADOR DE EIXO HORIZONTAL DE 300 KG. AF_08/2019 | D196: M3 | E196: 549.73 | F196: 0
A197: Argamassas | B197: 100470 | C197: ARGAMASSA TRAÇO 1:3 (EM VOLUME DE CIMENTO E AREIA MÉDIA ÚMIDA), PREPARO MECÂNICO COM MISTURADOR DE EIXO HORIZONTAL DE 600 KG. AF_08/2019 | D197: M3 | E197: 506.09 | F197: 0
A198: Argamassas | B198: 87371 | C198: ARGAMASSA TRAÇO 1:3:12 (EM VOLUME DE CIMENTO, CAL E AREIA MÉDIA ÚMIDA) PARA EMBOÇO/MASSA ÚNICA/ASSENTAMENTO DE ALVENARIA DE VEDAÇÃO, PREPARO MANUAL. AF_08/2019 | D198: M3 | E198: 815.1 | F198: 0
A199: Argamassas | B199: 87295 | C199: ARGAMASSA TRAÇO 1:3:12 (EM VOLUME DE CIMENTO, CAL E AREIA MÉDIA ÚMIDA) PARA EMBOÇO/MASSA ÚNICA/ASSENTAMENTO DE ALVENARIA DE VEDAÇÃO, PREPARO MECÂNICO COM BETONEIRA 400 L. AF_08/2019 | D199: M3 | E199: 693.94 | F199: 0
A200: Argamassas | B200: 87296 | C200: ARGAMASSA TRAÇO 1:3:12 (EM VOLUME DE CIMENTO, CAL E AREIA MÉDIA ÚMIDA) PARA EMBOÇO/MASSA ÚNICA/ASSENTAMENTO DE ALVENARIA DE VEDAÇÃO, PREPARO MECÂNICO COM BETONEIRA 600 L. AF_08/2019 | D200: M3 | E200: 669.49 | F200: 0
... 9496 more rows

Sheet Tabela diária Codevasf

Sheet Cotação
B1: ITEM | C1: EMPRESA | H1: DESCRIÇÃO / OBSERVAÇÃO | I1: UNID | J1: QUANT | K1: LINK OU LOCAL DO ARQUIVO | L1: VALOR
C2: DATA | D2: EMPRESA / CNPJ | E2: RESPONSÁVEL | F2: ENDEREÇO | G2: CONTATO | L2: MAT | M2: MDO | N2: TRANSPORTE | O2: TOTAL
B3: CT-1 | C3: 2025-05-15 | D3: Autodesk | E3: Preço na loja online | F3: Loja Virtual | G3: https://www.autodesk.com/br/support/contact-support | H3: licença anual | I3: h | J3: =365*24 -> 8760 | K3: https://www.autodesk.com/br/products/autocad/overview | L3: 8095 | O3: =SUM(L3:N3) -> 8095
C4: 2025-05-15 | D4: Bricsys | E4: Preço na loja online | F4: Loja Virtual | G4: https://www.bricsys.com/pt-br/contact-sales | H4: licença anual | I4: h | J4: =365*24 -> 8760 | K4: https://www.bricsys.com/pt-br/store/bricscad/configurator?ld=12&lv=1 | L4: =1180*D9 -> 6655.2 | O4: =SUM(L4:N4) -> 6655.2
C5: 2025-05-15 | D5: Bentley / virtuosity | E5: Preço na loja online | F5: Loja Virtual | G5: https://br.virtuosity.com/contate-nos | H5: Licença anual | I5: h | J5: 8760 | K5: https://br.virtuosity.com/microstation | L5: 7922.57 | O5: 7922.57
D8: COTAÇÃO DOLAR 15/05/2025
D9: 5.64
F10: CT-2 | H10: Unitário
F11: Média | G11: =AVERAGE(O3:O5) -> 7557.59 | H11: =G11/J3 -> 0.8627385845
F12: Mediana | G12: =MEDIAN(O3:O5) -> 7922.57 | H12: =G12/J4 -> 0.904402968
F13: Menor | G13: =SMALL(G11:G12,1) -> 7557.59 | H13: =G13/J5 -> 0.8627385845

Sheet Passagens aéreas
C1: Preço
B2: Média | C2: =AVERAGE(C12,T12,C38,T38,AI12,AI39) -> 1089.833333
B3: Mediana | C3: =MEDIAN(C12,T12,C38,T38,AI12,AI39) -> 1149
B4: Menor | C4: =SMALL(C2:C3,1) -> 1089.833333
A10: BRASÍLIA - PETROLINA | R10: SÃO PAULO - PETROLINA | AG10: BELO HORIZONTE - PETROLNA
A12: 2º SEMESTRE/2025 | C12: 1174 | R12: 2º SEMESTRE/2025 | T12: 934 | AG12: 2º SEMESTRE/2025 | AI12: 1124
A38: 1º SEMESTRE/2026 | C38: 1261 | R38: 1º SEMESTRE/2026 | T38: 820
AG39: 1º SEMESTRE/2026 | AI39: 1226

Sheet CPU-VEICULO_PickUp
A5: Composição de Preços de Locação de Veículo tipo pick-up
B6: Data de atualização: | C6: 2025-01-22 | E6: CV | F6: Média | G6: Mediana | K6: CV | L6: Média | M6: Mediana | V6: CV | W6: Média | X6: Mediana
A7: CODEVASF | E7: =_xlfn.STDEV.S(E10:H10)/AVERAGE(E10:H10) -> 0.09461804749 | F7: =AVERAGE(E10:H10) -> 200477 | G7: =MEDIAN(E10:H10) -> 205565.5 | K7: =_xlfn.STDEV.S(L9:S9)/AVERAGE(L9:S9) -> 0.2049193683 | L7: =AVERAGE(L9:S9) -> 34.54857143 | M7: =MEDIAN(L9:S9) -> 30.91 | V7: =_xlfn.STDEV.S(W9:AD9)/AVERAGE(W9:AD9) -> 0.1211464891 | W7: =AVERAGE(W9:AD9) -> 483.715 | X7: =MEDIAN(W9:AD9) -> 489.45
A8: OBS: Preço sem BDI e sem motorista BDI= | E8: Preço FIPE | J8: PRODUTO | K8: MENOR (MÉDIA, MEDIANA) | L8: COT. 1 | M8: COT. 2 | N8: COT. 3 | O8: COT. 4 | P8: COT. 5 | Q8: COT. 6 | R8: COT. 7 | S8: COT. 8 | U8: PRODUTO | V8: MENOR (MÉDIA, MEDIANA) | W8: COT. 1 | X8: COT. 2 | Y8: COT. 3 | Z8: COT. 4 | AA8: COT. 5 | AB8: COT. 6
A9: Veículo tipo pick-up, cabine dupla - 2.0 16V 4x4 diesel Aut. | E9: Toro Ultra 2.0 16V 4x4 TB Diesel Aut. | F9: Toro Freedom 2.0 16V 4x4 TB Diesel Aut. | G9: Toro Volcano 2.0 16V 4x4 TB Diesel Aut. | H9: Toro Ranch 2.0 16V 4x4 TB Diesel Aut. | J9: LUBRIFICANTE 5W30 | K9: =SMALL(L7:M7,1) -> 30.91 | L9: 33.33 | M9: 26.9 | N9: 30.9 | O9: 30.9 | P9: 30.91 | Q9: 46 | R9: 42.9 | U9: Pneu 225/65 R17 | V9: =SMALL(W7:X7,1) -> 483.715 | W9: 499 | X9: 479.9 | Y9: 565.25 | Z9: 393.38 | AA9: 449.9 | AB9: =2059.44/4 -> 514.86
B10: Custo Mensal (R$): | C10: =C51 -> 7596.441226 | E10: 215525 | F10: 175252 | G10: 196485 | H10: 214646
B11: Custo Diária (R$): | C11: =C10/22 -> 345.292783
B12: Custo Horário (R$): | C12: =C10/176 -> 43.16159787
A13: A | B13: Depreciação mensal do equipamento
A14: A1 | B14: Preço de Aquisição | C14: =SMALL(F7:G7,1) -> 200477
A15: A2 | B15: Tempo previsto de vida útil (meses) | C15: 36
A16: A3 | B16: Previsão de recup. Na venda do bem usado | C16: 0.7
A17: A4 | B17: Custo mensal [A1-(A3xA1)]/A2 | C17: =(C14-(C16*C14))/C15 -> 1670.641667
A18: B | B18: Juros pelo Capital empregado
A19: B1 | B19: Taxa mensal de Juros * | C19: =POWER(1+C56,1/12)-1 -> 0.01034852829
A20: B2 | B20: Juros s/depreciação/aluguel (B1xA4) | C20: =C19*C17 -> 17.28868255
A21: C | B21: Conservação e manutenção ** | C21: 0.75
A22: C1 | B22: Taxa de gastos s/a deprec. Inc. seguros (%) | C22: =C21 -> 0.75
A23: C2 | B23: Incidência mensal (C1xA4) | C23: =C22*C17 -> 1252.98125
A24: D | B24: Combustível
A25: D1 | B25: Média mensal de quilômetro por veículo | C25: =Quantitativos!B20*22 -> 6864 | E25: *Adotou-se 312 km/dia, considerando a mediada entre os deslocamento (ida e vinda) entre as Barragens e Petrolina-PE.
A26: D2 | B26: Preço do litro de combustível | C26: =AH26 -> 6.1 | AG26: PREÇO DO DIESEL | AH26: 6.1
A27: D3 | B27: Quilômetros rodados com um litro combustivel | C27: 10 | AG27: https://precos.petrobras.com.br/sele%C3%A7%C3%A3o-de-estados-diesel
A28: D4 | B28: Combustivel (D1/D3)*D2 | C28: =(C25/C27)*C26 -> 4187.04
A29: E | B29: Lubrificantes
A30: E1 | B30: Quilometragem do Contrato (D1*12) | C30: =C25*36 -> 247104
A31: E2 | B31: Franquia por troca de óleo (km) | C31: 10000
A32: E3 | B32: Preço do litro de óleo | C32: =K9 -> 30.91
A33: E4 | B33: Quantidade de litros de óleo por troca | C33: 5
A34: E5 | B34: Quantidade de dias do Contrato | C34: =365*3 -> 1095
A35: E6 | B35: Lubrificantes E = (E1*E3*E4*30)/E2*E5 | C35: =(C30*C32*C33*30)/(C31*C34) -> 104.6299266
A36: F | B36: Pneus
A37: F1 | B37: Quilometragem do Contrato | C37: =C30 -> 247104
A38: F2 | B38: Vida do Pneu em quilômetros | C38: 45000
A39: F3 | B39: Quantidade de pneus | C39: 5
A40: F4 | B40: Preço do Pneu | C40: =V9 -> 483.715
A41: F5 | B41: Quantidade de dias do contrato | C41: =C34 -> 1095
A42: F6 | B42: Pneus = (F1*F3*F4*30)/(F2*F5) | C42: =(C37*C39*C40*30)/(C38*C41) -> 363.8596997
A43: G | B43: Motorista
A44: G1 | B44: Salário com encargos sociais | C44: 0
A45: H | B45: Custo Mensal
B46: Sem Motorista (A4+B2+C2+D4+E6+F6) | C46: =C17+C20+C23+C28+C35+C42 -> 7596.441226
B47: Com Motorista (A4+B2+C2+D4+E6+F6+G1) | C47: =C17+C20+C23+C28+C35+C42+C44 -> 7596.441226
A48: I | B48: Custo Direto p/ km Rodado
B49: Sem Motorista | C49: =C46/C25 -> 1.106707638
B50: Com Motorista | C50: =C47/C25 -> 1.106707638
A51: J | B51: Preço cobrado sem BDI | C51: =C46*(1+C8) -> 7596.441226
A52: J1 | B52: Sem Motorista | C52: =C51 -> 7596.441226
A53: J2 | B53: Com Motorista | C53: =C47 -> 7596.441226 | I53: https://www.google.com/search?q=lubrificante+5w30+1l&sa=X&sca_esv=c77f5342bf7e367a&tbm=shop&ei=e0uKZ-DcDNKp5OUPkOKj6QY&ved=0ahUKEwighoOy3_yKAxXSFLkGHRDxKG0Q4dUDCAg&uact=5&oq=lubrificante+5w30+1l&gs_lp=Egtwcm9kdWN0cy1jYyIUbHVicmlmaWNhbnRlIDV3MzAgMWxIgQ9Q4AlY8Q1wAHgAkAEAmAFroAGgA6oBAzEuM7gBA8gBAPgBAZgCAqAC0gHCAgUQABiABMICBhAAGAcYHsICBhAAGAgYHsICBhAAGBYYHpgDAIgGAZIHAzEuMaAHxQU&sclient=products-cc | T53: https://www.google.com/search?q=pneu+225%2F65+R17&sa=X&biw=1600&bih=757&tbm=shop&sxsrf=AJOqlzWsb-d4PS1_OUOEhKmRc2RbtSg3RQ%3A1677092596279&ei=9Gb2Y9K5ENTa5OUPvLykGA&ved=0ahUKEwjSg9Pj6Kn9AhVULbkGHTweCQMQ4dUDCAg&uact=5&oq=pneu+225%2F65+R17&gs_lcp=Cgtwcm9kdWN0cy1jYxADMgsIABCABBCxAxCDATIFCAAQgAQyBwgAEIAEEAoyBwgAEIAEEAoyBwgAEIAEEAoyBwgAEIAEEAoyBwgAEIAEEAoyBQgAEIAEMgcIABCABBAKMgcIABCABBAKOgQIIxAnOgQIABBDSgQIQRgAUABYoTJgqUBoAHAAeACAAdIFiAGUKZIBDTAuMi42LjIuMi4yLjGYAQCgAQHAAQE&sclient=products-cc
B55: OBSERVAÇÕES:
A56: * | B56: Calculado com base na taxa SELIC JANEIRO/2025: | C56: 0.1315
B57: Taxa de Juros Selic — Português (Brasil) (www.gov.br)
A58: ** | B58: Conservação e manutenção - é calculado com o uso de um coeficiente multiplicador "k", conforme tabela abaixo, sobre a
B59: depreciação mensal do equipamento (Item A da planilha de composição de preços). Os valores de K são fornecidos por
B60: fabricantes.
B61: Metodologia conforme a bibliografia "Como Preparar Orçamentos de Obras", 3 edição, Aldo Dórea Mattos, 2019.
